Workbook

Sheet Gennaio
A1: Oggi è | C1: FcaBank | D1: Arancio | E1: Totale
A2: =TODAY() -> 2024-03-31 | C2: =Deposito!$R$20 -> 15000 | D2: =Deposito!$O$20 -> 15000 | E2: =SUM(C2+D2+E3) -> 30125.95 | H2: =VLOOKUP($A$2,$A6:$E97,5) -> 125.95
E3: =LOOKUP(2,1/(E:E<>""),E:E) -> 125.95
A4: DATA | B4: OPERAZIONE | C4: DARE | D4: AVERE | E4: SALDO | J4: DARE
E5: =Saldo_2023 -> 141.45 | Z5: Giorni | AA5: Numeri | AB5: Numeri Per Calcolo Interessi | AC5: Interessi Lordi | AD5: Interessi Netti | AE5: Tasso Interessi | AF5: Ritenuta
A6: 2024-01-01 | B6: Genius | C6: 2.15 | E6: =IF(AND($A6=0),"",$E5-$C6+$D6) -> 139.3 | J6: 4.96 | Z6: =IF(#REF!-A6<0,0,SUM(#REF!-A6)) ->  | AA6: =SUM(C6:D6) -> 2.15 | AB6: =E6*Z6 ->  | AC6: =(AB6*AE6/100)/365 ->  | AD6: =AC6-AF6 ->  | AE6: 1 | AF6: =(AC6*27/100) -> 
A7: 2024-01-01 | B7: Carta Click Ricarica | C7: 50 | E7: =IF(AND($A7=0),"",$E6-$C7+$D7) -> 89.3 | J7: 8.62
A8: 2024-01-02 | B8: Gasolio Golf | C8: 20 | E8: 69.3
A9: 2024-01-03 | B9: Pensione Claudio | D9: 1948.51 | E9: 2017.81
A10: 2024-01-03 | B10: Pensione Rosalba | D10: 1676.75 | E10: 3694.56 | J10: 15
A11: 2024-01-03 | B11: Benzina Panda Blu | C11: 50.01 | E11: 3644.55 | J11: 20
A12: 2024-01-03 | B12: Vitto | C12: 750 | E12: 2894.55 | J12: 150
A13: 2024-01-05 | B13: ParkinGo | C13: 62 | E13: 2832.55 | J13: 150
A14: 2024-01-05 | B14: Iphone | C14: 85.75 | E14: 2746.8 | J14: 500
A15: 2024-01-08 | B15: Monica | C15: 150 | E15: 2596.8 | J15: 214.24
A16: 2024-01-08 | B16: Andrea | C16: 150 | E16: 2446.8 | J16: 40
A17: 2024-01-10 | B17: Arancio_in | C17: 1381.14 | E17: 1065.66 | J17: 25.99
A18: 2024-01-10 | B18: AcquaEnna | C18: 0 | E18: 1065.66 | J18: 500
A19: 2024-01-11 | B19: TimVision | C19: 24.99 | E19: 1040.67
A20: 2024-01-15 | B20: Vitto | C20: 300 | E20: 740.67
A21: 2024-01-16 | B21: Bollo Golf | C21: 193.08 | E21: 547.59
A22: 2024-01-16 | B22: Gasolio Golf | C22: 10 | E22: 537.59
A23: 2024-01-18 | B23: Claudio | C23: 44.2 | E23: 493.39
A24: 2024-01-19 | B24: Rosalba | C24: 11.44 | E24: 481.95
A25: 2024-01-21 | B25: Infostrada | C25: 25.99 | E25: 455.96
A26: 2024-01-22 | B26: Varie | C26: 30 | E26: 425.96
A27: 2024-01-22 | B27: Benzina Panda Blu | C27: 50.01 | E27: 375.95
A28: 2024-01-29 | B28: Vitto | C28: 250 | E28: 125.95
E37: =IF(AND(A37=0),"",E36-C37+D37) -> 
E64: =IF(AND(A64=0),"",E63-C64+D64) -> 

Sheet Febbraio
A1: Oggi è | C1: FcaBank | D1: Arancio | E1: Totale
A2: =TODAY() -> 2024-03-31 | C2: =Deposito!$R$20 -> 15000 | D2: =Deposito!$O$20 -> 15000 | E2: =SUM(C2+D2+E3) -> 30789.51 | H2: =VLOOKUP($A$2,$A$6:$E$76,5) -> 789.51
E3: =LOOKUP(2,1/(E:E<>""),E:E) -> 789.51
A4: DATA | B4: OPERAZIONE | C4: DARE | D4: AVERE | E4: € SALDO
E5: =Gennaio!$E$3 -> 125.95
A6: 2024-02-01 | B6: Genius | C6: 2.15 | E6: =IF(AND(A6=0),"",E5-C6+D6) -> 123.8
A7: 2024-02-01 | B7: Pensione Claudio | D7: 1949.85 | E7: =IF(AND(A7=0),"",E6-C7+D7) -> 2073.65
A8: 2024-02-01 | B8: Pensione Rosalba | D8: 1676.78 | E8: 3750.43
A9: 2024-02-01 | B9: Carta Click Ricarica | C9: 50 | E9: 3700.43
A10: 2024-02-01 | B10: Tim Rosalba | C10: 15 | E10: 3685.43
A11: 2024-02-01 | B11: Tim Claudio | C11: 15 | E11: 3670.43
A12: 2024-02-01 | B12: Vitto | C12: 300 | E12: 3370.43
A13: 2024-02-02 | B13: Luce Settimo | C13: 126.3 | E13: 3244.13
A14: 2024-02-02 | B14: Luce Piazza | C14: 48.93 | E14: 3195.2
A15: 2024-02-04 | B15: Vitto | C15: 31.31 | E15: 3163.89
A16: 2024-02-05 | B16: Gasolio Golf | C16: 10 | E16: 3153.89
A17: 2024-02-05 | B17: Iphone | C17: 85.75 | E17: 3068.14
A18: 2024-02-05 | B18: Benzina Panda Blu | C18: 35 | E18: 3033.14
A19: 2024-02-08 | B19: Tim Flexy | C19: 11.8 | E19: 3021.34
A20: 2024-02-08 | B20: Andrea | C20: 250 | E20: 2771.34
A21: 2024-02-09 | B21: Vitto | C21: 21.4 | E21: 2749.94
A22: 2024-02-11 | B22: TimVision | C22: 29.99 | E22: 2719.95
A23: 2024-02-13 | B23: Benzina Panda Blu | C23: 22.99 | E23: 2696.96
A24: 2024-02-14 | B24: Vitto | C24: 550 | E24: 2146.96
A25: 2024-02-15 | B25: Varie | C25: 50 | E25: 2096.96
A26: 2024-02-17 | B26: Gasolio Golf | C26: 15 | E26: 2081.96
A27: 2024-02-18 | B27: Monica | C27: 250 | E27: 1831.96
A28: 2024-02-19 | B28: Benzina Beverly | C28: 9.42 | E28: 1822.54
A29: 2024-02-20 | B29: Varie | C29: 72 | E29: 1750.54
A30: 2024-02-21 | B30: Varie | C30: 90 | E30: 1660.54
A31: 2024-02-21 | B31: Infostrada | C31: 25.47 | E31: 1635.07
A32: 2024-02-21 | B32: Vitto | C32: 20.55 | E32: 1614.52
A33: 2024-02-23 | B33: Varie | C33: 100 | E33: 1514.52
A34: 2024-02-24 | B34: Benzina Panda Blu | C34: 25.01 | E34: 1489.51
A35: 2024-02-29 | B35: Vitto | C35: 700 | E35: 789.51

Sheet Marzo
A1: Oggi è | C1: FcaBank | D1: Arancio | E1: Totale
A2: =TODAY() -> 2024-03-31 | C2: =Deposito!R20 -> 15000 | D2: =Deposito!O20 -> 15000 | E2: =SUM($C$2+$D$2+$E$3) -> 30685.64 | F2: =VLOOKUP($A$2,$A$6:$E$63,5) -> 685.64
E3: =LOOKUP(2,1/(E:E<>""),E:E) -> 685.64
A4: DATA | B4: OPERAZIONE | C4: DARE | D4: AVERE | E4: € SALDO
E5: =Febbraio!$E$3 -> 789.51 | W5: Giorni | X5: Numeri | Y5: Numeri Per Calcolo Interessi | Z5: Interessi Lordi | AA5: Interessi Netti | AB5: Tasso Interessi | AC5: Ritenuta
A6: 2024-03-01 | B6: Genius | C6: 2.15 | E6: =IF(AND(A6=0),"",E5-C6+D6) -> 787.36 | W6: =IF(#REF!-A6<0,0,SUM(#REF!-A6)) ->  | X6: =SUM(C6:D6) -> 2.15 | Y6: =E6*W6 ->  | Z6: =(Y6*AB6/100)/365 ->  | AA6: =Z6-AC6 ->  | AB6: 1 | AC6: =(Z6*27/100) -> 
A7: 2024-03-01 | B7: Pensione Claudio | D7: 2006.02 | E7: 2793.38
A8: 2024-03-01 | B8: Pensione Rosalba | D8: 1726.57 | E8: 4519.95
A9: 2024-03-01 | B9: Tim Rosalba | C9: 15 | E9: 4504.95
A10: 2024-03-01 | B10: Tim Claudio | C10: 15 | E10: 4489.95
A11: 2024-03-01 | B11: Carta Click Ricarica | C11: 50 | E11: 4439.95
A12: 2024-03-04 | B12: Arancio_in | C12: 1501.44 | E12: 2938.51
A13: 2024-03-05 | B13: Benzina Panda Blu | C13: 50 | E13: 2888.51
A14: 2024-03-05 | B14: Iphone | C14: 85.75 | E14: 2802.76
A15: 2024-03-05 | B15: Varie | C15: 81 | E15: 2721.76
A16: 2024-03-06 | B16: Assicurazione Golf | C16: 200 | E16: 2521.76
A17: 2024-03-06 | B17: Gas Settimo | C17: 366.15 | E17: 2155.61
A18: 2024-03-06 | B18: Carta Click Ricarica | C18: 50 | E18: 2105.61
A19: 2024-03-08 | B19: Andrea | C19: 250 | E19: 1855.61
A20: 2024-03-08 | B20: Tim Flexy | C20: 12.9 | E20: 1842.71
A21: 2024-03-11 | B21: TimVision | C21: 33.98 | E21: 1808.73
A22: 2024-03-11 | B22: Monica | D22: 174.84 | E22: 1983.57
A23: 2024-03-13 | B23: Benzina Beverly | C23: 10 | E23: 1973.57
A24: 2024-03-14 | B24: Vitto | C24: 500 | E24: 1473.57
A25: 2024-03-15 | B25: Varie | D25: 367.47 | E25: 1841.04
A26: 2024-03-16 | B26: Benzina Panda Blu | C26: 26 | E26: 1815.04
A27: 2024-03-18 | B27: Monica | C27: 250 | E27: 1565.04
A28: 2024-03-19 | B28: Vitto | C28: 250 | E28: 1315.04
A29: 2024-03-23 | B29: Infostrada | C29: 25.99 | E29: 1289.05
A30: 2024-03-25 | B30: Varie | C30: 20.1 | E30: 1268.95
A31: 2024-03-26 | B31: Benzina Panda Blu | C31: 47.5 | E31: 1221.45
A32: 2024-03-28 | B32: Luce Piazza | C32: 63.16 | E32: 1158.29
A33: 2024-03-28 | B33: Luce Settimo | C33: 138.09 | E33: 1020.2
A34: 2024-03-31 | B34: Competenze Banca | C34: 10.33 | E34: 1009.87
A35: 2024-03-31 | B35: AcquaEnna | C35: 324.23 | E35: 685.64

Sheet Aprile
A1: Oggi è | C1: FcaBank | D1: Arancio | E1: Totale
A2: =TODAY() -> 2024-03-31 | C2: =Deposito!$R$20 -> 15000 | D2: =Deposito!$O$20 -> 15000 | E2: =SUM($C$2+$D$2+$E$3) -> 29603.17 | G2: =VLOOKUP(A2,A6:E36,5) -> 
E3: =LOOKUP(2,1/(E:E<>""),E:E) -> -396.83
A4: DATA | B4: OPERAZIONE | C4: DARE | D4: AVERE | E4: € SALDO
E5: =Marzo!$E$3 -> 685.64 | Y5: Giorni | Z5: Numeri | AA5: Numeri Per Calcolo Interessi | AB5: Interessi Lordi | AC5: Interessi Netti | AD5: Tasso Interessi | AE5: Ritenuta
A6: 2024-04-01 | B6: Genius | C6: 2.15 | E6: =IF(AND(A6=0),"",E5-C6+D6) -> 683.49 | Y6: =IF(#REF!-A6<0,0,SUM(#REF!-A6)) ->  | Z6: =SUM(C6:D6) -> 2.15 | AA6: =E6*Y6 ->  | AB6: =(AA6*AD6/100)/365 ->  | AC6: =AB6-AE6 ->  | AD6: 1 | AE6: =(AB6*27/100) -> 
A7: 2024-04-01 | B7: Competenze Banca | C7: 8.43 | E7: =IF(AND(A7=0),"",E6-C7+D7) -> 675.06
A8: 2024-04-02 | B8: Pensione Claudio | D8: 1962.7 | E8: 2637.76
A9: 2024-04-02 | B9: Pensione Rosalba | D9: 1688.55 | E9: 4326.31
A10: 2024-04-02 | B10: Carta Click Ricarica | C10: 50 | E10: 4276.31
A11: 2024-04-02 | B11: Arancio_in | C11: 1500 | E11: 2776.31
A12: 2024-04-03 | B12: Benzina Panda Blu | C12: 45 | E12: 2731.31
A13: 2024-04-05 | B13: Varie | C13: 499.24 | E13: 2232.07
A14: 2024-04-05 | B14: Varie | C14: 500 | E14: 1732.07
A15: 2024-04-05 | B15: Iphone | C15: 85.75 | E15: 1646.32
A16: 2024-04-07 | B16: Vitto | C16: 600 | E16: 1046.32
A17: 2024-04-08 | B17: Tim Flexy | C17: 11.8 | E17: 1034.52
A18: 2024-04-08 | B18: Monica | C18: 250 | E18: 784.52
A19: 2024-04-08 | B19: Andrea | C19: 250 | E19: 534.52
A20: 2024-04-11 | B20: Bollo Beverly | C20: 40.6 | E20: 493.92
A21: 2024-04-11 | B21: Varie | C21: 40 | E21: 453.92
A22: 2024-04-17 | B22: Benzina Beverly | C22: 10.02 | E22: 443.9
A23: 2024-04-18 | B23: Benzina Panda Blu | C23: 45 | E23: 398.9
A24: 2024-04-19 | B24: Gas Piazza | C24: 89.74 | E24: 309.16
A25: 2024-04-20 | B25: Arancio_in | C25: 500 | E25: -190.84
A26: 2024-04-21 | B26: Infostrada | C26: 25.99 | E26: -216.83
A27: 2024-04-30 | B27: Tari Settimo | C27: 180 | E27: -396.83

Sheet Maggio
A1: Oggi è | C1: FcaBank | D1: Arancio | E1: Totale
A2: =TODAY() -> 2024-03-31 | C2: =Deposito!$R$20 -> 15000 | D2: =Deposito!$O$20 -> 15000 | E2: =SUM($C$2+$D$2+$E$3) -> 31712.59 | G2: =VLOOKUP(A2,A6:E86,5) -> 
E3: =LOOKUP(2,1/(E:E<>""),E:E) -> 1712.59
A4: DATA | B4: OPERAZIONE | C4: DARE | D4: AVERE | E4: € SALDO
E5: =Aprile!$E$3 -> -396.83 | Y5: Giorni | Z5: Numeri | AA5: Numeri Per Calcolo Interessi | AB5: Interessi Lordi | AC5: Interessi Netti | AD5: Tasso Interessi | AE5: Ritenuta
A6: 2024-05-01 | B6: Genius | C6: 2.15 | E6: =IF(AND(A6=0),"",E5-C6+D6) -> -398.98 | Y6: =IF(#REF!-A6<0,0,SUM(#REF!-A6)) ->  | Z6: =SUM(C6:D6) -> 2.15 | AA6: =E6*Y6 ->  | AB6: =(AA6*AD6/100)/365 ->  | AC6: =AB6-AE6 ->  | AD6: 1 | AE6: =(AB6*27/100) -> 
A7: 2024-05-02 | B7: Pensione Claudio | D7: 1865.9 | E7: =IF(AND(A7=0),"",E6-C7+D7) -> 1466.92
A8: 2024-05-02 | B8: Pensione Rosalba | D8: 1586.02 | E8: 3052.94
A9: 2024-05-02 | B9: Tim Claudio | C9: 15 | E9: 3037.94
A10: 2024-05-02 | B10: Tim Rosalba | C10: 15 | E10: 3022.94
A11: 2024-05-02 | B11: Carta Click Ricarica | C11: 50 | E11: 2972.94
A12: 2024-05-02 | B12: Tari Settimo | C12: 204 | E12: 2768.94
A13: 2024-05-02 | B13: Carta Click Ricarica | C13: 35 | E13: 2733.94
A14: 2024-05-02 | B14: Gasolio Golf | C14: 30 | E14: 2703.94
A15: 2024-05-03 | B15: Vitto | C15: 300 | E15: 2403.94
A16: 2024-05-03 | B16: Arancio_in | C16: 1001.44 | E16: 1402.5
A17: 2024-05-04 | B17: Assicurazione 500 | C17: 244 | E17: 1158.5
A18: 2024-05-04 | B18: Assicurazione Panda Blu | C18: 139.41 | E18: 1019.09
A19: 2024-05-04 | B19: Benzina Beverly | C19: 10 | E19: 1009.09
A20: 2024-05-05 | B20: AcquaEnna | C20: 18.87 | E20: 990.22
A21: 2024-05-05 | B21: Varie | C21: 250 | E21: 740.22
A22: 2024-05-05 | B22: Iphone | C22: 85.75 | E22: 654.47
A23: 2024-05-05 | B23: Varie | C23: 500 | E23: 154.47
A24: 2024-05-06 | B24: Varie | C24: 39.47 | E24: 115
A25: 2024-05-08 | B25: Monica | C25: 250 | E25: -135
A26: 2024-05-08 | B26: Andrea | C26: 250 | E26: -385
A27: 2024-05-08 | B27: Tim Flexy | C27: 25.8 | E27: -410.8
A28: 2024-05-08 | B28: Varie | D28: 9.95 | E28: -400.85
A29: 2024-05-11 | B29: Vitto | C29: 500 | E29: -900.85
A30: 2024-05-16 | B30: Gasolio Golf | C30: 50 | E30: -950.85
A31: 2024-05-19 | B31: Gas Settimo | C31: 301.25 | E31: -1252.1
A32: 2024-05-22 | B32: Infostrada | C32: 25.99 | E32: -1278.09
A33: 2024-05-22 | B33: Carta Click Ricarica | C33: 30 | E33: -1308.09
A34: 2024-05-23 | B34: Bonifico da FCA Bank | D34: 14000 | E34: 12691.91
A35: 2024-05-23 | B35: Andrea | C35: 5000.86 | E35: 7691.05
A36: 2024-05-23 | B36: Benzina Beverly | C36: 10 | E36: 7681.05
A37: 2024-05-23 | B37: Varie | C37: 19.99 | E37: 7661.06
A38: 2024-05-24 | B38: Andrea | C38: 5000.86 | E38: 2660.2
A39: 2024-05-25 | B39: Carta Click Ricarica | C39: 50 | E39: 2610.2
A40: 2024-05-26 | B40: Matilde | C40: 200 | E40: 2410.2
A41: 2024-05-29 | B41: Vitto | C41: 500 | E41: 1910.2
A42: 2024-05-30 | B42: Benzina Panda Blu | C42: 23.01 | E42: 1887.19
A43: 2024-05-31 | B43: Luce Settimo | C43: 124.99 | E43: 1762.2
A44: 2024-05-31 | B44: Luce Piazza | C44: 49.61 | E44: 1712.59

Sheet Giugno
A1: Oggi è | C1: FcaBank | D1: Arancio | E1: Totale
A2: =TODAY() -> 2024-03-31 | C2: =Deposito!$R$20 -> 15000 | D2: =Deposito!$O$20 -> 15000 | E2: =SUM($C$2+$D$2+$E$3) -> 29062.01 | G2: =VLOOKUP($A$2,$A6:$E96,5) -> 
E3: =LOOKUP(2,1/(E:E<>""),E:E) -> -937.99
A4: DATA | B4: OPERAZIONE | C4: DARE | D4: AVERE | E4: € SALDO
E5: =Maggio!$E$3 -> 1712.59 | Y5: Giorni | Z5: Numeri | AA5: Numeri Per Calcolo Interessi | AB5: Interessi Lordi | AC5: Interessi Netti | AD5: Tasso Interessi | AE5: Ritenuta
A6: 2024-06-01 | B6: Genius | C6: 2.15 | E6: =IF(AND(A6=0),"",E5-C6+D6) -> 1710.44 | Y6: =IF(#REF!-A6<0,0,SUM(#REF!-A6)) ->  | Z6: =SUM(C6:D6) -> 2.15 | AA6: =E6*Y6 ->  | AB6: =(AA6*AD6/100)/365 ->  | AC6: =AB6-AE6 ->  | AD6: 1 | AE6: =(AB6*27/100) -> 
A7: 2024-06-01 | B7: Pensione Claudio | D7: 1865.9 | E7: =IF(AND(A7=0),"",E6-C7+D7) -> 3576.34
A8: 2024-06-01 | B8: Pensione Rosalba | D8: 1586.02 | E8: 5162.36
A9: 2024-06-01 | B9: Carta Click Ricarica | C9: 30 | E9: 5132.36
A10: 2024-06-01 | B10: Tim Rosalba | C10: 15 | E10: 5117.36
A11: 2024-06-01 | B11: Tim Claudio | C11: 15 | E11: 5102.36
A12: 2024-06-01 | B12: Arancio_in | C12: 4001.44 | E12: 1100.92
A13: 2024-06-01 | B13: Amministratore | C13: 362 | E13: 738.92
A14: 2024-06-01 | B14: Rosalba | C14: 30.99 | E14: 707.93
A15: 2024-06-02 | B15: Rosalba | C15: 29.9 | E15: 678.03
A16: 2024-06-03 | B16: Rosalba | C16: 44.99 | E16: 633.04
A17: 2024-06-03 | B17: Rosalba | C17: 30.25 | E17: 602.79
A18: 2024-06-05 | B18: Gasolio Golf | C18: 30 | E18: 572.79
A19: 2024-06-05 | B19: Varie | C19: 200 | E19: 372.79
A20: 2024-06-07 | B20: Tari Piazza | C20: 77.5 | E20: 295.29
A21: 2024-06-08 | B21: Monica | C21: 150 | E21: 145.29
A22: 2024-06-08 | B22: Andrea | C22: 150 | E22: -4.71
A23: 2024-06-08 | B23: Varie | C23: 1.3 | E23: -6.01
A24: 2024-06-08 | B24: Iphone | C24: 85.75 | E24: -91.76
A25: 2024-06-09 | B25: Benzina Beverly | C25: 10 | E25: -101.76
A26: 2024-06-09 | B26: Vitto | C26: 600 | E26: -701.76
A27: 2024-06-10 | B27: Rosalba | C27: 68.84 | E27: -770.6
A28: 2024-06-12 | B28: Vitto | C28: 20.45 | E28: -791.05
A29: 2024-06-12 | B29: Benzina Panda Blu | C29: 21 | E29: -812.05
A30: 2024-06-16 | B30: Imu Piazza Claudio | C30: 132 | E30: -944.05
A31: 2024-06-16 | B31: Imu Piazza Rosalba | C31: 132 | E31: -1076.05
A32: 2024-06-19 | B32: Arancio_out | D32: 1300 | E32: 223.95
A33: 2024-06-19 | B33: Rosalba | C33: 10.44 | E33: 213.51
A34: 2024-06-21 | B34: Infostrada | C34: 25.99 | E34: 187.52
A35: 2024-06-23 | B35: ParkinGo | C35: 38 | E35: 149.52
A36: 2024-06-23 | B36: Benzina Panda Gialla | C36: 30 | E36: 119.52
A37: 2024-06-24 | B37: Claudio | C37: 20.15 | E37: 99.37
A38: 2024-06-24 | B38: Vitto | C38: 43.94 | E38: 55.43
A39: 2024-06-26 | B39: AcquaEnna | C39: 60.52 | E39: -5.09
A40: 2024-06-26 | B40: Varie | C40: 376.44 | E40: -381.53
A41: 2024-06-26 | B41: Vitto | C41: 500 | E41: -881.53
A42: 2024-06-27 | B42: Claudio | C42: 26.13 | E42: -907.66
A43: 2024-06-30 | B43: Competenze Banca | C43: 10.33 | E43: -917.99
A44: 2024-06-30 | B44: Carta Click Ricarica | C44: 20 | E44: -937.99

Sheet Luglio
A1: Oggi è | C1: FcaBank | D1: Arancio | E1: Totale
A2: =TODAY() -> 2024-03-31 | C2: =Deposito!$R$20 -> 15000 | D2: =Deposito!$O$20 -> 15000 | E2: =SUM($C$2+$D$2+$E$3) -> 28291.18 | G2: =VLOOKUP($A$2,$A$6:$E$39,5) -> 
E3: =LOOKUP(2,1/(E:E<>""),E:E) -> -1708.82
A4: DATA | B4: OPERAZIONE | C4: DARE | D4: AVERE | E4: € SALDO
E5: =Giugno!$E$3 -> -937.99 | Y5: Giorni | Z5: Numeri | AA5: Numeri Per Calcolo Interessi | AB5: Interessi Lordi | AC5: Interessi Netti | AD5: Tasso Interessi | AE5: Ritenuta
A6: 2024-07-01 | B6: Genius | C6: 2.15 | E6: =IF(AND(A6=0),"",E5-C6+D6) -> -940.14 | Y6: =IF(#REF!-A6<0,0,SUM(#REF!-A6)) ->  | Z6: =SUM(C6:D6) -> 2.15 | AA6: =F6*Y6 ->  | AB6: =(AA6*AD6/100)/365 ->  | AC6: =AB6-AE6 ->  | AD6: 1 | AE6: =(AB6*27/100) -> 
A7: 2024-07-03 | B7: Pensione Claudio | D7: 1865.9 | E7: =IF(AND(A7=0),"",E6-C7+D7) -> 925.76
A8: 2024-07-03 | B8: Pensione Rosalba | D8: 1586.02 | E8: 2511.78
A9: 2024-07-03 | B9: Amministratore | C9: 1260.86 | E9: 1250.92
A10: 2024-07-08 | B10: Tim Flexy | C10: 11.8 | E10: 1239.12
A11: 2024-07-08 | B11: Monica | C11: 150 | E11: =IF(AND(A11=0),"",E10-C11+D11) -> 1089.12
A12: 2024-07-08 | B12: Andrea | C12: 150 | E12: 939.12
A13: 2024-07-08 | B13: Varie | C13: 927 | E13: 12.12
A14: 2024-07-10 | B14: Monica | C14: 201.44 | E14: -189.32
A15: 2024-07-12 | B15: Vitto | C15: 600 | E15: -789.32
A16: 2024-07-13 | B16: Varie | C16: 60.44 | E16: -849.76
A17: 2024-07-18 | B17: Gas Settimo | C17: 151.22 | E17: -1000.98
A18: 2024-07-18 | B18: Arancio_out | D18: 4200 | E18: 3199.02
A19: 2024-07-20 | B19: Amministratore | C19: 4112.76 | E19: -913.74
A20: 2024-07-22 | B20: Infostrada | C20: 25.99 | E20: -939.73
A21: 2024-07-28 | B21: Luce Piazza | C21: 59.38 | E21: -999.11
A22: 2024-07-28 | B22: Luce Settimo | C22: 107.21 | E22: -1106.32
A23: 2024-07-28 | B23: Vitto | C23: 500 | E23: -1606.32
A24: 2024-07-29 | B24: Varie | C24: 102.5 | E24: -1708.82
B25: Iphone | C25: 85.75
E28: =IF(AND(A28=0),"",E27-C28+D28) -> 

Sheet Agosto
A1: Oggi è | C1: FcaBank | D1: Arancio | E1: Totale | G1: =VLOOKUP($A$2,$A$6:$E$82,5) -> 
A2: =TODAY() -> 2024-03-31 | C2: =Deposito!$R$20 -> 15000 | D2: =Deposito!$O$20 -> 15000 | E2: =SUM($C$2+$D$2+$E$3) -> 31853.71
E3: =LOOKUP(2,1/(E:E<>""),E:E) -> 1853.71
A4: DATA | B4: OPERAZIONE | C4: DARE | D4: AVERE | E4: € SALDO
E5: =Luglio!$E$3 -> -1708.82 | Y5: Giorni | Z5: Numeri | AA5: Numeri Per Calcolo Interessi | AB5: Interessi Lordi | AC5: Interessi Netti | AD5: Tasso Interessi | AE5: Ritenuta
A6: 2024-08-01 | B6: Genius | C6: 2.15 | E6: =IF(AND(A6=0),"",E5-C6+D6) -> -1710.97 | Y6: =IF(#REF!-A6<0,0,SUM(#REF!-A6)) ->  | Z6: =SUM(C6:D6) -> 2.15 | AA6: =E6*Y6 ->  | AB6: =(AA6*AD6/100)/365 ->  | AC6: =AB6-AE6 ->  | AD6: 1 | AE6: =(AB6*27/100) -> 
A7: 2024-08-01 | B7: Pensione Claudio | D7: 1918.9 | E7: =IF(AND(A7=0),"",E6-C7+D7) -> 207.93
A8: 2024-08-01 | B8: Pensione Rosalba | D8: 1660.02 | E8: 1867.95
A9: 2024-08-01 | B9: Carta Click Ricarica | C9: 50 | E9: 1817.95
A10: 2024-08-01 | B10: Amministratore | C10: 319.5 | E10: 1498.45
A11: 2024-08-02 | B11: Arancio_in | C11: 2001.44 | E11: -502.99
A12: 2024-08-03 | B12: Monica | C12: 72.75 | E12: -575.74
A13: 2024-08-07 | B13: Tim Claudio | C13: 15 | E13: -590.74
A14: 2024-08-08 | B14: Monica | C14: 150 | E14: -740.74
A15: 2024-08-08 | B15: Andrea | C15: 150 | E15: -890.74
A16: 2024-08-08 | B16: Tim Flexy | C16: 25.8 | E16: -916.54
A17: 2024-08-08 | B17: Gas Piazza | C17: 86.26 | E17: -1002.8
A18: 2024-08-11 | B18: Vitto | C18: 500 | E18: -1502.8
A19: 2024-08-16 | B19: Aruba | C19: 50 | E19: -1552.8
A20: 2024-08-21 | B20: Infostrada | C20: 25.99 | E20: -1578.79
A21: 2024-08-22 | B21: Tari Piazza | C21: 77.5 | E21: -1656.29
A22: 2024-08-22 | B22: Benzina Panda Gialla | C22: 20 | E22: -1676.29
A23: 2024-08-25 | B23: Vitto | C23: 150 | E23: -1826.29
A24: 2024-08-28 | B24: Arancio_out | D24: 4200 | E24: 2373.71
A25: 2024-08-30 | B25: Benzina Panda Gialla | C25: 20 | E25: 2353.71
A26: 2024-08-31 | B26: Vitto | C26: 500 | E26: 1853.71
B27: Iphone | C27: 85.75

Sheet Settembre
A1: Oggi è | C1: FcaBank | D1: Arancio | E1: Totale | F1: =SUMIF(Deposito!#REF!,"Agosto",Deposito!#REF!) ->  | G1: =VLOOKUP($A$2,$A6:$E78,5) -> 
A2: =TODAY() -> 2024-03-31 | C2: =Deposito!$R$20 -> 15000 | D2: =Deposito!$O$20 -> 15000 | E2: =SUM($C$2+$D$2+$E$3) -> 28236.05
E3: =LOOKUP(2,1/(E:E<>""),E:E) -> -1763.95
A4: DATA | B4: OPERAZIONE | C4: DARE | D4: AVERE | E4: € SALDO
E5: =Agosto!$E$3 -> 1853.71
A6: 2024-09-01 | B6: Genius | C6: 2.15 | E6: =IF(AND(A6=0),"",E5-C6+D6) -> 1851.56
A7: 2024-09-01 | B7: Pensione Claudio | D7: 1865.9 | E7: =IF(AND(A7=0),"",E6-C7+D7) -> 3717.46
A8: 2024-09-01 | B8: Pensione Rosalba | D8: 1586.02 | E8: 5303.48
A9: 2024-09-01 | B9: Tim Claudio | C9: 15 | E9: 5288.48
A10: 2024-09-01 | B10: Carta Click Ricarica | C10: 50 | E10: 5238.48
A11: 2024-09-01 | B11: Revisione Panda Gialla | C11: 78.3 | E11: 5160.18
A12: 2024-09-01 | B12: Tim Rosalba | C12: 15 | E12: 5145.18
A13: 2024-09-08 | B13: Tim Flexy | C13: 39.9 | E13: 5105.28
A14: 2024-09-08 | B14: Monica | C14: 150 | E14: 4955.28
A15: 2024-09-08 | B15: Andrea | C15: 150 | E15: 4805.28
A16: 2024-09-08 | B16: Vitto | C16: 260 | E16: 4545.28
A17: 2024-09-08 | B17: Gas Settimo | C17: 53.83 | E17: 4491.45
A18: 2024-09-09 | B18: Varie | C18: 26.05 | E18: 4465.4
A19: 2024-09-09 | B19: Benzina Panda Blu | C19: 30 | E19: 4435.4
A20: 2024-09-11 | B20: Bollo Panda Gialla | C20: 134.18 | E20: 4301.22
A21: 2024-09-11 | B21: Vitto | C21: 300 | E21: 4001.22
A22: 2024-09-11 | B22: TimVision | C22: 44.98 | E22: 3956.24
A23: 2024-09-13 | B23: Amministratore | C23: 4112.75 | E23: -156.51
A24: 2024-09-14 | B24: Benzina Beverly | C24: 10 | E24: -166.51
A25: 2024-09-15 | B25: Carta Click Ricarica | C25: 230 | E25: -396.51
A26: 2024-09-15 | B26: Varie | C26: 30.44 | E26: -426.95
A27: 2024-09-18 | B27: Arancio_in | C27: 701.44 | E27: -1128.39
A28: 2024-09-20 | B28: Tim Claudio | C28: 5 | E28: -1133.39
A29: 2024-09-21 | B29: Infostrada | C29: 25.99 | E29: -1159.38
A30: 2024-09-21 | B30: Carta Click Ricarica | C30: 25 | E30: -1184.38
A31: 2024-09-24 | B31: Carta Click Ricarica | C31: 20 | E31: -1204.38
A32: 2024-09-27 | B32: Luce Settimo | C32: 59.89 | E32: -1264.27
A33: 2024-09-27 | B33: Luce Piazza | C33: 191.22 | E33: -1455.49
A34: 2024-09-27 | B34: Vitto | C34: 200 | E34: -1655.49
A35: 2024-09-28 | B35: Varie | C35: 17.13 | E35: -1672.62
A36: 2024-09-28 | B36: Benzina Panda Blu | C36: 51 | E36: -1723.62
A37: 2024-09-30 | B37: Competenze Banca | C37: 10.33 | E37: -1733.95
A38: 2024-09-30 | B38: Carta Click Ricarica | C38: 30 | E38: -1763.95
B39: Iphone | C39: 85.75

Sheet Ottobre
A1: Oggi è | C1: FcaBank | D1: Arancio | E1: Totale
A2: =TODAY() -> 2024-03-31 | C2: =Deposito!$R$20 -> 15000 | D2: =Deposito!$O$20 -> 15000 | E2: =SUM($C$2+$D$2+$E$3) -> 28796.46 | G2: =VLOOKUP(A2,A6:E79,5) -> 
E3: =LOOKUP(2,1/(E:E<>""),E:E) -> -1203.54
A4: DATA | B4: OPERAZIONE | C4: DARE | D4: AVERE | E4: SALDO
E5: =Settembre!$E$3 -> -1763.95
A6: 2024-10-01 | B6: Genius | C6: 2.15 | E6: =IF(AND(A6=0),"",E5-C6+D6) -> -1766.1
A7: 2024-10-02 | B7: Pensione Claudio | D7: 1865.9 | E7: 99.8
A8: 2024-10-02 | B8: Pensione Rosalba | D8: 1586.02 | E8: 1685.82
A9: 2024-10-02 | B9: Carta Click Ricarica | C9: 70 | E9: 1615.82
A10: 2024-10-02 | B10: Vitto | C10: 300 | E10: =IF(AND(A10=0),"",E9-C10+D10) -> 1315.82
A11: 2024-10-02 | B11: Amministratore | C11: 319.5 | E11: 996.32
A12: 2024-10-04 | B12: Revisione Panda Blu | C12: 80 | E12: 916.32
A13: 2024-10-04 | B13: Bollo Panda Blu | C13: 134.18 | E13: 782.14
A14: 2024-10-06 | B14: Benzina Beverly | C14: 10 | E14: 772.14
A15: 2024-10-08 | B15: Monica | C15: 150 | E15: 622.14
A16: 2024-10-08 | B16: Andrea | C16: 150 | E16: 472.14
A17: 2024-10-08 | B17: Vitto | C17: 32.29 | E17: 439.85
A18: 2024-10-09 | B18: Tim Flexy | C18: 39.9 | E18: 399.95
A19: 2024-10-10 | B19: Benzina Panda Blu | C19: 40.01 | E19: 359.94
A20: 2024-10-10 | B20: Vitto | C20: 500 | E20: -140.06
A21: 2024-10-11 | B21: TimVision | C21: 24.99 | E21: -165.05
A22: 2024-10-13 | B22: Arancio_out | D22: 14000 | E22: 13834.95
A23: 2024-10-13 | B23: FCABank_in | C23: 5001.44 | E23: 8833.51
A24: 2024-10-15 | B24: Rosalba | C24: 85.18 | E24: 8748.33
A25: 2024-10-16 | B25: FCABank_in | C25: 5001.44 | E25: 3746.89
A26: 2024-10-17 | B26: FCABank_in | C26: 4001.44 | E26: -254.55
A27: 2024-10-18 | B27: Varie | C27: 250 | E27: -504.55
A28: 2024-10-19 | B28: ParkinGo | C28: 50 | E28: -554.55
A29: 2024-10-22 | B29: Infostrada | C29: 25.99 | E29: -580.54
A30: 2024-10-22 | B30: Varie | C30: 73 | E30: -653.54
A31: 2024-10-25 | B31: Vitto | C31: 150 | E31: -803.54
A32: 2024-10-27 | B32: Vitto | C32: 400 | E32: -1203.54
B33: Iphone | C33: 85.75
E34: =IF(AND(A34=0),"",E33-C34+D34) -> 
E73: =IF(AND(A73=0),"",E72-C73+D73) -> 

Sheet Novembre
A1: Oggi è | C1: FcaBank | D1: Arancio | E1: Totale
A2: =TODAY() -> 2024-03-31 | C2: =Deposito!$R$20 -> 15000 | D2: =Deposito!$O$20 -> 15000 | E2: =SUM($C$2+$D$2+$E$3) -> 28347.61 | G2: =VLOOKUP($A$2,$A$6:$E$85,5) -> 
E3: =LOOKUP(2,1/(E:E<>""),E:E) -> -1652.39 | G3: =VLOOKUP($A$2,$A$6:$E$85,6) -> 
A4: DATA | B4: OPERAZIONE | C4: DARE | D4: AVERE | E4: SALDO
E5: =Ottobre!$E$3 -> -1203.54 | Y5: Giorni | Z5: Numeri | AA5: Numeri Per Calcolo Interessi | AB5: Interessi Lordi | AC5: Interessi Netti | AD5: Tasso Interessi | AE5: Ritenuta
A6: 2024-11-01 | B6: Genius | C6: 2.15 | E6: =IF(AND(A6=0),"",E5-C6+D6) -> -1205.69 | Y6: =IF(#REF!-A6<0,0,SUM(#REF!-A6)) ->  | Z6: =SUM(C6:D6) -> 2.15 | AA6: =E6*Y6 ->  | AB6: =(AA6*AD6/100)/365 ->  | AC6: =AB6-AE6 ->  | AD6: 1 | AE6: =(AB6*27/100) -> 
A7: 2024-11-02 | B7: Pensione Claudio | D7: 1865.9 | E7: =IF(AND(A7=0),"",E6-C7+D7) -> 660.21
A8: 2024-11-02 | B8: Pensione Rosalba | D8: 1586.02 | E8: 2246.23
A9: 2024-11-02 | B9: Arancio_in | C9: 1001.44 | E9: 1244.79
A10: 2024-11-02 | B10: Carta Click Ricarica | C10: 50 | E10: 1194.79
A11: 2024-11-02 | B11: Tim Claudio | C11: 15 | E11: 1179.79
A12: 2024-11-02 | B12: Tim Rosalba | C12: 15 | E12: 1164.79
A13: 2024-11-03 | B13: Benzina Panda Blu | C13: 50 | E13: 1114.79
A14: 2024-11-05 | B14: Varie | C14: 224 | E14: 890.79
A15: 2024-11-05 | B15: Iphone | C15: 85.75 | E15: 805.04
A16: 2024-11-06 | B16: Assicurazione Panda Blu | C16: 198 | E16: 607.04
A17: 2024-11-06 | B17: Assicurazione 500 | C17: 244.28 | E17: 362.76
A18: 2024-11-07 | B18: Gas Settimo | C18: 49.94 | E18: 312.82
A19: 2024-11-07 | B19: Rosalba | C19: 33 | E19: 279.82
A20: 2024-11-07 | B20: Luxor Cla Ros | C20: 41.72 | E20: 238.1
A21: 2024-11-08 | B21: Monica | C21: 150 | E21: 88.1
A22: 2024-11-08 | B22: Andrea | C22: 150 | E22: -61.9
A23: 2024-11-10 | B23: Vitto | C23: 500 | E23: -561.9
A24: 2024-11-11 | B24: TimVision | C24: 24.99 | E24: -586.89
A25: 2024-11-15 | B25: Andrea | C25: 600.86 | E25: -1187.75
A26: 2024-11-16 | B26: Vitto | C26: 10.79 | E26: -1198.54
A27: 2024-11-20 | B27: Varie | C27: 202.75 | E27: -1401.29
A28: 2024-11-20 | B28: Infostrada | C28: 25.99 | E28: -1427.28
A29: 2024-11-21 | B29: Benzina Panda Blu | C29: 25 | E29: -1452.28
A30: 2024-11-23 | B30: Carta Click Ricarica | C30: 25 | E30: -1477.28
A31: 2024-11-28 | B31: Luce Piazza | C31: 62.32 | E31: -1539.6
A32: 2024-11-29 | B32: Luce Settimo | C32: 112.79 | E32: -1652.39
B33: Iphone | C33: 85.75

Sheet Dicembre
A1: Oggi è | C1: FcaBank | D1: Arancio | E1: Totale
A2: =TODAY() -> 2024-03-31 | C2: =Deposito!$R$20 -> 15000 | D2: =Deposito!$O$20 -> 15000 | E2: =SUM($C$2+$D$2+$E$3) -> 28265.64 | F2: =VLOOKUP(A2,A6:E100,5) -> 
E3: =LOOKUP(2,1/(E:E<>""),E:E) -> -1734.36
A4: DATA | B4: OPERAZIONE | C4: DARE | D4: AVERE | E4: SALDO
E5: =Novembre!$E$3 -> -1652.39
A6: 2024-12-01 | B6: Genius | C6: 2.15 | E6: =IF(AND(A6=0),"",E5-C6+D6) -> -1654.54
A7: 2024-12-01 | B7: Pensione Claudio | D7: 3716.92 | E7: 2062.38 | H7: 3716.92 | J7: =H7-M7 -> 449.77 | M7: 3267.15
A8: 2024-12-01 | B8: Pensione Rosalba | D8: 3339.98 | E8: 5402.36 | H8: 3339.98 | J8: =H8-M8 -> 440.2 | M8: 2899.78
A9: 2024-12-01 | B9: Gas Piazza | C9: 103.6 | E9: 5298.76
A10: 2024-12-01 | B10: Carta Click Ricarica | C10: 30 | E10: =IF(AND(A10=0),"",E9-C10+D10) -> 5268.76
A11: 2024-12-01 | B11: Tim Claudio | C11: 15 | E11: 5253.76
A12: 2024-12-01 | B12: Tim Rosalba | C12: 15 | E12: 5238.76
A13: 2024-12-01 | B13: Vitto | C13: 92.59 | E13: 5146.17
A14: 2024-12-02 | B14: Benzina Panda Blu | C14: 40 | E14: 5106.17
A15: 2024-12-02 | B15: Vitto | C15: 450 | E15: 4656.17
A16: 2024-12-02 | B16: Varie | C16: 19.15 | E16: 4637.02
A17: 2024-12-04 | B17: Tari Settimo | C17: 95 | E17: 4542.02
A18: 2024-12-04 | B18: Amministratore | C18: 320.82 | E18: 4221.2
A19: 2024-12-04 | B19: Arancio_in | C19: 1001.44 | E19: 3219.76
A20: 2024-12-05 | B20: Iphone | C20: 85.75 | E20: 3134.01
A21: 2024-12-05 | B21: Gasolio Golf | C21: 10 | E21: 3124.01
A22: 2024-12-07 | B22: Tim Flexy | C22: 18.8 | E22: 3105.21
A23: 2024-12-07 | B23: Vitto | C23: 67.96 | E23: 3037.25
A24: 2024-12-08 | B24: Monica | C24: 150 | E24: 2887.25
A25: 2024-12-08 | B25: Andrea | C25: 150 | E25: 2737.25
A26: 2024-12-08 | B26: Vitto | C26: 11.15 | E26: 2726.1
A27: 2024-12-09 | B27: Carta Click Ricarica | C27: 60 | E27: 2666.1
A28: 2024-12-11 | B28: TimVision | C28: 24.99 | E28: 2641.11
A29: 2024-12-11 | B29: Natale | C29: 500 | E29: 2141.11
A30: 2024-12-13 | B30: Vitto | C30: 500 | E30: 1641.11
A31: 2024-12-16 | B31: Varie | C31: 65 | E31: 1576.11
A32: 2024-12-16 | B32: Benzina Panda Blu | C32: 30 | E32: 1546.11
A33: 2024-12-18 | B33: Imu Piazza Claudio | C33: 131 | E33: 1415.11
A34: 2024-12-18 | B34: Imu Piazza Rosalba | C34: 131 | E34: 1284.11
A35: 2024-12-18 | B35: Varie | C35: 58.35 | E35: 1225.76 | H35: =MONTH(Tabelle!G2) -> 3 | J35: =Tabelle!G2 -> 2024-03-31
A36: 2024-12-20 | B36: Tari Piazza | C36: 79.5 | E36: 1146.26
A37: 2024-12-21 | B37: Vitto | C37: 165.91 | E37: 980.35 | H37: LUN | I37: MAR | J37: MER | K37: GIO | L37: VEN | M37: SAB | N37: DOM
A38: 2024-12-22 | B38: Infostrada | C38: 25.99 | E38: 954.36 | H38: =DATE(YEAR(J35),MONTH(J35),1)-WEEKDAY(DATE(YEAR(J35),MONTH(J35),1),2)+1 -> 2024-02-26 | I38: =H38+1 -> 2024-02-27 | J38: 2024-02-28 | K38: 2024-02-29 | L38: 2024-03-01 | M38: 2024-03-02 | N38: 2024-03-03
A39: 2024-12-27 | B39: Monica | C39: 702.75 | E39: 251.61 | H39: =N38+1 -> 2024-03-04 | I39: 2024-03-05 | J39: 2024-03-06 | K39: 2024-03-07 | L39: 2024-03-08 | M39: 2024-03-09 | N39: 2024-03-10
A40: 2024-12-27 | B40: Andrea | C40: 700.86 | E40: -449.25 | H40: =N39+1 -> 2024-03-11 | I40: 2024-03-12 | J40: 2024-03-13 | K40: 2024-03-14 | L40: 2024-03-15 | M40: 2024-03-16 | N40: 2024-03-17
A41: 2024-12-27 | B41: Arancio_in | C41: 1001.44 | E41: -1450.69 | H41: =N40+1 -> 2024-03-18 | I41: 2024-03-19 | J41: 2024-03-20 | K41: 2024-03-21 | L41: 2024-03-22 | M41: 2024-03-23 | N41: 2024-03-24
A42: 2024-12-27 | B42: Gas Settimo | C42: 173.53 | E42: -1624.22 | H42: 2024-03-25 | I42: 2024-03-26 | J42: 2024-03-27 | K42: 2024-03-28 | L42: 2024-03-29 | M42: 2024-03-30 | N42: 2024-03-31
A43: 2024-12-28 | B43: Vitto | C43: 100 | E43: -1724.22
A44: 2024-12-31 | B44: Competenze Banca | C44: 10.29 | E44: -1734.51
A45: 2024-12-31 | B45: Competenze Banca | D45: 0.15 | E45: -1734.36
B46: Iphone | C46: 85.75

Sheet Tutto
A4: DATA | B4: OPERAZIONE | C4: DARE | D4: AVERE | E4: SALDO
E5: =Saldo_2023 -> 141.45
A6: 2024-01-01 | B6: Genius | C6: 2.15 | E6: =IF(AND($A6=0),"",$E5-$C6+$D6) -> 139.3 | G6: Etichette di riga | H6: Somma di DARE | I6: Somma di AVERE
A7: 2024-01-01 | B7: Carta Click Ricarica | C7: 50 | E7: =IF(AND($A7=0),"",$E6-$C7+$D7) -> 89.3 | G7: AcquaEnna | H7: 0
A8: 2024-01-02 | B8: Gasolio Golf | C8: 20 | E8: 69.3 | G8: Andrea | H8: 400
A9: 2024-01-03 | B9: Pensione Claudio | D9: 1948.51 | E9: 2017.81 | G9: Arancio_in | H9: 1381.14
A10: 2024-01-03 | B10: Pensione Rosalba | D10: 1676.75 | E10: 3694.56 | G10: Benzina Beverly | H10: 9.42
A11: 2024-01-03 | B11: Benzina Panda Blu | C11: 50.01 | E11: 3644.55 | G11: Benzina Panda Blu | H11: 183.02
A12: 2024-01-03 | B12: Vitto | C12: 750 | E12: 2894.55 | G12: Bollo Golf | H12: 193.08
A13: 2024-01-05 | B13: ParkinGo | C13: 62 | E13: 2832.55 | G13: Carta Click Ricarica | H13: 100
A14: 2024-01-05 | B14: Iphone | C14: 85.75 | E14: 2746.8 | G14: Claudio | H14: 44.2
A15: 2024-01-08 | B15: Monica | C15: 150 | E15: 2596.8 | G15: Gasolio Golf | H15: 55
A16: 2024-01-08 | B16: Andrea | C16: 150 | E16: 2446.8 | G16: Genius | H16: 4.3
A17: 2024-01-10 | B17: Arancio_in | C17: 1381.14 | E17: 1065.66 | G17: Infostrada | H17: 51.46
A18: 2024-01-10 | B18: AcquaEnna | C18: 0 | E18: 1065.66 | G18: Iphone | H18: 171.5
A19: 2024-01-11 | B19: TimVision | C19: 24.99 | E19: 1040.67 | G19: Luce Piazza | H19: 48.93
A20: 2024-01-15 | B20: Vitto | C20: 300 | E20: 740.67 | G20: Luce Settimo | H20: 126.3
A21: 2024-01-16 | B21: Bollo Golf | C21: 193.08 | E21: 547.59 | G21: Monica | H21: 400
A22: 2024-01-16 | B22: Gasolio Golf | C22: 10 | E22: 537.59 | G22: ParkinGo | H22: 62
A23: 2024-01-18 | B23: Claudio | C23: 44.2 | E23: 493.39 | G23: Pensione Claudio | I23: 3898.36
A24: 2024-01-19 | B24: Rosalba | C24: 11.44 | E24: 481.95 | G24: Pensione Rosalba | I24: 3353.53
A25: 2024-01-21 | B25: Infostrada | C25: 25.99 | E25: 455.96 | G25: Rosalba | H25: 11.44
A26: 2024-01-22 | B26: Varie | C26: 30 | E26: 425.96 | G26: Tim Claudio | H26: 15
A27: 2024-01-22 | B27: Benzina Panda Blu | C27: 50.01 | E27: 375.95 | G27: Tim Flexy | H27: 11.8
A28: 2024-01-29 | B28: Vitto | C28: 250 | E28: 125.95 | G28: Tim Rosalba | H28: 15
A29: 2024-02-01 | B29: Genius | C29: 2.15 | E29: 123.8 | G29: TimVision | H29: 54.98
A30: 2024-02-01 | B30: Pensione Claudio | D30: 1949.85 | E30: 2073.65 | G30: Varie | H30: 342
A31: 2024-02-01 | B31: Pensione Rosalba | D31: 1676.78 | E31: 3750.43 | G31: Vitto | H31: 2923.26
A32: 2024-02-01 | B32: Carta Click Ricarica | C32: 50 | E32: 3700.43 | G32: (vuoto)
A33: 2024-02-01 | B33: Tim Rosalba | C33: 15 | E33: 3685.43 | G33: Totale complessivo | H33: 6603.83 | I33: 7251.89
A34: 2024-02-01 | B34: Tim Claudio | C34: 15 | E34: 3670.43
A35: 2024-02-01 | B35: Vitto | C35: 300 | E35: 3370.43
A36: 2024-02-02 | B36: Luce Settimo | C36: 126.3 | E36: 3244.13
A37: 2024-02-02 | B37: Luce Piazza | C37: 48.93 | E37: 3195.2
A38: 2024-02-04 | B38: Vitto | C38: 31.31 | E38: 3163.89
A39: 2024-02-05 | B39: Gasolio Golf | C39: 10 | E39: 3153.89
A40: 2024-02-05 | B40: Iphone | C40: 85.75 | E40: 3068.14
A41: 2024-02-05 | B41: Benzina Panda Blu | C41: 35 | E41: 3033.14
A42: 2024-02-08 | B42: Tim Flexy | C42: 11.8 | E42: 3021.34
A43: 2024-02-08 | B43: Andrea | C43: 250 | E43: 2771.34
A44: 2024-02-09 | B44: Vitto | C44: 21.4 | E44: 2749.94
A45: 2024-02-11 | B45: TimVision | C45: 29.99 | E45: 2719.95
A46: 2024-02-13 | B46: Benzina Panda Blu | C46: 22.99 | E46: 2696.96
A47: 2024-02-14 | B47: Vitto | C47: 550 | E47: 2146.96
A48: 2024-02-15 | B48: Varie | C48: 50 | E48: 2096.96
A49: 2024-02-17 | B49: Gasolio Golf | C49: 15 | E49: 2081.96
A50: 2024-02-18 | B50: Monica | C50: 250 | E50: 1831.96
A51: 2024-02-19 | B51: Benzina Beverly | C51: 9.42 | E51: 1822.54
A52: 2024-02-20 | B52: Varie | C52: 72 | E52: 1750.54
A53: 2024-02-21 | B53: Varie | C53: 90 | E53: 1660.54
A54: 2024-02-21 | B54: Infostrada | C54: 25.47 | E54: 1635.07
A55: 2024-02-21 | B55: Vitto | C55: 20.55 | E55: 1614.52
A56: 2024-02-23 | B56: Varie | C56: 100 | E56: 1514.52
A57: 2024-02-24 | B57: Benzina Panda Blu | C57: 25.01 | E57: 1489.51
A58: 2024-02-29 | B58: Vitto | C58: 700 | E58: 789.51
A59: 2024-03-01 | B59: Genius | C59: 2.15 | E59: 787.36 | J59: =GETPIVOTDATA("Somma di AVERE",$G$6)-GETPIVOTDATA("Somma di DARE",$G$6) -> 648.06
A60: 2024-03-01 | B60: Pensione Claudio | D60: 2006.02 | E60: 2793.38
A61: 2024-03-01 | B61: Pensione Rosalba | D61: 1726.57 | E61: 4519.95
A62: 2024-03-01 | B62: Tim Rosalba | C62: 15 | E62: 4504.95
A63: 2024-03-01 | B63: Tim Claudio | C63: 15 | E63: 4489.95
A64: 2024-03-01 | B64: Carta Click Ricarica | C64: 50 | E64: 4439.95
A65: 2024-03-04 | B65: Arancio_in | C65: 1501.44 | E65: 2938.51
A66: 2024-03-05 | B66: Benzina Panda Blu | C66: 50 | E66: 2888.51
A67: 2024-03-05 | B67: Iphone | C67: 85.75 | E67: 2802.76
A68: 2024-03-05 | B68: Varie | C68: 81 | E68: 2721.76
A69: 2024-03-06 | B69: Assicurazione Golf | C69: 200 | E69: 2521.76
A70: 2024-03-06 | B70: Gas Settimo | C70: 366.15 | E70: 2155.61
A71: 2024-03-06 | B71: Carta Click Ricarica | C71: 50 | E71: =IF(AND($A71=0),"",$E70-$C71+$D71) -> 2105.61
A72: 2024-03-08 | B72: Andrea | C72: 250 | E72: 1855.61
A73: 2024-03-08 | B73: Tim Flexy | C73: 12.9 | E73: 1842.71
A74: 2024-03-11 | B74: TimVision | C74: 33.98 | E74: 1808.73
A75: 2024-03-11 | B75: Monica | D75: 174.84 | E75: 1983.57
A76: 2024-03-13 | B76: Benzina Beverly | C76: 10 | E76: 1973.57
A77: 2024-03-14 | B77: Vitto | C77: 500 | E77: 1473.57
A78: 2024-03-15 | B78: Varie | D78: 367.47 | E78: 1841.04
A79: 2024-03-16 | B79: Benzina Panda Blu | C79: 26 | E79: 1815.04
A80: 2024-03-18 | B80: Monica | C80: 250 | E80: 1565.04
A81: 2024-03-19 | B81: Vitto | C81: 250 | E81: 1315.04
A82: 2024-03-23 | B82: Infostrada | C82: 25.99 | E82: 1289.05
A83: 2024-03-25 | B83: Varie | C83: 20.1 | E83: 1268.95
A84: 2024-03-26 | B84: Benzina Panda Blu | C84: 47.5 | E84: 1221.45
A85: 2024-03-28 | B85: Luce Piazza | C85: 63.16 | E85: 1158.29
A86: 2024-03-28 | B86: Luce Settimo | C86: 138.09 | E86: 1020.2
A87: 2024-03-31 | B87: Competenze Banca | C87: 10.33 | E87: 1009.87
A88: 2024-03-31 | B88: AcquaEnna | C88: 324.23 | E88: 685.64

Sheet Click
C1: Oggi è | E1: Totale Dare | F1: Totale Avere | H1: Saldo Euro | J1: =VLOOKUP($C$2,$C4:$H163,6) -> 10.95
C2: =TODAY() -> 2024-03-31 | E2: =SUM(E4:E287) -> 391.36 | F2: =SUM(F4:F20) -> 196 | H2: =LOOKUP(2,1/(H:H<>""),H:H) -> 10.95
C3: DATA | D3: OPERAZIONE | E3: DARE | F3: AVERE | G3: NOME | H3: € SALDO
C4: 2023-12-31 | H4: 7.31
C5: 2024-01-01 | D5: Accredito | F5: 49 | H5: =IF(AND(C5=0),"",$H4-$E5+$F5) -> 56.31
C6: 2024-01-03 | D6: Prelievo | E6: 9.99 | G6: Iliad | H6: =IF(AND(C6=0),"",$H5-$E6+$F6) -> 46.32
C7: 2024-01-08 | D7: Prelievo | E7: 2.99 | G7: Apple Rosalba | H7: 43.33
C8: 2024-01-21 | D8: Prelievo | E8: 2.57 | G8: EasyPark | H8: 40.76
C9: 2024-01-25 | D9: Prelievo | E9: 29.9 | G9: Svinando | H9: 10.86
C10: 2024-01-28 | D10: Prelievo | E10: 7.59 | G10: EasyPark | H10: 3.27
C11: 2024-02-01 | D11: Accredito | F11: 49 | H11: 52.27
C12: 2024-02-03 | D12: Prelievo | E12: 9.99 | G12: Iliad | H12: 42.28
C13: 2024-02-05 | D13: Prelievo | E13: 9.99 | G13: Amazon | H13: 32.29
C14: 2024-02-08 | D14: Prelievo | E14: 2.99 | G14: Apple Rosalba | H14: =IF(AND(C14=0),"",$H13-$E14+$F14) -> 29.3
C15: 2024-02-18 | D15: Prelievo | E15: 6.32 | G15: EasyPark | H15: =IF(AND(C15=0),"",$H14-$E15+$F15) -> 22.98
C16: 2024-02-25 | D16: Prelievo | E16: 7.59 | G16: EasyPark | H16: 15.39
C17: 2024-02-29 | D17: Prelievo | E17: 3.8 | G17: EasyPark | H17: 11.59
C18: 2024-03-01 | D18: Accredito | F18: 49 | H18: 60.59
C19: 2024-03-03 | D19: Prelievo | E19: 9.99 | G19: Iliad | H19: 50.6
C20: 2024-03-06 | D20: Accredito | F20: 49 | H20: 99.6
C21: 2024-03-06 | D21: Prelievo | E21: 59.96 | G21: Ryanair | H21: 39.64
C22: 2024-03-06 | D22: Accredito | F22: 199 | H22: 238.64
C23: 2024-03-06 | D23: Prelievo | E23: 182.62 | G23: Prima Assic. Golf | H23: 56.02
C24: 2024-03-08 | D24: Prelievo | E24: 2.99 | G24: Apple Rosalba | H24: 53.03
C25: 2024-03-09 | D25: Prelievo | E25: 5.06 | G25: EasyPark | H25: 47.97
C26: 2024-03-18 | D26: Prelievo | E26: 20.8 | G26: Amazon | H26: 27.17
C27: 2024-03-23 | D27: Prelievo | E27: 1.74 | G27: EasyPark | H27: 25.43
C28: 2024-03-24 | D28: Prelievo | E28: 8.99 | G28: Amazon | H28: 16.44
C29: 2024-03-28 | D29: Prelievo | E29: 5.49 | G29: Netflix | H29: 10.95
H68: =IF(AND(C68=0),"",$H67-$E68+$F68) -> 
H85: =IF(AND(C85=0),"",$H84-$E85+$F85) -> 
H86: =IF(AND(C86=0),"",$H85-$E86+$F86) -> 
H87: =IF(AND(C87=0),"",$H86-$E87+$F87) -> 
H88: =IF(AND(C88=0),"",$H87-$E88+$F88) -> 

Sheet Deposito
B2: 2023-10-18 | M2: =SUM(U7+U5+U6) -> 30789.51
B3: Vincolati | C3: Interessi | D3: Totale | E3: Tassa | F3: Totale tasse | G3: Netto annuale | H3: Netto mensile | I3: Netto giorno
B4: 15000 | C4: 0.043 | D4: =B4*C4 -> 645 | E4: 0.2 | F4: =D4*E4 -> 129 | G4: =D4-F4 -> 516 | H4: =G4/12 -> 43 | I4: =H4/31 -> 1.387096774 | N4: Arancio | Q4: FcaBank
T5: Arancio | U5: =LOOKUP(2,1/(O:O<>""),O:O) -> 15000
B6: Vincolati | C6: importo | D6: tasso lordo | E6: tasso netto | F6: imposta bollo | G6: Interesse netto annuale | H6: Interesse trimestrale | I6: Vincolo | N6: 2024-01-01 | O6: 12000 | Q6: 2023-10-18 | R6: 15000 | T6: FcaBank | U6: =LOOKUP(2,1/(R:R<>""),R:R) -> 15000
B7: 2023-10-18 | C7: 15000 | D7: 0.043 | E7: =D7*0.74 -> 0.03182 | F7: 0.002 | G7: =(C7*E7)-(C7*F7) -> 447.3 | H7: =C7*E7/4 -> 119.325 | I7: 12M | T7: Unicredit | U7: =Febbraio!E3 -> 789.51
B8: 2023-01-18 | F8: 1.64 | H8: 119 | N8: Gennaio | O8: =1379.7+120.3 -> 1500 | Q8: Gennaio
N9: Febbraio | O9: 1500 | Q9: Febbraio | T9: Totali | U9: =SUM(U5:U8) -> 30789.51
N10: Marzo | Q10: Marzo
N11: Aprile | Q11: Aprile
N12: Maggio | Q12: Maggio
N13: Giugno | Q13: Giugno
N14: Luglio | Q14: Luglio
N15: Agosto | Q15: Agosto
N16: Settembre | Q16: Settembre
N17: Ottobre | Q17: Ottobre
N18: Novembre | Q18: Novembre
N19: Dicembre | Q19: Dicembre
O20: =SUM(O8:O19)+$O$6 -> 15000 | R20: =SUM(R8:R19)+$R$6 -> 15000

Sheet Planner
A1: PLANNER
A2: MEDIE | B2: OPERAZIONI | C2: Gennaio | O2: TOTALI | P2: % | Q2: OPERAZIONI
A4: =AVERAGE(C4:N4) -> 108.0766667 | B4: AcquaEnna | C4: =SUMIF(Gennaio!$B$6:$B$100,$B4,Gennaio!$C$6:$C$100) -> 0 | D4: =SUMIF(Febbraio!$B$6:$B$100,$B4,Febbraio!$C$6:$C$100) -> 0 | E4: =SUMIF(Marzo!$B$6:$B$100,$B4,Marzo!$C$6:$C$100) -> 324.23 | O4: =SUM($C4:$N4) -> 324.23 | P4: =IF($O4,$O4/$O$68,"") -> 0.0149347093 | Q4: AcquaEnna
A5: 0 | B5: Amministratore | C5: =SUMIF(Gennaio!$B$6:$B$100,$B5,Gennaio!$C$6:$C$100) -> 0 | D5: =SUMIF(Febbraio!$B$6:$B$100,$B5,Febbraio!$C$6:$C$100) -> 0 | E5: =SUMIF(Marzo!$B$6:$B$100,$B5,Marzo!$C$6:$C$100) -> 0 | O5: =SUM($C5:$N5) -> 0 | P5: =IF($O5,$O5/$O$68,"") ->  | Q5: Amministratore
A6: 216.6666667 | B6: Andrea | C6: =SUMIF(Gennaio!$B$6:$B$100,$B6,Gennaio!$C$6:$C$100) -> 150 | D6: =SUMIF(Febbraio!$B$6:$B$100,$B6,Febbraio!$C$6:$C$100) -> 250 | E6: =SUMIF(Marzo!$B$6:$B$100,$B6,Marzo!$C$6:$C$100) -> 250 | O6: 650 | P6: 0.02994035421 | Q6: Andrea
A7: 960.86 | B7: Arancio_in | C7: =SUMIF(Gennaio!$B$6:$B$100,$B7,Gennaio!$C$6:$C$100) -> 1381.14 | D7: =SUMIF(Febbraio!$B$6:$B$100,$B7,Febbraio!$C$6:$C$100) -> 0 | E7: =SUMIF(Marzo!$B$6:$B$100,$B7,Marzo!$C$6:$C$100) -> 1501.44 | O7: 2882.58 | P7: 0.1327776404 | Q7: Arancio_in
A8: 0 | B8: Arancio_out | C8: =SUMIF(Gennaio!$B$6:$B$100,$B8,Gennaio!$C$6:$C$100) -> 0 | D8: =SUMIF(Febbraio!$B$6:$B$100,$B8,Febbraio!$C$6:$C$100) -> 0 | E8: =SUMIF(Marzo!$B$6:$B$100,$B8,Marzo!$C$6:$C$100) -> 0 | O8: 0 | Q8: Arancio_out
A9: 0 | B9: Aruba | C9: =SUMIF(Gennaio!$B$6:$B$100,$B9,Gennaio!$C$6:$C$100) -> 0 | D9: =SUMIF(Febbraio!$B$6:$B$100,$B9,Febbraio!$C$6:$C$100) -> 0 | E9: =SUMIF(Marzo!$B$6:$B$100,$B9,Marzo!$C$6:$C$100) -> 0 | O9: 0 | Q9: Aruba
A10: 0 | B10: Assicurazione 500 | C10: =SUMIF(Gennaio!$B$6:$B$100,$B10,Gennaio!$C$6:$C$100) -> 0 | D10: =SUMIF(Febbraio!$B$6:$B$100,$B10,Febbraio!$C$6:$C$100) -> 0 | E10: =SUMIF(Marzo!$B$6:$B$100,$B10,Marzo!$C$6:$C$100) -> 0 | O10: 0 | Q10: Assicurazione 500
A11: 0 | B11: Assicurazione Beverly | C11: =SUMIF(Gennaio!$B$6:$B$100,$B11,Gennaio!$C$6:$C$100) -> 0 | D11: =SUMIF(Febbraio!$B$6:$B$100,$B11,Febbraio!$C$6:$C$100) -> 0 | E11: =SUMIF(Marzo!$B$6:$B$100,$B11,Marzo!$C$6:$C$100) -> 0 | O11: 0 | Q11: Assicurazione Beverly
A12: 66.66666667 | B12: Assicurazione Golf | C12: =SUMIF(Gennaio!$B$6:$B$100,$B12,Gennaio!$C$6:$C$100) -> 0 | D12: =SUMIF(Febbraio!$B$6:$B$100,$B12,Febbraio!$C$6:$C$100) -> 0 | E12: =SUMIF(Marzo!$B$6:$B$100,$B12,Marzo!$C$6:$C$100) -> 200 | O12: 200 | P12: 0.009212416679 | Q12: Assicurazione Golf
A13: 0 | B13: Assicurazione Panda Blu | C13: =SUMIF(Gennaio!$B$6:$B$100,$B13,Gennaio!$C$6:$C$100) -> 0 | D13: =SUMIF(Febbraio!$B$6:$B$100,$B13,Febbraio!$C$6:$C$100) -> 0 | E13: =SUMIF(Marzo!$B$6:$B$100,$B13,Marzo!$C$6:$C$100) -> 0 | O13: 0 | Q13: Assicurazione Panda Blu
A14: 0 | B14: Assicurazione Panda Gialla | C14: =SUMIF(Gennaio!$B$6:$B$100,$B14,Gennaio!$C$6:$C$100) -> 0 | D14: =SUMIF(Febbraio!$B$6:$B$100,$B14,Febbraio!$C$6:$C$100) -> 0 | E14: =SUMIF(Marzo!$B$6:$B$100,$B14,Marzo!$C$6:$C$100) -> 0 | O14: 0 | Q14: Assicurazione Panda Gialla
A15: 6.473333333 | B15: Benzina Beverly | C15: =SUMIF(Gennaio!$B$6:$B$100,$B15,Gennaio!$C$6:$C$100) -> 0 | D15: =SUMIF(Febbraio!$B$6:$B$100,$B15,Febbraio!$C$6:$C$100) -> 9.42 | E15: =SUMIF(Marzo!$B$6:$B$100,$B15,Marzo!$C$6:$C$100) -> 10 | O15: 19.42 | P15: 0.0008945256596 | Q15: Benzina Beverly
A16: 102.1733333 | B16: Benzina Panda Blu | C16: =SUMIF(Gennaio!$B$6:$B$100,$B16,Gennaio!$C$6:$C$100) -> 100.02 | D16: =SUMIF(Febbraio!$B$6:$B$100,$B16,Febbraio!$C$6:$C$100) -> 83 | E16: =SUMIF(Marzo!$B$6:$B$100,$B16,Marzo!$C$6:$C$100) -> 123.5 | O16: 306.52 | P16: 0.0141189498 | Q16: Benzina Panda Blu
A17: 0 | B17: Benzina Panda Gialla | C17: =SUMIF(Gennaio!$B$6:$B$100,$B17,Gennaio!$C$6:$C$100) -> 0 | D17: =SUMIF(Febbraio!$B$6:$B$100,$B17,Febbraio!$C$6:$C$100) -> 0 | E17: =SUMIF(Marzo!$B$6:$B$100,$B17,Marzo!$C$6:$C$100) -> 0 | O17: 0 | Q17: Benzina Panda Gialla
A18: 0 | B18: Bollo 500 | C18: =SUMIF(Gennaio!$B$6:$B$100,$B18,Gennaio!$C$6:$C$100) -> 0 | D18: =SUMIF(Febbraio!$B$6:$B$100,$B18,Febbraio!$C$6:$C$100) -> 0 | E18: =SUMIF(Marzo!$B$6:$B$100,$B18,Marzo!$C$6:$C$100) -> 0 | O18: 0 | Q18: Bollo 500
A19: 0 | B19: Bollo Beverly | C19: =SUMIF(Gennaio!$B$6:$B$100,$B19,Gennaio!$C$6:$C$100) -> 0 | D19: =SUMIF(Febbraio!$B$6:$B$100,$B19,Febbraio!$C$6:$C$100) -> 0 | E19: =SUMIF(Marzo!$B$6:$B$100,$B19,Marzo!$C$6:$C$100) -> 0 | O19: 0 | Q19: Bollo Beverly
A20: 64.36 | B20: Bollo Golf | C20: =SUMIF(Gennaio!$B$6:$B$100,$B20,Gennaio!$C$6:$C$100) -> 193.08 | D20: =SUMIF(Febbraio!$B$6:$B$100,$B20,Febbraio!$C$6:$C$100) -> 0 | E20: =SUMIF(Marzo!$B$6:$B$100,$B20,Marzo!$C$6:$C$100) -> 0 | O20: 193.08 | P20: 0.008893667062 | Q20: Bollo Golf
A21: 0 | B21: Bollo Panda Blu | C21: =SUMIF(Gennaio!$B$6:$B$100,$B21,Gennaio!$C$6:$C$100) -> 0 | D21: =SUMIF(Febbraio!$B$6:$B$100,$B21,Febbraio!$C$6:$C$100) -> 0 | E21: =SUMIF(Marzo!$B$6:$B$100,$B21,Marzo!$C$6:$C$100) -> 0 | O21: 0 | Q21: Bollo Panda Blu
A22: 0 | B22: Bollo Panda Gialla | C22: =SUMIF(Gennaio!$B$6:$B$100,$B22,Gennaio!$C$6:$C$100) -> 0 | D22: =SUMIF(Febbraio!$B$6:$B$100,$B22,Febbraio!$C$6:$C$100) -> 0 | E22: =SUMIF(Marzo!$B$6:$B$100,$B22,Marzo!$C$6:$C$100) -> 0 | O22: 0 | Q22: Bollo Panda Gialla
A23: 0 | B23: Bonifico | C23: =SUMIF(Gennaio!$B$6:$B$100,$B23,Gennaio!$C$6:$C$100) -> 0 | D23: =SUMIF(Febbraio!$B$6:$B$100,$B23,Febbraio!$C$6:$C$100) -> 0 | E23: =SUMIF(Marzo!$B$6:$B$100,$B23,Marzo!$C$6:$C$100) -> 0 | O23: 0 | Q23: Bonifico
A24: 0 | B24: Bonifico da FCA Bank | C24: =SUMIF(Gennaio!$B$6:$B$100,$B24,Gennaio!$C$6:$C$100) -> 0 | D24: =SUMIF(Febbraio!$B$6:$B$100,$B24,Febbraio!$C$6:$C$100) -> 0 | E24: =SUMIF(Marzo!$B$6:$B$100,$B24,Marzo!$C$6:$C$100) -> 0 | O24: 0 | Q24: Bonifico da FCA Bank
A25: 66.66666667 | B25: Carta Click Ricarica | C25: =SUMIF(Gennaio!$B$6:$B$100,$B25,Gennaio!$C$6:$C$100) -> 50 | D25: =SUMIF(Febbraio!$B$6:$B$100,$B25,Febbraio!$C$6:$C$100) -> 50 | E25: =SUMIF(Marzo!$B$6:$B$100,$B25,Marzo!$C$6:$C$100) -> 100 | O25: 200 | P25: 0.009212416679 | Q25: Carta Click Ricarica
A26: 0 | B26: Clarima | C26: =SUMIF(Gennaio!$B$6:$B$100,$B26,Gennaio!$C$6:$C$100) -> 0 | D26: =SUMIF(Febbraio!$B$6:$B$100,$B26,Febbraio!$C$6:$C$100) -> 0 | E26: =SUMIF(Marzo!$B$6:$B$100,$B26,Marzo!$C$6:$C$100) -> 0 | O26: 0 | Q26: Clarima
A27: 14.73333333 | B27: Claudio | C27: =SUMIF(Gennaio!$B$6:$B$100,$B27,Gennaio!$C$6:$C$100) -> 44.2 | D27: =SUMIF(Febbraio!$B$6:$B$100,$B27,Febbraio!$C$6:$C$100) -> 0 | E27: =SUMIF(Marzo!$B$6:$B$100,$B27,Marzo!$C$6:$C$100) -> 0 | O27: 44.2 | P27: 0.002035944086 | Q27: Claudio
A28: 3.443333333 | B28: Competenze Banca | C28: =SUMIF(Gennaio!$B$6:$B$100,$B28,Gennaio!$C$6:$C$100) -> 0 | D28: =SUMIF(Febbraio!$B$6:$B$100,$B28,Febbraio!$C$6:$C$100) -> 0 | E28: =SUMIF(Marzo!$B$6:$B$100,$B28,Marzo!$C$6:$C$100) -> 10.33 | O28: 10.33 | P28: 0.0004758213215 | Q28: Competenze Banca
A29: 0 | B29: Entrate Varie | C29: =SUMIF(Gennaio!$B$6:$B$100,$B29,Gennaio!$C$6:$C$100) -> 0 | D29: =SUMIF(Febbraio!$B$6:$B$100,$B29,Febbraio!$C$6:$C$100) -> 0 | E29: =SUMIF(Marzo!$B$6:$B$100,$B29,Marzo!$C$6:$C$100) -> 0 | O29: 0 | Q29: Entrate Varie
A30: 0 | B30: FCABank_in | C30: =SUMIF(Gennaio!$B$6:$B$100,$B30,Gennaio!$C$6:$C$100) -> 0 | D30: =SUMIF(Febbraio!$B$6:$B$100,$B30,Febbraio!$C$6:$C$100) -> 0 | E30: =SUMIF(Marzo!$B$6:$B$100,$B30,Marzo!$C$6:$C$100) -> 0 | O30: 0 | Q30: FCABank_in
A31: 0 | B31: Gas Piazza | C31: =SUMIF(Gennaio!$B$6:$B$100,$B31,Gennaio!$C$6:$C$100) -> 0 | D31: =SUMIF(Febbraio!$B$6:$B$100,$B31,Febbraio!$C$6:$C$100) -> 0 | E31: =SUMIF(Marzo!$B$6:$B$100,$B31,Marzo!$C$6:$C$100) -> 0 | O31: 0 | Q31: Gas Piazza
A32: 122.05 | B32: Gas Settimo | C32: =SUMIF(Gennaio!$B$6:$B$100,$B32,Gennaio!$C$6:$C$100) -> 0 | D32: =SUMIF(Febbraio!$B$6:$B$100,$B32,Febbraio!$C$6:$C$100) -> 0 | E32: =SUMIF(Marzo!$B$6:$B$100,$B32,Marzo!$C$6:$C$100) -> 366.15 | O32: 366.15 | P32: 0.01686563184 | Q32: Gas Settimo
A33: 18.33333333 | B33: Gasolio Golf | C33: =SUMIF(Gennaio!$B$6:$B$100,$B33,Gennaio!$C$6:$C$100) -> 30 | D33: =SUMIF(Febbraio!$B$6:$B$100,$B33,Febbraio!$C$6:$C$100) -> 25 | E33: =SUMIF(Marzo!$B$6:$B$100,$B33,Marzo!$C$6:$C$100) -> 0 | O33: 55 | P33: 0.002533414587 | Q33: Gasolio Golf
A34: 2.15 | B34: Genius | C34: =SUMIF(Gennaio!$B$6:$B$100,$B34,Gennaio!$C$6:$C$100) -> 2.15 | D34: =SUMIF(Febbraio!$B$6:$B$100,$B34,Febbraio!$C$6:$C$100) -> 2.15 | E34: =SUMIF(Marzo!$B$6:$B$100,$B34,Marzo!$C$6:$C$100) -> 2.15 | O34: 6.45 | P34: 0.0002971004379 | Q34: Genius
A35: 0 | B35: Iliad Matilde | C35: =SUMIF(Gennaio!$B$6:$B$100,$B35,Gennaio!$C$6:$C$100) -> 0 | D35: =SUMIF(Febbraio!$B$6:$B$100,$B35,Febbraio!$C$6:$C$100) -> 0 | E35: =SUMIF(Marzo!$B$6:$B$100,$B35,Marzo!$C$6:$C$100) -> 0 | O35: 0 | Q35: Iliad Matilde
A36: =AVERAGE(C36:N36) -> 0 | B36: Imu Piazza Claudio | C36: =SUMIF(Gennaio!$B$6:$B$100,$B36,Gennaio!$C$6:$C$100) -> 0 | D36: =SUMIF(Febbraio!$B$6:$B$100,$B36,Febbraio!$C$6:$C$100) -> 0 | E36: =SUMIF(Marzo!$B$6:$B$100,$B36,Marzo!$C$6:$C$100) -> 0 | O36: 0 | Q36: Imu Piazza Claudio
A37: 0 | B37: Imu Piazza Rosalba | C37: =SUMIF(Gennaio!$B$6:$B$100,$B37,Gennaio!$C$6:$C$100) -> 0 | D37: =SUMIF(Febbraio!$B$6:$B$100,$B37,Febbraio!$C$6:$C$100) -> 0 | E37: =SUMIF(Marzo!$B$6:$B$100,$B37,Marzo!$C$6:$C$100) -> 0 | O37: 0 | Q37: Imu Piazza Rosalba
A38: 25.81666667 | B38: Infostrada | C38: =SUMIF(Gennaio!$B$6:$B$100,$B38,Gennaio!$C$6:$C$100) -> 25.99 | D38: =SUMIF(Febbraio!$B$6:$B$100,$B38,Febbraio!$C$6:$C$100) -> 25.47 | E38: =SUMIF(Marzo!$B$6:$B$100,$B38,Marzo!$C$6:$C$100) -> 25.99 | O38: 77.45 | P38: 0.003567508359 | Q38: Infostrada
A39: 37.36333333 | B39: Luce Piazza | C39: =SUMIF(Gennaio!$B$6:$B$100,$B39,Gennaio!$C$6:$C$100) -> 0 | D39: =SUMIF(Febbraio!$B$6:$B$100,$B39,Febbraio!$C$6:$C$100) -> 48.93 | E39: =SUMIF(Marzo!$B$6:$B$100,$B39,Marzo!$C$6:$C$100) -> 63.16 | O39: 112.09 | P39: 0.005163098928 | Q39: Luce Piazza
A40: 88.13 | B40: Luce Settimo | C40: =SUMIF(Gennaio!$B$6:$B$100,$B40,Gennaio!$C$6:$C$100) -> 0 | D40: =SUMIF(Febbraio!$B$6:$B$100,$B40,Febbraio!$C$6:$C$100) -> 126.3 | E40: =SUMIF(Marzo!$B$6:$B$100,$B40,Marzo!$C$6:$C$100) -> 138.09 | O40: 264.39 | P40: 0.01217835423 | Q40: Luce Settimo
A41: 0 | B41: Luxor Cla Ros | C41: =SUMIF(Gennaio!$B$6:$B$100,$B41,Gennaio!$C$6:$C$100) -> 0 | D41: =SUMIF(Febbraio!$B$6:$B$100,$B41,Febbraio!$C$6:$C$100) -> 0 | E41: =SUMIF(Marzo!$B$6:$B$100,$B41,Marzo!$C$6:$C$100) -> 0 | O41: 0 | Q41: Luxor Cla Ros
A42: 0 | B42: Matilde | C42: =SUMIF(Gennaio!$B$6:$B$100,$B42,Gennaio!$C$6:$C$100) -> 0 | D42: =SUMIF(Febbraio!$B$6:$B$100,$B42,Febbraio!$C$6:$C$100) -> 0 | E42: =SUMIF(Marzo!$B$6:$B$100,$B42,Marzo!$C$6:$C$100) -> 0 | O42: 0 | Q42: Matilde
A43: 216.6666667 | B43: Monica | C43: =SUMIF(Gennaio!$B$6:$B$100,$B43,Gennaio!$C$6:$C$100) -> 150 | D43: =SUMIF(Febbraio!$B$6:$B$100,$B43,Febbraio!$C$6:$C$100) -> 250 | E43: =SUMIF(Marzo!$B$6:$B$100,$B43,Marzo!$C$6:$C$100) -> 250 | O43: 650 | P43: 0.02994035421 | Q43: Monica
A44: 0 | B44: Natale | C44: =SUMIF(Gennaio!$B$6:$B$100,$B44,Gennaio!$C$6:$C$100) -> 0 | D44: =SUMIF(Febbraio!$B$6:$B$100,$B44,Febbraio!$C$6:$C$100) -> 0 | E44: =SUMIF(Marzo!$B$6:$B$100,$B44,Marzo!$C$6:$C$100) -> 0 | O44: 0 | Q44: Natale
A45: 20.66666667 | B45: ParkinGo | C45: =SUMIF(Gennaio!$B$6:$B$100,$B45,Gennaio!$C$6:$C$100) -> 62 | D45: =SUMIF(Febbraio!$B$6:$B$100,$B45,Febbraio!$C$6:$C$100) -> 0 | E45: =SUMIF(Marzo!$B$6:$B$100,$B45,Marzo!$C$6:$C$100) -> 0 | O45: 62 | P45: 0.002855849171 | Q45: ParkinGo
A46: 1968.126667 | B46: Pensione Claudio | C46: =SUMIF(Gennaio!$B$6:$B$100,$B46,Gennaio!$D$6:$D$100) -> 1948.51 | D46: =SUMIF(Febbraio!$B$6:$B$100,$B46,Febbraio!$D$6:$D$100) -> 1949.85 | E46: =SUMIF(Marzo!$B$6:$B$100,$B46,Marzo!$D$6:$D$100) -> 2006.02 | O46: 5904.38 | P46: 0.271968044 | Q46: Pensione Claudio
A47: 1693.366667 | B47: Pensione Rosalba | C47: =SUMIF(Gennaio!$B$6:$B$100,$B47,Gennaio!$D$6:$D$100) -> 1676.75 | D47: =SUMIF(Febbraio!$B$6:$B$100,$B47,Febbraio!$D$6:$D$100) -> 1676.78 | E47: =SUMIF(Marzo!$B$6:$B$100,$B47,Marzo!$D$6:$D$100) -> 1726.57 | O47: 5080.1 | P47: 0.2339999899 | Q47: Pensione Rosalba
A48: 0 | B48: Revisione 500 | C48: =SUMIF(Gennaio!$B$6:$B$100,$B48,Gennaio!$C$6:$C$100) -> 0 | D48: =SUMIF(Febbraio!$B$6:$B$100,$B48,Febbraio!$C$6:$C$100) -> 0 | E48: =SUMIF(Marzo!$B$6:$B$100,$B48,Marzo!$C$6:$C$100) -> 0 | O48: 0 | Q48: Revisione 500
A49: 0 | B49: Revisione Beverly | C49: =SUMIF(Gennaio!$B$6:$B$100,$B49,Gennaio!$C$6:$C$100) -> 0 | D49: =SUMIF(Febbraio!$B$6:$B$100,$B49,Febbraio!$C$6:$C$100) -> 0 | E49: =SUMIF(Marzo!$B$6:$B$100,$B49,Marzo!$C$6:$C$100) -> 0 | O49: 0 | Q49: Revisione Beverly
A50: 0 | B50: Revisione Golf | C50: =SUMIF(Gennaio!$B$6:$B$100,$B50,Gennaio!$C$6:$C$100) -> 0 | D50: =SUMIF(Febbraio!$B$6:$B$100,$B50,Febbraio!$C$6:$C$100) -> 0 | E50: =SUMIF(Marzo!$B$6:$B$100,$B50,Marzo!$C$6:$C$100) -> 0 | O50: 0 | Q50: Revisione Golf
A51: 0 | B51: Revisione Panda Blu | C51: =SUMIF(Gennaio!$B$6:$B$100,$B51,Gennaio!$C$6:$C$100) -> 0 | D51: =SUMIF(Febbraio!$B$6:$B$100,$B51,Febbraio!$C$6:$C$100) -> 0 | E51: =SUMIF(Marzo!$B$6:$B$100,$B51,Marzo!$C$6:$C$100) -> 0 | O51: 0 | Q51: Revisione Panda Blu
A52: 0 | B52: Revisione Panda Gialla | C52: =SUMIF(Gennaio!$B$6:$B$100,$B52,Gennaio!$C$6:$C$100) -> 0 | D52: =SUMIF(Febbraio!$B$6:$B$100,$B52,Febbraio!$C$6:$C$100) -> 0 | E52: =SUMIF(Marzo!$B$6:$B$100,$B52,Marzo!$C$6:$C$100) -> 0 | O52: 0 | Q52: Revisione Panda Gialla
A53: 0 | B53: Risparmio | C53: =SUMIF(Gennaio!$B$6:$B$100,$B53,Gennaio!$C$6:$C$100) -> 0 | D53: =SUMIF(Febbraio!$B$6:$B$100,$B53,Febbraio!$C$6:$C$100) -> 0 | E53: =SUMIF(Marzo!$B$6:$B$100,$B53,Marzo!$C$6:$C$100) -> 0 | O53: 0 | Q53: Risparmio
A54: 3.813333333 | B54: Rosalba | C54: =SUMIF(Gennaio!$B$6:$B$100,$B54,Gennaio!$C$6:$C$100) -> 11.44 | D54: =SUMIF(Febbraio!$B$6:$B$100,$B54,Febbraio!$C$6:$C$100) -> 0 | E54: =SUMIF(Marzo!$B$6:$B$100,$B54,Marzo!$C$6:$C$100) -> 0 | O54: 11.44 | P54: 0.0005269502341 | Q54: Rosalba
A55: 0 | B55: Tari Piazza | C55: =SUMIF(Gennaio!$B$6:$B$100,$B55,Gennaio!$C$6:$C$100) -> 0 | D55: =SUMIF(Febbraio!$B$6:$B$100,$B55,Febbraio!$C$6:$C$100) -> 0 | E55: =SUMIF(Marzo!$B$6:$B$100,$B55,Marzo!$C$6:$C$100) -> 0 | O55: 0 | Q55: Tari Piazza
A56: 0 | B56: Tari Settimo | C56: =SUMIF(Gennaio!$B$6:$B$100,$B56,Gennaio!$C$6:$C$100) -> 0 | D56: =SUMIF(Febbraio!$B$6:$B$100,$B56,Febbraio!$C$6:$C$100) -> 0 | E56: =SUMIF(Marzo!$B$6:$B$100,$B56,Marzo!$C$6:$C$100) -> 0 | O56: 0 | Q56: Tari Settimo
A57: 10 | B57: Tim Claudio | C57: =SUMIF(Gennaio!$B$6:$B$100,$B57,Gennaio!$C$6:$C$100) -> 0 | D57: =SUMIF(Febbraio!$B$6:$B$100,$B57,Febbraio!$C$6:$C$100) -> 15 | E57: =SUMIF(Marzo!$B$6:$B$100,$B57,Marzo!$C$6:$C$100) -> 15 | O57: 30 | P57: 0.001381862502 | Q57: Tim Claudio
A58: 8.233333333 | B58: Tim Flexy | C58: =SUMIF(Gennaio!$B$6:$B$100,$B58,Gennaio!$C$6:$C$100) -> 0 | D58: =SUMIF(Febbraio!$B$6:$B$100,$B58,Febbraio!$C$6:$C$100) -> 11.8 | E58: =SUMIF(Marzo!$B$6:$B$100,$B58,Marzo!$C$6:$C$100) -> 12.9 | O58: 24.7 | P58: 0.00113773346 | Q58: Tim Flexy
A59: 10 | B59: Tim Rosalba | C59: =SUMIF(Gennaio!$B$6:$B$100,$B59,Gennaio!$C$6:$C$100) -> 0 | D59: =SUMIF(Febbraio!$B$6:$B$100,$B59,Febbraio!$C$6:$C$100) -> 15 | E59: =SUMIF(Marzo!$B$6:$B$100,$B59,Marzo!$C$6:$C$100) -> 15 | O59: 30 | P59: 0.001381862502 | Q59: Tim Rosalba
A60: 29.65333333 | B60: TimVision | C60: =SUMIF(Gennaio!$B$6:$B$100,$B60,Gennaio!$C$6:$C$100) -> 24.99 | D60: =SUMIF(Febbraio!$B$6:$B$100,$B60,Febbraio!$C$6:$C$100) -> 29.99 | E60: =SUMIF(Marzo!$B$6:$B$100,$B60,Marzo!$C$6:$C$100) -> 33.98 | O60: 88.96 | P60: 0.004097682939 | Q60: TimVision
A61: 147.7 | B61: Varie | C61: =SUMIF(Gennaio!$B$6:$B$100,$B61,Gennaio!$C$6:$C$100) -> 30 | D61: =SUMIF(Febbraio!$B$6:$B$100,$B61,Febbraio!$C$6:$C$100) -> 312 | E61: =SUMIF(Marzo!$B$6:$B$100,$B61,Marzo!$C$6:$C$100) -> 101.1 | O61: 443.1 | P61: 0.02041010915 | Q61: Varie
A62: 1224.42 | B62: Vitto | C62: =SUMIF(Gennaio!$B$6:$B$100,$B62,Gennaio!$C$6:$C$100) -> 1300 | D62: =SUMIF(Febbraio!$B$6:$B$100,$B62,Febbraio!$C$6:$C$100) -> 1623.26 | E62: =SUMIF(Marzo!$B$6:$B$100,$B62,Marzo!$C$6:$C$100) -> 750 | O62: 3673.26 | P62: 0.1691980085 | Q62: Vitto
C68: =SUM(C$4:C$62)-(C$46+C$47) -> 3555.01 | D68: 2877.32 | E68: 4293.02 | F68: 0 | G68: 0 | H68: 0 | I68: 0 | J68: 0 | K68: 0 | L68: 0 | M68: 0 | N68: 0 | O68: =SUM(O4:O62) -> 21709.83

Sheet Tabelle
G2: =TODAY() -> 2024-03-31 | H2: =YEAR(G2) -> 2024 | I2: Gen | J2: Feb | K2: Mar | L2: Apr | M2: Mag | N2: Giu | O2: Lug | P2: Ago | Q2: Set | R2: Ott | S2: Nov | T2: Dic
I3: 1 | J3: 2 | K3: 3 | L3: 4 | M3: 5 | N3: 6 | O3: 7 | P3: 8 | Q3: 9 | R3: 10 | S3: 11 | T3: 12
E4: CAUSALE
I5: =DATE($H$2,I$3,1) -> 2024-01-01 | J5: 2024-02-01 | K5: 2024-03-01 | L5: 2024-04-01 | M5: 2024-05-01 | N5: 2024-06-01 | O5: 2024-07-01 | P5: 2024-08-01 | Q5: 2024-09-01 | R5: 2024-10-01 | S5: 2024-11-01 | T5: 2024-12-01 | V5: Saldo 2010 | W5: 1336.59
D6: 1 | E6: AcquaEnna | G6: PAGATO | I6: =I5+1 -> 2024-01-02 | J6: =J5+1 -> 2024-02-02 | K6: =K5+1 -> 2024-03-02 | L6: =L5+1 -> 2024-04-02 | M6: =M5+1 -> 2024-05-02 | N6: =N5+1 -> 2024-06-02 | O6: =O5+1 -> 2024-07-02 | P6: =P5+1 -> 2024-08-02 | Q6: =Q5+1 -> 2024-09-02 | R6: =R5+1 -> 2024-10-02 | S6: =S5+1 -> 2024-11-02 | T6: =T5+1 -> 2024-12-02 | V6: Saldo 2011 | W6: 930.52
D7: 2 | E7: Amministratore | G7: DA PAGARE | I7: 2024-01-03 | J7: 2024-02-03 | K7: 2024-03-03 | L7: 2024-04-03 | M7: 2024-05-03 | N7: 2024-06-03 | O7: 2024-07-03 | P7: 2024-08-03 | Q7: 2024-09-03 | R7: 2024-10-03 | S7: 2024-11-03 | T7: 2024-12-03 | V7: Saldo 2012 | W7: 769.26
D8: 3 | E8: Andrea | I8: 2024-01-04 | J8: 2024-02-04 | K8: 2024-03-04 | L8: 2024-04-04 | M8: 2024-05-04 | N8: 2024-06-04 | O8: 2024-07-04 | P8: 2024-08-04 | Q8: 2024-09-04 | R8: 2024-10-04 | S8: 2024-11-04 | T8: 2024-12-04 | V8: Saldo 2013 | W8: 848.46
D9: 4 | E9: Arancio_in | I9: 2024-01-05 | J9: 2024-02-05 | K9: 2024-03-05 | L9: 2024-04-05 | M9: 2024-05-05 | N9: 2024-06-05 | O9: 2024-07-05 | P9: 2024-08-05 | Q9: 2024-09-05 | R9: 2024-10-05 | S9: 2024-11-05 | T9: 2024-12-05 | V9: Saldo 2014 | W9: 207.75
D10: 5 | E10: Arancio_out | I10: 2024-01-06 | J10: 2024-02-06 | K10: 2024-03-06 | L10: 2024-04-06 | M10: 2024-05-06 | N10: 2024-06-06 | O10: 2024-07-06 | P10: 2024-08-06 | Q10: 2024-09-06 | R10: 2024-10-06 | S10: 2024-11-06 | T10: 2024-12-06 | V10: Saldo 2015 | W10: -33
D11: 6 | E11: Aruba | I11: 2024-01-07 | J11: 2024-02-07 | K11: 2024-03-07 | L11: 2024-04-07 | M11: 2024-05-07 | N11: 2024-06-07 | O11: 2024-07-07 | P11: 2024-08-07 | Q11: 2024-09-07 | R11: 2024-10-07 | S11: 2024-11-07 | T11: 2024-12-07 | V11: Saldo 2016 | W11: 508.66
D12: 7 | E12: Assicurazione 500 | I12: 2024-01-08 | J12: 2024-02-08 | K12: 2024-03-08 | L12: 2024-04-08 | M12: 2024-05-08 | N12: 2024-06-08 | O12: 2024-07-08 | P12: 2024-08-08 | Q12: 2024-09-08 | R12: 2024-10-08 | S12: 2024-11-08 | T12: 2024-12-08 | V12: Saldo 2017 | W12: 706
D13: 8 | E13: Assicurazione Beverly | I13: 2024-01-09 | J13: 2024-02-09 | K13: 2024-03-09 | L13: 2024-04-09 | M13: 2024-05-09 | N13: 2024-06-09 | O13: 2024-07-09 | P13: 2024-08-09 | Q13: 2024-09-09 | R13: 2024-10-09 | S13: 2024-11-09 | T13: 2024-12-09 | V13: Saldo 2018 | W13: 1276.23
D14: 9 | E14: Assicurazione Golf | I14: 2024-01-10 | J14: 2024-02-10 | K14: 2024-03-10 | L14: 2024-04-10 | M14: 2024-05-10 | N14: 2024-06-10 | O14: 2024-07-10 | P14: 2024-08-10 | Q14: 2024-09-10 | R14: 2024-10-10 | S14: 2024-11-10 | T14: 2024-12-10 | V14: Saldo 2019 | W14: 654.28
C15: Arancio | D15: 10 | E15: Assicurazione Panda Blu | I15: 2024-01-11 | J15: 2024-02-11 | K15: 2024-03-11 | L15: 2024-04-11 | M15: 2024-05-11 | N15: 2024-06-11 | O15: 2024-07-11 | P15: 2024-08-11 | Q15: 2024-09-11 | R15: 2024-10-11 | S15: 2024-11-11 | T15: 2024-12-11 | V15: Saldo 2020 | W15: 292.79
C16: Accredito | D16: 11 | E16: Assicurazione Panda Gialla | I16: 2024-01-12 | J16: 2024-02-12 | K16: 2024-03-12 | L16: 2024-04-12 | M16: 2024-05-12 | N16: 2024-06-12 | O16: 2024-07-12 | P16: 2024-08-12 | Q16: 2024-09-12 | R16: 2024-10-12 | S16: 2024-11-12 | T16: 2024-12-12 | V16: Saldo 2021 | W16: 1319.78
C17: Interessi | D17: 12 | E17: Benzina Beverly | I17: 2024-01-13 | J17: 2024-02-13 | K17: 2024-03-13 | L17: 2024-04-13 | M17: 2024-05-13 | N17: 2024-06-13 | O17: 2024-07-13 | P17: 2024-08-13 | Q17: 2024-09-13 | R17: 2024-10-13 | S17: 2024-11-13 | T17: 2024-12-13 | V17: Saldo 2022 | W17: -338.59
C18: Prelievo | D18: 13 | E18: Benzina Panda Blu | I18: 2024-01-14 | J18: 2024-02-14 | K18: 2024-03-14 | L18: 2024-04-14 | M18: 2024-05-14 | N18: 2024-06-14 | O18: 2024-07-14 | P18: 2024-08-14 | Q18: 2024-09-14 | R18: 2024-10-14 | S18: 2024-11-14 | T18: 2024-12-14 | V18: Saldo 2023 | W18: 141.45
D19: 14 | E19: Benzina Panda Gialla | I19: 2024-01-15 | J19: 2024-02-15 | K19: 2024-03-15 | L19: 2024-04-15 | M19: 2024-05-15 | N19: 2024-06-15 | O19: 2024-07-15 | P19: 2024-08-15 | Q19: 2024-09-15 | R19: 2024-10-15 | S19: 2024-11-15 | T19: 2024-12-15
D20: 15 | E20: Bollo 500 | I20: 2024-01-16 | J20: 2024-02-16 | K20: 2024-03-16 | L20: 2024-04-16 | M20: 2024-05-16 | N20: 2024-06-16 | O20: 2024-07-16 | P20: 2024-08-16 | Q20: 2024-09-16 | R20: 2024-10-16 | S20: 2024-11-16 | T20: 2024-12-16
C21: INGFCA | D21: 16 | E21: Bollo Beverly | I21: 2024-01-17 | J21: 2024-02-17 | K21: 2024-03-17 | L21: 2024-04-17 | M21: 2024-05-17 | N21: 2024-06-17 | O21: 2024-07-17 | P21: 2024-08-17 | Q21: 2024-09-17 | R21: 2024-10-17 | S21: 2024-11-17 | T21: 2024-12-17
C22: Bonifico da Conto Arancio | D22: 17 | E22: Bollo Golf | I22: 2024-01-18 | J22: 2024-02-18 | K22: 2024-03-18 | L22: 2024-04-18 | M22: 2024-05-18 | N22: 2024-06-18 | O22: 2024-07-18 | P22: 2024-08-18 | Q22: 2024-09-18 | R22: 2024-10-18 | S22: 2024-11-18 | T22: 2024-12-18
C23: Bonifico da FCA Bank | D23: 18 | E23: Bollo Panda Blu | I23: 2024-01-19 | J23: 2024-02-19 | K23: 2024-03-19 | L23: 2024-04-19 | M23: 2024-05-19 | N23: 2024-06-19 | O23: 2024-07-19 | P23: 2024-08-19 | Q23: 2024-09-19 | R23: 2024-10-19 | S23: 2024-11-19 | T23: 2024-12-19
C24: Bonifico su Conto Arancio | D24: 19 | E24: Bollo Panda Gialla | I24: 2024-01-20 | J24: 2024-02-20 | K24: 2024-03-20 | L24: 2024-04-20 | M24: 2024-05-20 | N24: 2024-06-20 | O24: 2024-07-20 | P24: 2024-08-20 | Q24: 2024-09-20 | R24: 2024-10-20 | S24: 2024-11-20 | T24: 2024-12-20
C25: Bonifico su FCA Bank | D25: 20 | E25: Bonifico | I25: 2024-01-21 | J25: 2024-02-21 | K25: 2024-03-21 | L25: 2024-04-21 | M25: 2024-05-21 | N25: 2024-06-21 | O25: 2024-07-21 | P25: 2024-08-21 | Q25: 2024-09-21 | R25: 2024-10-21 | S25: 2024-11-21 | T25: 2024-12-21
D26: 21 | E26: Bonifico da FCA Bank | I26: 2024-01-22 | J26: 2024-02-22 | K26: 2024-03-22 | L26: 2024-04-22 | M26: 2024-05-22 | N26: 2024-06-22 | O26: 2024-07-22 | P26: 2024-08-22 | Q26: 2024-09-22 | R26: 2024-10-22 | S26: 2024-11-22 | T26: 2024-12-22
D27: 22 | E27: Carta Click Ricarica | I27: 2024-01-23 | J27: 2024-02-23 | K27: 2024-03-23 | L27: 2024-04-23 | M27: 2024-05-23 | N27: 2024-06-23 | O27: 2024-07-23 | P27: 2024-08-23 | Q27: 2024-09-23 | R27: 2024-10-23 | S27: 2024-11-23 | T27: 2024-12-23
D28: 23 | E28: Claudio | I28: 2024-01-24 | J28: 2024-02-24 | K28: 2024-03-24 | L28: 2024-04-24 | M28: 2024-05-24 | N28: 2024-06-24 | O28: 2024-07-24 | P28: 2024-08-24 | Q28: 2024-09-24 | R28: 2024-10-24 | S28: 2024-11-24 | T28: 2024-12-24
D29: 24 | E29: Competenze Banca | I29: 2024-01-25 | J29: 2024-02-25 | K29: 2024-03-25 | L29: 2024-04-25 | M29: 2024-05-25 | N29: 2024-06-25 | O29: 2024-07-25 | P29: 2024-08-25 | Q29: 2024-09-25 | R29: 2024-10-25 | S29: 2024-11-25 | T29: 2024-12-25
D30: 25 | E30: Entrate Varie | I30: 2024-01-26 | J30: 2024-02-26 | K30: 2024-03-26 | L30: 2024-04-26 | M30: 2024-05-26 | N30: 2024-06-26 | O30: 2024-07-26 | P30: 2024-08-26 | Q30: 2024-09-26 | R30: 2024-10-26 | S30: 2024-11-26 | T30: 2024-12-26
D31: 26 | E31: FCABank_in | I31: 2024-01-27 | J31: 2024-02-27 | K31: 2024-03-27 | L31: 2024-04-27 | M31: 2024-05-27 | N31: 2024-06-27 | O31: 2024-07-27 | P31: 2024-08-27 | Q31: 2024-09-27 | R31: 2024-10-27 | S31: 2024-11-27 | T31: 2024-12-27
D32: 27 | E32: Gas Piazza | I32: 2024-01-28 | J32: 2024-02-28 | K32: 2024-03-28 | L32: 2024-04-28 | M32: 2024-05-28 | N32: 2024-06-28 | O32: 2024-07-28 | P32: 2024-08-28 | Q32: 2024-09-28 | R32: 2024-10-28 | S32: 2024-11-28 | T32: 2024-12-28
D33: 28 | E33: Gas Settimo | I33: 2024-01-29 | J33: 2024-02-29 | K33: 2024-03-29 | L33: 2024-04-29 | M33: 2024-05-29 | N33: 2024-06-29 | O33: 2024-07-29 | P33: 2024-08-29 | Q33: 2024-09-29 | R33: 2024-10-29 | S33: 2024-11-29 | T33: 2024-12-29
D34: 29 | E34: Gasolio Golf | I34: =I33+1 -> 2024-01-30 | K34: =K33+1 -> 2024-03-30 | L34: 2024-04-30 | M34: 2024-05-30 | N34: 2024-06-30 | O34: 2024-07-30 | P34: 2024-08-30 | Q34: 2024-09-30 | R34: 2024-10-30 | S34: 2024-11-30 | T34: 2024-12-30
D35: 30 | E35: Genius | I35: =I34+1 -> 2024-01-31 | K35: =K34+1 -> 2024-03-31 | M35: =M34+1 -> 2024-05-31 | O35: =O34+1 -> 2024-07-31 | P35: =P34+1 -> 2024-08-31 | R35: =R34+1 -> 2024-10-31 | T35: =T34+1 -> 2024-12-31
D36: 31 | E36: Iliad Matilde
D37: 32 | E37: Imu Piazza Claudio
D38: 33 | E38: Imu Piazza Rosalba
D39: 34 | E39: Infostrada
D40: 35 | E40: Iphone
D41: 36 | E41: Luce Piazza
D42: 37 | E42: Luce Settimo
D43: 38 | E43: Luxor Cla Ros
D44: 39 | E44: Matilde
D45: 40 | E45: Monica
D46: 41 | E46: Natale
D47: 42 | E47: ParkinGo
D48: 43 | E48: Pensione Claudio
D49: 44 | E49: Pensione Rosalba
D50: 45 | E50: Revisione 500
D51: 46 | E51: Revisione Beverly
D52: 47 | E52: Revisione Golf
D53: 48 | E53: Revisione Panda Blu
D54: 49 | E54: Revisione Panda Gialla
D55: 50 | E55: Risparmio
D56: 51 | E56: Rosalba
D57: 52 | E57: Tari Piazza
D58: 53 | E58: Tari Settimo
D59: 54 | E59: Telepass
D60: 55 | E60: Tim Claudio
D61: 56 | E61: Tim Flexy
D62: 57 | E62: Tim Rosalba
D63: 58 | E63: TimVision
D64: 59 | E64: Varie
D65: 60 | E65: Vitto

Sheet Tabloid
B1: Gennaio | F1: Febbraio | J1: Marzo | N1: Aprile | R1: Maggio | V1: Giugno
C2: Uscite | D2: Entrate | G2: Uscite | H2: Entrate | K2: Uscite | L2: Entrate | O2: Uscite | P2: Entrate | S2: Uscite | T2: Entrate | W2: Uscite | X2: Entrate
D3: 141.45 | H3: 125.95 | L3: 789.51 | P3: 1053.47 | T3: -5499.24 | X3: -2992.21
B4: Genius | C4: 2.15 | F4: Genius | G4: 2.15 | J4: Genius | K4: 2.15 | N4: Genius | O4: 2.15 | R4: Genius | S4: 2.15 | V4: Genius | W4: 2.15
B5: Carta Click Ricarica | C5: 50 | F5: Pensione Claudio | H5: 1949.85 | J5: Pensione Claudio | L5: 2006.02 | N5: Competenze Banca | O5: 8.43 | R5: Pensione Claudio | T5: 1865.9 | V5: Pensione Claudio | X5: 1865.9
B6: Gasolio Golf | C6: 20 | F6: Pensione Rosalba | H6: 1676.78 | J6: Pensione Rosalba | L6: 1726.57 | N6: Pensione Claudio | P6: 1962.7 | R6: Pensione Rosalba | T6: 1586.02 | V6: Pensione Rosalba | X6: 1586.02
B7: Pensione Claudio | D7: 1948.51 | F7: Carta Click Ricarica | G7: 50 | J7: Tim Rosalba | K7: 15 | N7: Pensione Rosalba | P7: 1688.55 | R7: Tim Claudio | S7: 15 | V7: Carta Click Ricarica | W7: 30
B8: Pensione Rosalba | D8: 1676.75 | F8: Tim Rosalba | G8: 15 | J8: Tim Claudio | K8: 15 | N8: Carta Click Ricarica | O8: 50 | R8: Tim Rosalba | S8: 15 | V8: Tim Rosalba | W8: 15
B9: Benzina Panda Blu | C9: 50.01 | F9: Tim Claudio | G9: 15 | J9: Carta Click Ricarica | K9: 50 | N9: Arancio_in | O9: 1500 | R9: Carta Click Ricarica | S9: 50 | V9: Tim Claudio | W9: 15
B10: Vitto | C10: 750 | F10: Vitto | G10: 300 | J10: Arancio_in | K10: 1501.44 | N10: Benzina Panda Blu | O10: 45 | R10: Tari Settimo | S10: 204 | V10: Arancio_in | W10: 4001.44
B11: ParkinGo | C11: 62 | F11: Luce Settimo | G11: 126.3 | J11: Benzina Panda Blu | K11: 50 | N11: Varie | O11: 499.24 | R11: Carta Click Ricarica | S11: 35 | V11: Amministratore | W11: 362
B12: Iphone | C12: 85.75 | F12: Luce Piazza | G12: 48.93 | J12: Iphone | K12: 85.75 | N12: Varie | O12: 500 | R12: Gasolio Golf | S12: 30 | V12: Rosalba | W12: 30.99
B13: Monica | C13: 150 | F13: Vitto | G13: 31.31 | J13: Varie | K13: 81 | N13: Iphone | O13: 85.75 | R13: Vitto | S13: 300 | V13: Rosalba | W13: 29.9
B14: Andrea | C14: 150 | F14: Gasolio Golf | G14: 10 | J14: Assicurazione Golf | K14: 200 | N14: Vitto | O14: 600 | R14: Arancio_in | S14: 1001.44 | V14: Rosalba | W14: 44.99
B15: Arancio_in | C15: 1381.14 | F15: Iphone | G15: 85.75 | J15: Gas Settimo | K15: 366.15 | N15: Tim Flexy | O15: 11.8 | R15: Assicurazione 500 | S15: 244 | V15: Rosalba | W15: 30.25
B16: AcquaEnna | C16: 0 | F16: Benzina Panda Blu | G16: 35 | J16: Carta Click Ricarica | K16: 50 | N16: Monica | O16: 250 | R16: Assicurazione Panda Blu | S16: 139.41 | V16: Gasolio Golf | W16: 30
B17: TimVision | C17: 24.99 | F17: Tim Flexy | G17: 11.8 | J17: Andrea | K17: 250 | N17: Andrea | O17: 250 | R17: Benzina Beverly | S17: 10 | V17: Varie | W17: 200
B18: Vitto | C18: 300 | F18: Andrea | G18: 250 | J18: Tim Flexy | K18: 12.9 | N18: Bollo Beverly | O18: 40.6 | R18: AcquaEnna | S18: 18.87 | V18: Tari Piazza | W18: 77.5
B19: Bollo Golf | C19: 193.08 | F19: Vitto | G19: 21.4 | J19: TimVision | K19: 33.98 | N19: Varie | O19: 40 | R19: Varie | S19: 250 | V19: Monica | W19: 150
B20: Gasolio Golf | C20: 10 | F20: TimVision | G20: 29.99 | J20: Monica | L20: 174.84 | N20: Benzina Beverly | O20: 10.02 | R20: Iphone | S20: 85.75 | V20: Andrea | W20: 150
B21: Claudio | C21: 44.2 | F21: Benzina Panda Blu | G21: 22.99 | J21: Benzina Beverly | K21: 10 | N21: Benzina Panda Blu | O21: 45 | R21: Varie | S21: 500 | V21: Varie | W21: 1.3
B22: Rosalba | C22: 11.44 | F22: Vitto | G22: 550 | J22: Vitto | K22: 500 | N22: Gas Piazza | O22: 89.74 | R22: Varie | S22: 39.47 | V22: Iphone | W22: 85.75
B23: Infostrada | C23: 25.99 | F23: Varie | G23: 50 | J23: Varie | L23: 367.47 | N23: Arancio_in | O23: 500 | R23: Monica | S23: 150 | V23: Benzina Beverly | W23: 10
B24: Varie | C24: 30 | F24: Gasolio Golf | G24: 15 | J24: Benzina Panda Blu | K24: 26 | N24: Infostrada | O24: 25.99 | R24: Andrea | S24: 150 | V24: Vitto | W24: 600
B25: Benzina Panda Blu | C25: 50.01 | F25: Monica | G25: 250 | J25: Monica | K25: 250 | N25: Tari Settimo | O25: 180 | R25: Tim Flexy | S25: 25.8 | V25: Rosalba | W25: 68.84
B26: Vitto | C26: 250 | F26: Benzina Beverly | G26: 9.42 | J26: Vitto | K26: 250 | R26: Varie | T26: 9.95 | V26: Vitto | W26: 20.45
F27: Varie | G27: 72 | J27: Infostrada | K27: 25.99 | R27: Vitto | S27: 500 | V27: Benzina Panda Blu | W27: 21
F28: Varie | G28: 90 | J28: Varie | K28: 20.1 | R28: Gasolio Golf | S28: 50 | V28: Imu Piazza Claudio | W28: 132
F29: Infostrada | G29: 25.47 | J29: Benzina Panda Blu | K29: 47.5 | R29: Gas Settimo | S29: 301.25 | V29: Imu Piazza Rosalba | W29: 132
F30: Vitto | G30: 20.55 | J30: Luce Piazza | K30: 63.16 | R30: Infostrada | S30: 25.99 | V30: Arancio_out | X30: 1300
F31: Varie | G31: 100 | J31: Luce Settimo | K31: 138.09 | R31: Carta Click Ricarica | S31: 30 | V31: Rosalba | W31: 10.44
F32: Benzina Panda Blu | G32: 25.01 | J32: Competenze Banca | K32: 10.33 | R32: Bonifico da FCA Bank | T32: 14000 | V32: Infostrada | W32: 25.99
F33: Vitto | G33: 700 | J33: AcquaEnna | K33: 324.23 | R33: Andrea | S33: 5000.86 | V33: ParkinGo | W33: 38
R34: Benzina Beverly | S34: 10 | V34: Benzina Panda Gialla | W34: 30
R35: Varie | S35: 19.99 | V35: Claudio | W35: 20.15
R36: Andrea | S36: 5000.86 | V36: Vitto | W36: 43.94
R37: Carta Click Ricarica | S37: 50 | V37: AcquaEnna | W37: 60.52
R38: Matilde | S38: 200 | V38: Varie | W38: 376.44
R39: Vitto | S39: 500 | V39: Vitto | W39: 500
R40: Benzina Panda Blu | S40: 23.01 | V40: Claudio | W40: 26.13
R41: Luce Settimo | S41: 124.99 | V41: Competenze Banca | W41: 10.33
R42: Luce Piazza | S42: 49.61 | V42: Carta Click Ricarica | W42: 20
B50: Luglio | F50: Agosto | J50: Settembre | N50: Ottobre | R50: Novembre | V50: Dicembre
C51: Uscite | D51: Entrate | G51: Uscite | H51: Entrate | K51: Uscite | L51: Entrate | O51: Uscite | P51: Entrate | S51: Uscite | T51: Entrate | W51: Uscite | X51: Entrate
D52: 937.82 | H52: 166.99 | L52: 3729.52 | P52: 111.86 | T52: 672.27 | X52: 223.42
B53: Genius | C53: 2.15 | F53: Genius | G53: 2.15 | J53: Genius | K53: 2.15 | N53: Genius | O53: 2.15 | R53: Genius | S53: 2.15 | V53: Genius | W53: 2.15
B54: Pensione Claudio | D54: 1865.9 | F54: Pensione Claudio | H54: 1918.9 | J54: Pensione Claudio | L54: 1865.9 | N54: Pensione Claudio | P54: 1865.9 | R54: Pensione Claudio | T54: 1865.9 | V54: Pensione Claudio | X54: 3716.92
B55: Pensione Rosalba | D55: 1586.02 | F55: Pensione Rosalba | H55: 1660.02 | J55: Pensione Rosalba | L55: 1586.02 | N55: Pensione Rosalba | P55: 1586.02 | R55: Pensione Rosalba | T55: 1586.02 | V55: Pensione Rosalba | X55: 3339.98
B56: Amministratore | C56: 1260.86 | F56: Carta Click Ricarica | G56: 50 | J56: Tim Claudio | K56: 15 | N56: Carta Click Ricarica | O56: 70 | R56: Arancio_in | S56: 1001.44 | V56: Gas Piazza | W56: 103.6
B57: Tim Flexy | C57: 11.8 | F57: Amministratore | G57: 319.5 | J57: Carta Click Ricarica | K57: 50 | N57: Vitto | O57: 300 | R57: Carta Click Ricarica | S57: 50 | V57: Carta Click Ricarica | W57: 30
B58: Monica | C58: 150 | F58: Arancio_in | G58: 2001.44 | J58: Revisione Panda Gialla | K58: 78.3 | N58: Amministratore | O58: 319.5 | R58: Tim Claudio | S58: 15 | V58: Tim Claudio | W58: 15
B59: Andrea | C59: 150 | F59: Monica | G59: 72.75 | J59: Tim Rosalba | K59: 15 | N59: Revisione Panda Blu | O59: 80 | R59: Tim Rosalba | S59: 15 | V59: Tim Rosalba | W59: 15
B60: Varie | C60: 927 | F60: Tim Claudio | G60: 15 | J60: Tim Flexy | K60: 39.9 | N60: Bollo Panda Blu | O60: 134.18 | R60: Benzina Panda Blu | S60: 50 | V60: Vitto | W60: 92.59
B61: Monica | C61: 201.44 | F61: Monica | G61: 150 | J61: Monica | K61: 150 | N61: Benzina Beverly | O61: 10 | R61: Varie | S61: 224 | V61: Benzina Panda Blu | W61: 40
B62: Vitto | C62: 600 | F62: Andrea | G62: 150 | J62: Andrea | K62: 150 | N62: Monica | O62: 150 | R62: Iphone | S62: 85.75 | V62: Vitto | W62: 450
B63: Varie | C63: 60.44 | F63: Tim Flexy | G63: 25.8 | J63: Vitto | K63: 260 | N63: Andrea | O63: 150 | R63: Assicurazione Panda Blu | S63: 198 | V63: Varie | W63: 19.15
B64: Gas Settimo | C64: 151.22 | F64: Gas Piazza | G64: 86.26 | J64: Gas Settimo | K64: 53.83 | N64: Vitto | O64: 32.29 | R64: Assicurazione 500 | S64: 244.28 | V64: Tari Settimo | W64: 95
B65: Arancio_out | D65: 4200 | F65: Vitto | G65: 500 | J65: Varie | K65: 26.05 | N65: Tim Flexy | O65: 39.9 | R65: Gas Settimo | S65: 49.94 | V65: Amministratore | W65: 320.82
B66: Amministratore | C66: 4112.76 | F66: Aruba | G66: 50 | J66: Benzina Panda Blu | K66: 30 | N66: Benzina Panda Blu | O66: 40.01 | R66: Rosalba | S66: 33 | V66: Arancio_in | W66: 1001.44
B67: Infostrada | C67: 25.99 | F67: Infostrada | G67: 25.99 | J67: Bollo Panda Gialla | K67: 134.18 | N67: Vitto | O67: 500 | R67: Luxor Cla Ros | S67: 41.72 | V67: Iphone | W67: 85.75
B68: Luce Piazza | C68: 59.38 | F68: Tari Piazza | G68: 77.5 | J68: Vitto | K68: 300 | N68: TimVision | O68: 24.99 | R68: Monica | S68: 150 | V68: Gasolio Golf | W68: 10
B69: Luce Settimo | C69: 107.21 | F69: Benzina Panda Gialla | G69: 20 | J69: TimVision | K69: 44.98 | N69: Arancio_out | P69: 14000 | R69: Andrea | S69: 150 | V69: Tim Flexy | W69: 18.8
B70: Vitto | C70: 500 | F70: Vitto | G70: 150 | J70: Amministratore | K70: 4112.75 | N70: FCABank_in | O70: 5001.44 | R70: Vitto | S70: 500 | V70: Vitto | W70: 67.96
B71: Varie | C71: 102.5 | F71: Arancio_out | H71: 4200 | J71: Benzina Beverly | K71: 10 | N71: Rosalba | O71: 85.18 | R71: TimVision | S71: 24.99 | V71: Monica | W71: 150
F72: Benzina Panda Gialla | G72: 20 | J72: Carta Click Ricarica | K72: 230 | N72: FCABank_in | O72: 5001.44 | R72: Andrea | S72: 600.86 | V72: Andrea | W72: 150
F73: Vitto | G73: 500 | J73: Varie | K73: 30.44 | N73: FCABank_in | O73: 4001.44 | R73: Vitto | S73: 10.79 | V73: Vitto | W73: 11.15
J74: Arancio_in | K74: 701.44 | N74: Varie | O74: 250 | R74: Varie | S74: 202.75 | V74: Carta Click Ricarica | W74: 60
J75: Tim Claudio | K75: 5 | N75: ParkinGo | O75: 50 | R75: Infostrada | S75: 25.99 | V75: TimVision | W75: 24.99
J76: Infostrada | K76: 25.99 | N76: Infostrada | O76: 25.99 | R76: Benzina Panda Blu | S76: 25 | V76: Natale | W76: 500
J77: Carta Click Ricarica | K77: 25 | N77: Varie | O77: 73 | R77: Carta Click Ricarica | S77: 25 | V77: Vitto | W77: 500
J78: Carta Click Ricarica | K78: 20 | N78: Vitto | O78: 150 | R78: Luce Piazza | S78: 62.32 | V78: Varie | W78: 65
J79: Luce Settimo | K79: 59.89 | N79: Vitto | O79: 400 | R79: Luce Settimo | S79: 112.79 | V79: Benzina Panda Blu | W79: 30
J80: Luce Piazza | K80: 191.22 | V80: Imu Piazza Claudio | W80: 131
J81: Vitto | K81: 200 | V81: Imu Piazza Rosalba | W81: 131
J82: Varie | K82: 17.13 | V82: Varie | W82: 58.35
J83: Benzina Panda Blu | K83: 51 | V83: Tari Piazza | W83: 79.5
J84: Competenze Banca | K84: 18.95 | V84: Vitto | W84: 165.91
J85: Carta Click Ricarica | K85: 30 | V85: Infostrada | W85: 25.99
V86: Monica | W86: 702.75
V87: Andrea | W87: 700.86
V88: Arancio_in | W88: 1001.44
V89: Gas Settimo | W89: 173.53
V90: Vitto | W90: 100
V91: Competenze Banca | W91: 10.29
V92: Competenze Banca | X92: 0.15
C100: =SUM(C53:C99) -> 8422.75 | D100: =SUM(D52:D99) -> 8589.74 | G100: =SUM(G53:G99) -> 4216.39 | H100: =SUM(H52:H99) -> 7945.91 | K100: =SUM(K53:K99) -> 7078.2 | L100: =SUM(L52:L99) -> 7181.44 | O100: =SUM(O53:O99) -> 16891.51 | P100: =SUM(P52:P99) -> 17563.78 | S100: =SUM(S53:S99) -> 3900.77 | T100: =SUM(T52:T99) -> 4124.19 | W100: =SUM(W53:W99) -> 7139.02 | X100: =SUM(X52:X99) -> 7280.47
C102: =D100-C100 -> 166.99 | G102: =H100-G100 -> 3729.52 | K102: =L100-K100 -> 103.24 | O102: =P100-O100 -> 672.27 | S102: =T100-S100 -> 223.42 | W102: =X100-W100 -> 141.45

Sheet MacroTotali
M1: € SALDO
M2: =Saldo_2022 -> -338.59 | P2: =VLOOKUP(Tabelle!G2,I3:M500,5) -> 149.15
I3: 2023-01-03 | J3: Genius | K3: 4.96 | M3: =$M2-$K3+$L3 -> -343.55
I4: 2023-01-03 | J4: Competenze Banca | K4: 8.62 | M4: =$M3-$K4+$L4 -> -352.17
I5: 2023-01-03 | J5: Pensione Claudio | L5: 1781.92 | M5: 1429.75
A6: 2024-02-01 | B6: Genius | C6: 2.15 | I6: 2023-01-03 | J6: Pensione Rosalba | L6: 1590.65 | M6: 3020.4
A7: 2024-02-01 | B7: Pensione Claudio | D7: 1949.85 | I7: 2023-01-03 | J7: Carta Click Ricarica | K7: 70 | M7: 2950.4
A8: 2024-02-01 | B8: Pensione Rosalba | D8: 1676.78 | I8: 2023-01-03 | J8: Tim Claudio | K8: 15 | M8: 2935.4
A9: 2024-02-01 | B9: Carta Click Ricarica | C9: 50 | I9: 2023-01-03 | J9: Tim Rosalba | K9: 15 | M9: 2920.4
A10: 2024-02-01 | B10: Tim Rosalba | C10: 15 | I10: 2023-01-05 | J10: Varie | K10: 500 | M10: 2420.4
A11: 2024-02-01 | B11: Tim Claudio | C11: 15 | I11: 2023-01-06 | J11: Benzina Panda Blu | K11: 45 | M11: 2375.4
A12: 2024-02-01 | B12: Vitto | C12: 300 | I12: 2023-01-06 | J12: Gasolio Golf | K12: 20 | M12: 2355.4
A13: 2024-02-02 | B13: Luce Settimo | C13: 126.3 | I13: 2023-01-06 | J13: Vitto | K13: 47.49 | M13: 2307.91
A14: 2024-02-02 | B14: Luce Piazza | C14: 48.93 | I14: 2023-01-08 | J14: Monica | K14: 150 | M14: 2157.91
A15: 2024-02-04 | B15: Vitto | C15: 31.31 | I15: 2023-01-08 | J15: Andrea | K15: 150 | M15: 2007.91
A16: 2024-02-05 | B16: Gasolio Golf | C16: 10 | I16: 2023-01-09 | J16: Varie | K16: 92 | M16: 1915.91
A17: 2024-02-05 | B17: Iphone | C17: 85.75 | I17: 2023-01-09 | J17: Carta Click Ricarica | K17: 20 | M17: 1895.91
A18: 2024-02-05 | B18: Benzina Panda Blu | C18: 35 | I18: 2023-01-09 | J18: Vitto | K18: 500 | M18: 1395.91
A19: 2024-02-08 | B19: Tim Flexy | C19: 11.8 | I19: 2023-01-13 | J19: Gasolio Golf | K19: 20 | M19: 1375.91
A20: 2024-02-08 | B20: Andrea | C20: 250 | I20: 2023-01-15 | J20: Varie | K20: 6 | M20: 1369.91
A21: 2024-02-09 | B21: Vitto | C21: 21.4 | I21: 2023-01-16 | J21: Bollo Golf | K21: 214.24 | M21: 1155.67
A22: 2024-02-11 | B22: TimVision | C22: 29.99 | I22: 2023-01-17 | J22: Varie | L22: 25951.36 | M22: 27107.03
A23: 2024-02-13 | B23: Benzina Panda Blu | C23: 22.99 | I23: 2023-01-18 | J23: Arancio_in | K23: 5001.26 | M23: 22105.77
A24: 2024-02-14 | B24: Vitto | C24: 550 | I24: 2023-01-19 | J24: Arancio_in | K24: 5001.26 | M24: 17104.51
A25: 2024-02-15 | B25: Varie | C25: 50 | I25: 2023-01-19 | J25: Benzina Panda Blu | K25: 40 | M25: 17064.51
A26: 2024-02-17 | B26: Gasolio Golf | C26: 15 | I26: 2023-01-21 | J26: Infostrada | K26: 25.99 | M26: 17038.52
A27: 2024-02-18 | B27: Monica | C27: 250 | I27: 2023-01-23 | J27: Arancio_in | K27: 5001.26 | M27: 12037.26
A28: 2024-02-19 | B28: Benzina Beverly | C28: 9.42 | I28: 2023-01-24 | J28: Arancio_in | K28: 5001.26 | M28: 7036
A29: 2024-02-20 | B29: Varie | C29: 72 | I29: 2023-01-25 | J29: Arancio_in | K29: 4001.26 | M29: 3034.74
A30: 2024-02-21 | B30: Varie | C30: 90 | I30: 2023-01-26 | J30: Vitto | K30: 62.51 | M30: 2972.23
A31: 2024-02-21 | B31: Infostrada | C31: 25.47 | I31: 2023-01-30 | J31: Vitto | K31: 500 | M31: 2472.23
A32: 2024-02-21 | B32: Vitto | C32: 20.55 | I32: 2023-01-31 | J32: Varie | K32: 8 | M32: 2464.23
A33: 2024-02-23 | B33: Varie | C33: 100 | I33: 2023-02-01 | J33: Genius | K33: 4.96 | M33: 2459.27
A34: 2024-02-24 | B34: Benzina Panda Blu | C34: 25.01 | I34: 2023-02-01 | J34: Pensione Claudio | L34: 1783.37 | M34: 4242.64
A35: 2024-02-29 | B35: Vitto | C35: 700 | I35: 2023-02-01 | J35: Pensione Rosalba | L35: 1592.76 | M35: 5835.4
I36: 2023-02-01 | J36: Carta Click Ricarica | K36: 70 | M36: 5765.4
I37: 2023-02-01 | J37: Benzina Panda Blu | K37: 35.01 | M37: 5730.39
I38: 2023-02-01 | J38: Luxor Cla Ros | K38: 36.96 | M38: 5693.43
I39: 2023-02-01 | J39: Monica | K39: 2001.26 | M39: 3692.17
I40: 2023-02-02 | J40: Gasolio Golf | K40: 10 | M40: 3682.17
I41: 2023-02-02 | J41: Luce Settimo | K41: 91.43 | M41: 3590.74
I42: 2023-02-02 | J42: Luce Piazza | K42: 43.4 | M42: 3547.34
I43: 2023-02-02 | J43: Andrea | K43: 2000.68 | M43: 1546.66
I44: 2023-02-05 | J44: Varie | K44: 500 | M44: 1046.66
I45: 2023-02-06 | J45: Varie | K45: 630 | M45: 416.66
I46: 2023-02-08 | J46: Tim Flexy | K46: 11.8 | M46: 404.86
I47: 2023-02-08 | J47: Monica | K47: 150 | M47: 254.86
I48: 2023-02-08 | J48: Andrea | K48: 150 | M48: 104.86
I49: 2023-02-09 | J49: Carta Click Ricarica | L49: 10.83 | M49: 115.69
I50: 2023-02-09 | J50: Carta Click Ricarica | K50: 20 | M50: 95.69
I51: 2023-02-09 | J51: Vitto | K51: 500 | M51: -404.31
I52: 2023-02-09 | J52: Carta Click Ricarica | K52: 30 | M52: -434.31
I53: 2023-02-11 | J53: Benzina Panda Blu | K53: 30.01 | M53: -464.32
I54: 2023-02-17 | J54: Benzina Panda Blu | K54: 20.01 | M54: -484.33
I55: 2023-02-21 | J55: Infostrada | K55: 25.99 | M55: -510.32
I56: 2023-02-21 | J56: Monica | L56: 300 | M56: -210.32
I57: 2023-02-22 | J57: Monica | K57: 20 | M57: -230.32
I58: 2023-02-25 | J58: Varie | K58: 59.95 | M58: -290.27
I59: 2023-02-27 | J59: Carta Click Ricarica | K59: 860 | M59: -1150.27
I60: 2023-03-01 | J60: Pensione Claudio | L60: 2048.3 | M60: 898.03
I61: 2023-03-01 | J61: Pensione Rosalba | L61: 1586.02 | M61: 2484.05
I62: 2023-03-01 | J62: Vitto | K62: 750 | M62: 1734.05
I63: 2023-03-01 | J63: Tim Rosalba | K63: 15 | M63: 1719.05
I64: 2023-03-01 | J64: Tim Claudio | K64: 15 | M64: 1704.05
I65: 2023-03-01 | J65: Benzina Panda Blu | K65: 30 | M65: 1674.05
I66: 2023-03-01 | J66: Carta Click Ricarica | K66: 50 | M66: 1624.05
I67: 2023-03-01 | J67: Genius | K67: 4.96 | M67: 1619.09
I68: 2023-03-05 | J68: Varie | K68: 500 | M68: =$M67-$K68+$L68 -> 1119.09
I69: 2023-03-06 | J69: Assicurazione Golf | K69: 368.28 | M69: 750.81
I70: 2023-03-06 | J70: Gasolio Golf | K70: 50 | M70: 700.81
I71: 2023-03-06 | J71: Revisione Golf | K71: 80 | M71: 620.81
I72: 2023-03-06 | J72: Assicurazione Panda Gialla | K72: 150.48 | M72: 470.33
I73: 2023-03-06 | J73: Arancio_out | L73: 5936.1 | M73: 6406.43
I74: 2023-03-07 | J74: FCABank_in | K74: 1001.26 | M74: 5405.17
I75: 2023-03-08 | J75: Monica | K75: 150 | M75: 5255.17
I76: 2023-03-08 | J76: Andrea | K76: 150 | M76: 5105.17
I77: 2023-03-08 | J77: Varie | K77: 177.56 | M77: 4927.61
I78: 2023-03-09 | J78: Carta Click Ricarica | K78: 65 | M78: 4862.61
I79: 2023-03-14 | J79: Vitto | K79: 500 | M79: 4362.61
I80: 2023-03-14 | J80: Benzina Panda Blu | K80: 50.01 | M80: 4312.6
I81: 2023-03-16 | J81: Arancio_out | L81: 15000 | M81: 19312.6
I82: 2023-03-16 | J82: Monica | K82: 5001.26 | M82: 14311.34
I83: 2023-03-18 | J83: Gas Settimo | K83: 224.04 | M83: 14087.3
I84: 2023-03-20 | J84: Monica | K84: 5001.26 | M84: 9086.04
I85: 2023-03-20 | J85: Varie | K85: 750 | M85: 8336.04
I86: 2023-03-21 | J86: Monica | K86: 5001.26 | M86: 3334.78
I87: 2023-03-21 | J87: Varie | K87: 750 | M87: 2584.78
I88: 2023-03-21 | J88: Varie | K88: 61.1 | M88: 2523.68
I89: 2023-03-23 | J89: Varie | K89: 250 | M89: 2273.68
I90: 2023-03-24 | J90: Infostrada | K90: 25.99 | M90: 2247.69
I91: 2023-03-27 | J91: Vitto | K91: 12.35 | M91: 2235.34
I92: 2023-03-28 | J92: Luce Piazza | K92: 45.78 | M92: 2189.56
I93: 2023-03-28 | J93: Luce Settimo | K93: 111.29 | M93: 2078.27
I94: 2023-03-31 | J94: Competenze Banca | K94: 10.33 | M94: 2067.94
I95: 2023-04-01 | J95: Genius | K95: 4.96 | L95: 3000 | M95: 5062.98
I96: 2023-04-01 | J96: Vitto | K96: 500 | M96: 4562.98
I97: 2023-04-01 | J97: Carta Click Ricarica | K97: 50 | M97: 4512.98
I98: 2023-04-01 | J98: Competenze Banca | K98: 8.43 | M98: 4504.55
I99: 2023-04-03 | J99: Pensione Claudio | L99: 1865.9 | M99: 6370.45
I100: 2023-04-03 | J100: Pensione Rosalba | L100: 1586.02 | M100: 7956.47
I101: 2023-04-03 | J101: Benzina Panda Blu | K101: 45 | M101: 7911.47
I102: 2023-04-03 | J102: Assicurazione Beverly | K102: 129 | M102: 7782.47
I103: 2023-04-03 | J103: Carta Click Ricarica | K103: 130 | M103: 7652.47
I104: 2023-04-04 | J104: Arancio_in | K104: 5001.44 | M104: 2651.03
I105: 2023-04-05 | J105: Varie | K105: 499.24 | M105: 2151.79
I106: 2023-04-05 | J106: Revisione 500 | K106: 80 | M106: 2071.79
I107: 2023-04-05 | J107: Revisione Beverly | K107: 78.3 | M107: 1993.49
I108: 2023-04-07 | J108: Vitto | K108: 600 | M108: 1393.49
I109: 2023-04-08 | J109: Tim Flexy | K109: 11.8 | M109: 1381.69
I110: 2023-04-08 | J110: Monica | K110: 150 | M110: 1231.69
I111: 2023-04-08 | J111: Andrea | K111: 150 | M111: 1081.69
I112: 2023-04-11 | J112: Bollo 500 | K112: 134.18 | M112: 947.51
I113: 2023-04-11 | J113: Bollo Beverly | K113: 40.6 | M113: 906.91
I114: 2023-04-11 | J114: Varie | K114: 40 | M114: 866.91
I115: 2023-04-11 | J115: Arancio_out | L115: 15000 | M115: 15866.91
I116: 2023-04-12 | J116: Monica | K116: 5001.44 | M116: 10865.47
I117: 2023-04-13 | J117: Monica | K117: 5001.44 | M117: 5864.03
I118: 2023-04-17 | J118: Benzina Beverly | K118: 10.02 | M118: 5854.01
I119: 2023-04-17 | J119: Monica | K119: 5001.44 | M119: 852.57
I120: 2023-04-18 | J120: Benzina Panda Blu | K120: 45 | M120: 807.57
I121: 2023-04-18 | J121: Andrea | K121: 200 | M121: 607.57
I122: 2023-04-19 | J122: Gas Piazza | K122: 89.74 | M122: 517.83
I123: 2023-04-21 | J123: Infostrada | K123: 25.99 | M123: 491.84
I124: 2023-04-27 | J124: Vitto | K124: 84.36 | M124: 407.48
I125: 2023-04-28 | J125: Vitto | K125: 250 | M125: 157.48
I126: 2023-05-01 | J126: Genius | K126: 2.15 | M126: 155.33
I127: 2023-05-02 | J127: Pensione Claudio | L127: 1865.9 | M127: 2021.23
I128: 2023-05-02 | J128: Pensione Rosalba | L128: 1586.02 | M128: 3607.25
I129: 2023-05-02 | J129: Tim Claudio | K129: 15 | M129: 3592.25
I130: 2023-05-02 | J130: Tim Rosalba | K130: 15 | M130: 3577.25
I131: 2023-05-02 | J131: Carta Click Ricarica | K131: 50 | M131: 3527.25
I132: 2023-05-02 | J132: Tari Settimo | K132: 204 | M132: =$M131-$K132+$L132 -> 3323.25
I133: 2023-05-02 | J133: Carta Click Ricarica | K133: 35 | M133: 3288.25
I134: 2023-05-02 | J134: Gasolio Golf | K134: 30 | M134: 3258.25
I135: 2023-05-03 | J135: Vitto | K135: 300 | M135: 2958.25
I136: 2023-05-03 | J136: Arancio_in | K136: 1001.44 | M136: 1956.81
I137: 2023-05-04 | J137: Assicurazione 500 | K137: 244 | M137: 1712.81
I138: 2023-05-04 | J138: Assicurazione Panda Blu | K138: 139.41 | M138: 1573.4
I139: 2023-05-04 | J139: Benzina Beverly | K139: 10 | M139: 1563.4
I140: 2023-05-05 | J140: AcquaEnna | K140: 18.87 | M140: 1544.53
I141: 2023-05-06 | J141: Varie | K141: 39.47 | M141: 1505.06
I142: 2023-05-08 | J142: Monica | K142: 150 | M142: 1355.06
I143: 2023-05-08 | J143: Andrea | K143: 150 | M143: 1205.06
I144: 2023-05-08 | J144: Tim Flexy | K144: 25.8 | M144: 1179.26
I145: 2023-05-08 | J145: Varie | L145: 9.95 | M145: 1189.21
I146: 2023-05-11 | J146: Vitto | K146: 500 | M146: 689.21
I147: 2023-05-16 | J147: Gasolio Golf | K147: 50 | M147: 639.21
I148: 2023-05-19 | J148: Gas Settimo | K148: 301.25 | M148: 337.96
I149: 2023-05-22 | J149: Infostrada | K149: 25.99 | M149: 311.97
I150: 2023-05-22 | J150: Carta Click Ricarica | K150: 30 | M150: 281.97
I151: 2023-05-23 | J151: Bonifico da FCA Bank | L151: 14000 | M151: 14281.97
I152: 2023-05-23 | J152: Andrea | K152: 5000.86 | M152: 9281.11
I153: 2023-05-23 | J153: Benzina Beverly | K153: 10 | M153: 9271.11
I154: 2023-05-23 | J154: Varie | K154: 19.99 | M154: 9251.12
I155: 2023-05-24 | J155: Andrea | K155: 5000.86 | M155: 4250.26
I156: 2023-05-25 | J156: Carta Click Ricarica | K156: 50 | M156: 4200.26
I157: 2023-05-26 | J157: Matilde | K157: 200 | M157: 4000.26
I158: 2023-05-29 | J158: Vitto | K158: 500 | M158: 3500.26
I159: 2023-05-30 | J159: Benzina Panda Blu | K159: 23.01 | M159: 3477.25
I160: 2023-05-31 | J160: Luce Settimo | K160: 124.99 | M160: 3352.26
I161: 2023-05-31 | J161: Luce Piazza | K161: 49.61 | M161: 3302.65
I162: 2023-06-01 | J162: Genius | K162: 2.15 | M162: 3300.5
I163: 2023-06-01 | J163: Pensione Claudio | L163: 1865.9 | M163: 5166.4
I164: 2023-06-01 | J164: Pensione Rosalba | L164: 1586.02 | M164: 6752.42
I165: 2023-06-01 | J165: Carta Click Ricarica | K165: 30 | M165: 6722.42
I166: 2023-06-01 | J166: Tim Rosalba | K166: 15 | M166: 6707.42
I167: 2023-06-01 | J167: Tim Claudio | K167: 15 | M167: 6692.42
I168: 2023-06-01 | J168: Arancio_in | K168: 4001.44 | M168: 2690.98
I169: 2023-06-01 | J169: Amministratore | K169: 362 | M169: 2328.98
I170: 2023-06-01 | J170: Rosalba | K170: 30.99 | M170: 2297.99
I171: 2023-06-02 | J171: Rosalba | K171: 29.9 | M171: 2268.09
I172: 2023-06-03 | J172: Rosalba | K172: 44.99 | M172: 2223.1
I173: 2023-06-03 | J173: Rosalba | K173: 30.25 | M173: 2192.85
I174: 2023-06-05 | J174: Gasolio Golf | K174: 30 | M174: 2162.85
I175: 2023-06-07 | J175: Tari Piazza | K175: 77.5 | M175: 2085.35
I176: 2023-06-08 | J176: Monica | K176: 150 | M176: 1935.35
I177: 2023-06-08 | J177: Andrea | K177: 150 | M177: 1785.35
I178: 2023-06-08 | J178: Varie | K178: 1.3 | M178: 1784.05
I179: 2023-06-09 | J179: Benzina Beverly | K179: 10 | M179: 1774.05
I180: 2023-06-09 | J180: Vitto | K180: 600 | M180: 1174.05
I181: 2023-06-10 | J181: Rosalba | K181: 68.84 | M181: 1105.21
I182: 2023-06-12 | J182: Vitto | K182: 20.45 | M182: 1084.76
I183: 2023-06-12 | J183: Benzina Panda Blu | K183: 21 | M183: 1063.76
I184: 2023-06-16 | J184: Imu Piazza Claudio | K184: 132 | M184: 931.76
I185: 2023-06-16 | J185: Imu Piazza Rosalba | K185: 132 | M185: 799.76
I186: 2023-06-19 | J186: Arancio_out | L186: 1300 | M186: 2099.76
I187: 2023-06-19 | J187: Rosalba | K187: 10.44 | M187: 2089.32
I188: 2023-06-21 | J188: Infostrada | K188: 25.99 | M188: 2063.33
I189: 2023-06-23 | J189: ParkinGo | K189: 38 | M189: 2025.33
I190: 2023-06-23 | J190: Benzina Panda Gialla | K190: 30 | M190: 1995.33
I191: 2023-06-24 | J191: Claudio | K191: 20.15 | M191: 1975.18
I192: 2023-06-24 | J192: Vitto | K192: 43.94 | M192: 1931.24
I193: 2023-06-26 | J193: AcquaEnna | K193: 60.52 | M193: 1870.72
I194: 2023-06-26 | J194: Varie | K194: 376.44 | M194: 1494.28
I195: 2023-06-26 | J195: Vitto | K195: 500 | M195: 994.28
I196: 2023-06-27 | J196: Claudio | K196: 26.13 | M196: =$M195-$K196+$L196 -> 968.15
I197: 2023-06-30 | J197: Competenze Banca | K197: 10.33 | M197: 957.82
I198: 2023-06-30 | J198: Carta Click Ricarica | K198: 20 | M198: 937.82
I199: 2023-07-01 | J199: Genius | K199: 2.15 | M199: 935.67
I200: 2023-07-03 | J200: Pensione Claudio | L200: 1865.9 | M200: 2801.57
... 69 more rows

Sheet Scadenzario
C6: Gennaio | D6: Febbraio | E6: Marzo | F6: Aprile | G6: Maggio | H6: Giugno | I6: Luglio | J6: Agosto | K6: Settembre | L6: Ottobre | M6: Novembre | N6: Dicembre | R6: TOTALE | S6: DATO | T6: DA DARE
P7: DENTISTA CLAUDIO | R7: 7850 | S7: =SUM(D2:D3) -> 0 | T7: =R7-S7 -> 7850
B8: Assicurazione 500 | C8: =SUMIF(Gennaio!$B$6:$B$29,$B8,Gennaio!$C$6:$C$29) -> 0 | D8: =SUMIF(Febbraio!$B$6:$B$26,$B8,Febbraio!$C$6:$C$26) -> 0 | E8: =SUMIF(Marzo!$B$6:$B$21,$B8,Marzo!$C$6:$C$21) -> 0 | F8: =SUMIF(Aprile!$B$6:$B$22,$B8,Aprile!$C$6:$C$22) -> 0 | G8: =SUMIF(Maggio!$B$6:$B$35,$B8,Maggio!$C$6:$C$35) -> 244 | H8: =SUMIF(Giugno!$B$6:$B$32,$B8,Giugno!$C$6:$C$32) -> 0 | I8: =SUMIF(Luglio!$B$6:$B$28,$B8,Luglio!$C$6:$C$28) -> 0 | J8: =SUMIF(Agosto!$B$6:$B$31,$B8,Agosto!$C$6:$C$31) -> 0 | K8: =SUMIF(Settembre!$B$6:$B$30,$B8,Settembre!$C$6:$C$30) -> 0 | L8: =SUMIF(Ottobre!$B$6:$B$30,$B8,Ottobre!$C$6:$C$30) -> 0 | M8: =SUMIF(Novembre!$B$6:$B$36,$B8,Novembre!$C$6:$C$36) -> 244.28 | N8: =SUMIF(Dicembre!$B$6:$B$31,$B8,Dicembre!$C$6:$C$31) -> 0
B9: Assicurazione Beverly | C9: =SUMIF(Gennaio!$B$6:$B$29,$B9,Gennaio!$C$6:$C$29) -> 0 | D9: =SUMIF(Febbraio!$B$6:$B$26,$B9,Febbraio!$C$6:$C$26) -> 0 | E9: =SUMIF(Marzo!$B$6:$B$21,$B9,Marzo!$C$6:$C$21) -> 0 | F9: =SUMIF(Aprile!$B$6:$B$22,$B9,Aprile!$C$6:$C$22) -> 0 | G9: =SUMIF(Maggio!$B$6:$B$35,$B9,Maggio!$C$6:$C$35) -> 0 | H9: =SUMIF(Giugno!$B$6:$B$32,$B9,Giugno!$C$6:$C$32) -> 0 | I9: =SUMIF(Luglio!$B$6:$B$28,$B9,Luglio!$C$6:$C$28) -> 0 | J9: =SUMIF(Agosto!$B$6:$B$31,$B9,Agosto!$C$6:$C$31) -> 0 | K9: =SUMIF(Settembre!$B$6:$B$30,$B9,Settembre!$C$6:$C$30) -> 0 | L9: =SUMIF(Ottobre!$B$6:$B$30,$B9,Ottobre!$C$6:$C$30) -> 0 | M9: =SUMIF(Novembre!$B$6:$B$36,$B9,Novembre!$C$6:$C$36) -> 0 | N9: =SUMIF(Dicembre!$B$6:$B$31,$B9,Dicembre!$C$6:$C$31) -> 0 | P9: 2009-02-16 | Q9: 2000 | R9: Pagato con assegno
B10: Assicurazione Golf | C10: =SUMIF(Gennaio!$B$6:$B$29,$B10,Gennaio!$C$6:$C$29) -> 0 | D10: =SUMIF(Febbraio!$B$6:$B$26,$B10,Febbraio!$C$6:$C$26) -> 0 | E10: =SUMIF(Marzo!$B$6:$B$21,$B10,Marzo!$C$6:$C$21) -> 200 | F10: =SUMIF(Aprile!$B$6:$B$22,$B10,Aprile!$C$6:$C$22) -> 0 | G10: =SUMIF(Maggio!$B$6:$B$35,$B10,Maggio!$C$6:$C$35) -> 0 | H10: =SUMIF(Giugno!$B$6:$B$32,$B10,Giugno!$C$6:$C$32) -> 0 | I10: =SUMIF(Luglio!$B$6:$B$28,$B10,Luglio!$C$6:$C$28) -> 0 | J10: =SUMIF(Agosto!$B$6:$B$31,$B10,Agosto!$C$6:$C$31) -> 0 | K10: =SUMIF(Settembre!$B$6:$B$30,$B10,Settembre!$C$6:$C$30) -> 0 | L10: =SUMIF(Ottobre!$B$6:$B$30,$B10,Ottobre!$C$6:$C$30) -> 0 | M10: =SUMIF(Novembre!$B$6:$B$36,$B10,Novembre!$C$6:$C$36) -> 0 | N10: =SUMIF(Dicembre!$B$6:$B$31,$B10,Dicembre!$C$6:$C$31) -> 0 | P10: 2009-03-02 | Q10: 2000 | R10: Pagato con assegno
B11: Assicurazione Panda Blu | C11: =SUMIF(Gennaio!$B$6:$B$29,$B11,Gennaio!$C$6:$C$29) -> 0 | D11: =SUMIF(Febbraio!$B$6:$B$26,$B11,Febbraio!$C$6:$C$26) -> 0 | E11: =SUMIF(Marzo!$B$6:$B$21,$B11,Marzo!$C$6:$C$21) -> 0 | F11: =SUMIF(Aprile!$B$6:$B$22,$B11,Aprile!$C$6:$C$22) -> 0 | G11: =SUMIF(Maggio!$B$6:$B$35,$B11,Maggio!$C$6:$C$35) -> 139.41 | H11: =SUMIF(Giugno!$B$6:$B$32,$B11,Giugno!$C$6:$C$32) -> 0 | I11: =SUMIF(Luglio!$B$6:$B$28,$B11,Luglio!$C$6:$C$28) -> 0 | J11: =SUMIF(Agosto!$B$6:$B$31,$B11,Agosto!$C$6:$C$31) -> 0 | K11: =SUMIF(Settembre!$B$6:$B$30,$B11,Settembre!$C$6:$C$30) -> 0 | L11: =SUMIF(Ottobre!$B$6:$B$30,$B11,Ottobre!$C$6:$C$30) -> 0 | M11: =SUMIF(Novembre!$B$6:$B$36,$B11,Novembre!$C$6:$C$36) -> 198 | N11: =SUMIF(Dicembre!$B$6:$B$31,$B11,Dicembre!$C$6:$C$31) -> 0 | P11: 2009-03-16 | Q11: 2000 | R11: Pagato con assegno
B12: Assicurazione Panda Gialla | C12: =SUMIF(Gennaio!$B$6:$B$29,$B12,Gennaio!$C$6:$C$29) -> 0 | D12: =SUMIF(Febbraio!$B$6:$B$26,$B12,Febbraio!$C$6:$C$26) -> 0 | E12: =SUMIF(Marzo!$B$6:$B$21,$B12,Marzo!$C$6:$C$21) -> 0 | F12: =SUMIF(Aprile!$B$6:$B$22,$B12,Aprile!$C$6:$C$22) -> 0 | G12: =SUMIF(Maggio!$B$6:$B$35,$B12,Maggio!$C$6:$C$35) -> 0 | H12: =SUMIF(Giugno!$B$6:$B$32,$B12,Giugno!$C$6:$C$32) -> 0 | I12: =SUMIF(Luglio!$B$6:$B$28,$B12,Luglio!$C$6:$C$28) -> 0 | J12: =SUMIF(Agosto!$B$6:$B$31,$B12,Agosto!$C$6:$C$31) -> 0 | K12: =SUMIF(Settembre!$B$6:$B$30,$B12,Settembre!$C$6:$C$30) -> 0 | L12: =SUMIF(Ottobre!$B$6:$B$30,$B12,Ottobre!$C$6:$C$30) -> 0 | M12: =SUMIF(Novembre!$B$6:$B$36,$B12,Novembre!$C$6:$C$36) -> 0 | N12: =SUMIF(Dicembre!$B$6:$B$31,$B12,Dicembre!$C$6:$C$31) -> 0 | P12: 2009-03-27 | Q12: 1500 | R12: Pagato con assegno
B13: Bollo 500 | C13: =SUMIF(Gennaio!$B$6:$B$29,$B13,Gennaio!$C$6:$C$29) -> 0 | D13: =SUMIF(Febbraio!$B$6:$B$26,$B13,Febbraio!$C$6:$C$26) -> 0 | E13: =SUMIF(Marzo!$B$6:$B$21,$B13,Marzo!$C$6:$C$21) -> 0 | F13: =SUMIF(Aprile!$B$6:$B$22,$B13,Aprile!$C$6:$C$22) -> 0 | G13: =SUMIF(Maggio!$B$6:$B$35,$B13,Maggio!$C$6:$C$35) -> 0 | H13: =SUMIF(Giugno!$B$6:$B$32,$B13,Giugno!$C$6:$C$32) -> 0 | I13: =SUMIF(Luglio!$B$6:$B$28,$B13,Luglio!$C$6:$C$28) -> 0 | J13: =SUMIF(Agosto!$B$6:$B$31,$B13,Agosto!$C$6:$C$31) -> 0 | K13: =SUMIF(Settembre!$B$6:$B$30,$B13,Settembre!$C$6:$C$30) -> 0 | L13: =SUMIF(Ottobre!$B$6:$B$30,$B13,Ottobre!$C$6:$C$30) -> 0 | M13: =SUMIF(Novembre!$B$6:$B$36,$B13,Novembre!$C$6:$C$36) -> 0 | N13: =SUMIF(Dicembre!$B$6:$B$31,$B13,Dicembre!$C$6:$C$31) -> 0 | P13: 2009-09-22 | Q13: 350 | R13: Pagato con assegno
B14: Bollo Beverly | C14: =SUMIF(Gennaio!$B$6:$B$29,$B14,Gennaio!$C$6:$C$29) -> 0 | D14: =SUMIF(Febbraio!$B$6:$B$26,$B14,Febbraio!$C$6:$C$26) -> 0 | E14: =SUMIF(Marzo!$B$6:$B$21,$B14,Marzo!$C$6:$C$21) -> 0 | F14: =SUMIF(Aprile!$B$6:$B$22,$B14,Aprile!$C$6:$C$22) -> 40.6 | G14: =SUMIF(Maggio!$B$6:$B$35,$B14,Maggio!$C$6:$C$35) -> 0 | H14: =SUMIF(Giugno!$B$6:$B$32,$B14,Giugno!$C$6:$C$32) -> 0 | I14: =SUMIF(Luglio!$B$6:$B$28,$B14,Luglio!$C$6:$C$28) -> 0 | J14: =SUMIF(Agosto!$B$6:$B$31,$B14,Agosto!$C$6:$C$31) -> 0 | K14: =SUMIF(Settembre!$B$6:$B$30,$B14,Settembre!$C$6:$C$30) -> 0 | L14: =SUMIF(Ottobre!$B$6:$B$30,$B14,Ottobre!$C$6:$C$30) -> 0 | M14: =SUMIF(Novembre!$B$6:$B$36,$B14,Novembre!$C$6:$C$36) -> 0 | N14: =SUMIF(Dicembre!$B$6:$B$31,$B14,Dicembre!$C$6:$C$31) -> 0
B15: Bollo Golf | C15: =SUMIF(Gennaio!$B$6:$B$29,$B15,Gennaio!$C$6:$C$29) -> 193.08 | D15: =SUMIF(Febbraio!$B$6:$B$26,$B15,Febbraio!$C$6:$C$26) -> 0 | E15: =SUMIF(Marzo!$B$6:$B$21,$B15,Marzo!$C$6:$C$21) -> 0 | F15: =SUMIF(Aprile!$B$6:$B$22,$B15,Aprile!$C$6:$C$22) -> 0 | G15: =SUMIF(Maggio!$B$6:$B$35,$B15,Maggio!$C$6:$C$35) -> 0 | H15: =SUMIF(Giugno!$B$6:$B$32,$B15,Giugno!$C$6:$C$32) -> 0 | I15: =SUMIF(Luglio!$B$6:$B$28,$B15,Luglio!$C$6:$C$28) -> 0 | J15: =SUMIF(Agosto!$B$6:$B$31,$B15,Agosto!$C$6:$C$31) -> 0 | K15: =SUMIF(Settembre!$B$6:$B$30,$B15,Settembre!$C$6:$C$30) -> 0 | L15: =SUMIF(Ottobre!$B$6:$B$30,$B15,Ottobre!$C$6:$C$30) -> 0 | M15: =SUMIF(Novembre!$B$6:$B$36,$B15,Novembre!$C$6:$C$36) -> 0 | N15: =SUMIF(Dicembre!$B$6:$B$31,$B15,Dicembre!$C$6:$C$31) -> 0
B16: Bollo Panda Blu | C16: =SUMIF(Gennaio!$B$6:$B$29,$B16,Gennaio!$C$6:$C$29) -> 0 | D16: =SUMIF(Febbraio!$B$6:$B$26,$B16,Febbraio!$C$6:$C$26) -> 0 | E16: =SUMIF(Marzo!$B$6:$B$21,$B16,Marzo!$C$6:$C$21) -> 0 | F16: =SUMIF(Aprile!$B$6:$B$22,$B16,Aprile!$C$6:$C$22) -> 0 | G16: =SUMIF(Maggio!$B$6:$B$35,$B16,Maggio!$C$6:$C$35) -> 0 | H16: =SUMIF(Giugno!$B$6:$B$32,$B16,Giugno!$C$6:$C$32) -> 0 | I16: =SUMIF(Luglio!$B$6:$B$28,$B16,Luglio!$C$6:$C$28) -> 0 | J16: =SUMIF(Agosto!$B$6:$B$31,$B16,Agosto!$C$6:$C$31) -> 0 | K16: =SUMIF(Settembre!$B$6:$B$30,$B16,Settembre!$C$6:$C$30) -> 0 | L16: =SUMIF(Ottobre!$B$6:$B$30,$B16,Ottobre!$C$6:$C$30) -> 134.18 | M16: =SUMIF(Novembre!$B$6:$B$36,$B16,Novembre!$C$6:$C$36) -> 0 | N16: =SUMIF(Dicembre!$B$6:$B$31,$B16,Dicembre!$C$6:$C$31) -> 0
B17: Bollo Panda Gialla | C17: =SUMIF(Gennaio!$B$6:$B$29,$B17,Gennaio!$C$6:$C$29) -> 0 | D17: =SUMIF(Febbraio!$B$6:$B$26,$B17,Febbraio!$C$6:$C$26) -> 0 | E17: =SUMIF(Marzo!$B$6:$B$21,$B17,Marzo!$C$6:$C$21) -> 0 | F17: =SUMIF(Aprile!$B$6:$B$22,$B17,Aprile!$C$6:$C$22) -> 0 | G17: =SUMIF(Maggio!$B$6:$B$35,$B17,Maggio!$C$6:$C$35) -> 0 | H17: =SUMIF(Giugno!$B$6:$B$32,$B17,Giugno!$C$6:$C$32) -> 0 | I17: =SUMIF(Luglio!$B$6:$B$28,$B17,Luglio!$C$6:$C$28) -> 0 | J17: =SUMIF(Agosto!$B$6:$B$31,$B17,Agosto!$C$6:$C$31) -> 0 | K17: =SUMIF(Settembre!$B$6:$B$30,$B17,Settembre!$C$6:$C$30) -> 134.18 | L17: =SUMIF(Ottobre!$B$6:$B$30,$B17,Ottobre!$C$6:$C$30) -> 0 | M17: =SUMIF(Novembre!$B$6:$B$36,$B17,Novembre!$C$6:$C$36) -> 0 | N17: =SUMIF(Dicembre!$B$6:$B$31,$B17,Dicembre!$C$6:$C$31) -> 0

Sheet IPhone
M5: mensile | O5: totale
G7: Totale dare | I7: Pagato | K7: Da Pagare | M7: =E11+E25 -> 85.75 | O7: =K8+K25 -> 600.25
B8: 1 | C8: Novembre | E8: 85.75 | F8: PAGATO | G8: 1029 | I8: =SUMIF(F8:F19,I7,(E8:E19)) -> 428.75 | K8: =G8-I8 -> 600.25
B9: 2 | C9: Dicembre | E9: 85.75 | F9: PAGATO
B10: 3 | C10: Gennaio | E10: 85.75 | F10: PAGATO | G10: =COUNT(B8:B19)&" "&"rate" -> 12 rate | I10: =COUNTIF(F8:F19,I7)&" "&"rate" -> 5 rate | K10: =COUNTIF(F8:F19,K7)&" "&"rate" -> 7 rate
B11: 4 | C11: Febbraio | E11: 85.75 | F11: PAGATO
B12: 5 | C12: Marzo | E12: 85.75 | F12: PAGATO
B13: 6 | C13: Aprile | E13: 85.75 | F13: DA PAGARE
B14: 7 | C14: Maggio | E14: 85.75 | F14: DA PAGARE
B15: 8 | C15: Giugno | E15: 85.75 | F15: DA PAGARE
B16: 9 | C16: Luglio | E16: 85.75 | F16: DA PAGARE
B17: 10 | C17: Agosto | E17: 85.75 | F17: DA PAGARE
B18: 11 | C18: Settembre | E18: 85.75 | F18: DA PAGARE
B19: 12 | C19: Ottobre | E19: 85.75 | F19: DA PAGARE

Sheet Monica
A1: Rapporto IT 81 R 02008 31035 000001138967 - CAMPAGNA CLAUDIO, TERMINI ROSALBA
A3: Data | C3: Descrizione | D3: EUR | H3: già dati | I3: da dare
A4: Operazione | B4: Valuta | H4: NUMERO | I4: RATE
A5: 2008-06-04 | B5: 2008-06-04 | C5: DISPOSIZIONE DI BONIFICO BONIFICO A GALANTE/CAMPAGNA PER VERSAMENTO DA PAPA COMM. 4,00 | D5: 20004
A6: 2008-07-28 | B6: 2008-07-28 | C6: DISPOSIZIONE DI BONIFICO BONIFICO A GALANTE MANUEL CAMPAGNA MONICA PER CONTRIBUTO MUTUO COMM. 1,00 | D6: -201 | F6: =-D5 -> -20004 | H6: 1 | I6: 59 | L6: Totali
A7: 2008-09-01 | B7: 2008-08-26 | C7: DISPOSIZIONE DI BONIFICO BONIFICO A GALANTE MANUEL CAMPAGNA MONICA PER CONTRIBUTO MUTUO | D7: -200 | F7: =SUM(D6:D65) -> -12001 | H7: =IF(AND(D7=0),"",H6+1) -> 2 | I7: =IF(AND(D7=0),"",I6-1) -> 58 | L7: =SUM(F10+D72+D136) -> 89105.49
A8: 2008-10-01 | B8: 2008-09-25 | C8: DISPOSIZIONE DI BONIFICO BONIFICO A GALANTE MANUEL CAMPAGNA MONICA PER CONTRIBUTO MUTUO | D8: -200 | H8: 3 | I8: 57
A9: 2008-10-31 | B9: 2008-10-28 | C9: DISPOSIZIONE DI BONIFICO BONIFICO A GALANTE MANUEL CAMPAGNA MONICA PER CONTRIBUTO MUTUO | D9: -200 | H9: 4 | I9: 56
A10: 2008-12-01 | B10: 2008-11-25 | C10: DISPOSIZIONE DI BONIFICO BONIFICO A GALANTE MANUEL CAMPAGNA MONICA PER CONTRIBUTO MUTUO | D10: -200 | F10: =-(F6+F7) -> 32005 | H10: 5 | I10: 55
A11: 2008-12-31 | B11: 2008-12-28 | C11: DISPOSIZIONE DI BONIFICO BONIFICO A GALANTE MANUEL CAMPAGNA MONICA PER CONTRIBUTO MUTUO | D11: -200 | H11: 6 | I11: 54
A12: 2009-01-30 | B12: 2009-01-27 | C12: DISPOSIZIONE DI BONIFICO BONIFICO A GALANTE MANUEL CAMPAGNA MONICA PER CONTRIBUTO MUTUO | D12: -200 | H12: 7 | I12: 53
A13: 2009-02-27 | B13: 2009-02-24 | C13: DISPOSIZIONE DI BONIFICO BONIFICO A GALANTE MANUEL CAMPAGNA MONICA PER CONTRIBUTO MUTUO | D13: -200 | H13: 8 | I13: 52
A14: 2009-04-01 | B14: 2009-03-26 | C14: DISPOSIZIONE DI BONIFICO BONIFICO A GALANTE MANUEL CAMPAGNA MONICA PER CONTRIBUTO MUTUO | D14: -200 | H14: 9 | I14: 51
A15: 2009-04-30 | B15: 2009-04-27 | C15: DISPOSIZIONE DI BONIFICO BONIFICO A GALANTE MANUEL CAMPAGNA MONICA PER CONTRIBUTO MUTUO | D15: -200 | H15: 10 | I15: 50
A16: 2009-06-01 | B16: 2009-05-26 | C16: DISPOSIZIONE DI BONIFICO BONIFICO A GALANTE MANUEL CAMPAGNA MONICA PER CONTRIBUTO MUTUO | D16: -200 | H16: 11 | I16: 49
A17: 2009-07-01 | B17: 2009-06-25 | C17: DISPOSIZIONE DI BONIFICO BONIFICO A GALANTE MANUEL CAMPAGNA MONICA PER CONTRIBUTO MUTUO | D17: -200 | H17: 12 | I17: 48
A18: 2009-07-31 | B18: 2009-07-28 | C18: DISPOSIZIONE DI BONIFICO BONIFICO A GALANTE MANUEL CAMPAGNA MONICA PER CONTRIBUTO MUTUO | D18: -200 | H18: 13 | I18: 47
A19: 2009-09-01 | B19: 2009-08-26 | C19: DISPOSIZIONE DI BONIFICO BONIFICO A GALANTE MANUEL CAMPAGNA MONICA PER CONTRIBUTO MUTUO | D19: -200 | H19: 14 | I19: 46
A20: 2009-10-01 | B20: 2009-09-27 | C20: DISPOSIZIONE DI BONIFICO BONIFICO A GALANTE MANUEL CAMPAGNA MONICA PER CONTRIBUTO MUTUO | D20: -200 | H20: 15 | I20: 45
A21: 2009-10-30 | B21: 2009-10-27 | C21: DISPOSIZIONE DI BONIFICO BONIFICO A GALANTE MANUEL CAMPAGNA MONICA PER CONTRIBUTO MUTUO | D21: -200 | H21: 16 | I21: 44
A22: 2009-12-01 | B22: 2009-11-30 | C22: DISPOSIZIONE DI BONIFICO BONIFICO A GALANTE MANUEL CAMPAGNA MONICA PER CONTRIBUTO MUTUO | D22: -200 | H22: 17 | I22: 43
A23: 2009-12-31 | B23: 2009-12-31 | C23: DISPOSIZIONE DI BONIFICO BONIFICO A GALANTE MANUEL CAMPAGNA MONICA PER CONTRIBUTO MUTUO | D23: -200 | H23: 18 | I23: 42
A24: 2010-02-01 | B24: 2010-01-29 | C24: DISPOSIZIONE DI BONIFICO BONIFICO A GALANTE MANUEL CAMPAGNA MONICA PER CONTRIBUTO MUTUO | D24: -200 | H24: 19 | I24: 41
A25: 2010-02-26 | B25: 2010-02-26 | C25: DISPOSIZIONE DI BONIFICO BONIFICO A GALANTE MANUEL CAMPAGNA MONICA PER CONTRIBUTO MUTUO | D25: -200 | H25: 20 | I25: 40
A26: 2010-03-31 | B26: 2010-03-31 | C26: DISPOSIZIONE DI BONIFICO BONIFICO A GALANTE MANUEL CAMPAGNA MONICA PER CONTRIBUTO MUTUO | D26: -200 | H26: 21 | I26: 39
A27: 2010-04-29 | B27: 2010-04-29 | C27: DISPOSIZIONE DI BONIFICO BONIFICO A GALANTE MANUEL CAMPAGNA MONICA PER CONTRIBUTO MUTUO | D27: -200 | H27: 22 | I27: 38
A28: 2010-05-31 | B28: 2010-05-31 | C28: DISPOSIZIONE DI BONIFICO BONIFICO A GALANTE MANUEL CAMPAGNA MONICA PER CONTRIBUTO MUTUO | D28: -200 | H28: 23 | I28: 37
A29: 2010-06-30 | B29: 2010-06-30 | C29: DISPOSIZIONE DI BONIFICO CRO OPERAZIONE 36656828101 BONIFICO A GALANTE MANUEL CAMPAGNA MONICA PER CONTRIBUTO MUTUO | D29: -200 | H29: 24 | I29: 36
A30: 2010-07-29 | B30: 2010-07-29 | C30: CRO OPERAZIONE 36734136602 BONIFICO A GALANTE MANUEL CAMPAGNA MONICA PER CONTRIBUTO MUTUO | D30: -200 | H30: 25 | I30: 35
A31: 2010-08-31 | B31: 2010-08-31 | C31: BONIFICO A GALANTE MANUEL CAMPAGNA MONICA PER CONTRIBUTO MUTUO CRO OPERAZIONE 36812552602 | D31: -200 | H31: 26 | I31: 34
A32: 2010-09-30 | B32: 2010-09-30 | C32: BONIFICO A GALANTE MANUEL CAMPAGNA MONICA PER CONTRIBUTO MUTUO CRO OPERAZIONE 36889308111 | D32: -200 | H32: =IF(AND(D32=0),"",H31+1) -> 27 | I32: =IF(AND(D32=0),"",I31-1) -> 33
A33: 2010-10-28 | B33: 2010-10-28 | C33: DISPOSIZIONE DI BONIFICO BONIFICO A GALANTE MANUEL CAMPAGNA MONICA PER CONTRIBUTO MUTUO CRO OPERAZIONE 36965297112 | D33: -200 | H33: =IF(AND(D33=0),"",H32+1) -> 28 | I33: =IF(AND(D33=0),"",I32-1) -> 32
A34: 2010-11-30 | B34: 2010-11-30 | C34: BONIFICO A GALANTE MANUEL CAMPAGNA MONICA PER CONTRIBUTO MUTUO CRO OPERAZIONE 37096595711 | D34: -200 | H34: 29 | I34: 31
A35: 2010-12-30 | B35: 2010-12-30 | C35: DISPOSIZIONE DI BONIFICO BONIFICO A GALANTE MANUEL CAMPAGNA MONICA PER CONTRIBUTO MUTUO CRO OPERAZIONE 37237575006 | D35: -200 | H35: 30 | I35: 30
A36: 2011-01-31 | B36: 2011-01-31 | C36: DISPOSIZIONE DI BONIFICO BONIFICO A GALANTE MANUEL CAMPAGNA MONICA PER CONTRIBUTO MUTUO CRO OPERAZIONE 37347769304 | D36: -200 | H36: 31 | I36: 29
A37: 2011-02-28 | B37: 2011-02-28 | C37: DISPOSIZIONE DI BONIFICO BONIFICO A GALANTE MANUEL CAMPAGNA MONICA PER CONTRIBUTO MUTUO CRO OPERAZIONE 37467365303 | D37: -200 | H37: 32 | I37: 28
A38: 2011-03-31 | B38: 2011-03-31 | C38: DISPOSIZIONE DI BONIFICO BONIFICO A GALANTE MANUEL CAMPAGNA MONICA PER CONTRIBUTO MUTUO CRO OPERAZIONE 37596525112 | D38: -200 | H38: 33 | I38: 27
A39: 2011-04-28 | B39: 2011-04-28 | C39: DISPOSIZIONE DI BONIFICO BONIFICO A GALANTE MANUEL CAMPAGNA MONICA PER CONTRIBUTO MUTUO CRO OPERAZIONE 37711098302 | D39: -200 | H39: 34 | I39: 26
A40: 2011-05-31 | B40: 2011-05-31 | C40: DISPOSIZIONE DI BONIFICO BONIFICO A GALANTE MANUEL CAMPAGNA MONICA PER CONTRIBUTO MUTUO CRO OPERAZIONE 37844151901 | D40: -200 | H40: 35 | I40: 25
A41: 2011-06-30 | B41: 2011-06-30 | C41: BONIFICO A GALANTE MANUEL CAMPAGNA MONICA PER CONTRIBUTO MUTUO CRO OPERAZIONE 37971731112 | D41: -200 | H41: 36 | I41: 24
A42: 2011-07-29 | B42: 2011-07-29 | C42: BONIFICO A GALANTE MANUEL CAMPAGNA MONICA PER CONTRIBUTO MUTUO CRO OPERAZIONE 38098378008 | D42: -200 | H42: 37 | I42: 23
A43: 2011-08-31 | B43: 2011-08-31 | C43: BONIFICO A GALANTE MANUEL CAMPAGNA MONICA PER CONTRIBUTO MUTUO CRO OPERAZIONE 38217292706 | D43: -200 | H43: 38 | I43: 22
A44: 2011-09-29 | B44: 2011-09-29 | C44: BONIFICO A GALANTE MANUEL CAMPAGNA MONICA PER CONTRIBUTO MUTUO CRO OPERAZIONE 38330073802 | D44: -200 | H44: 39 | I44: 21
A45: 2011-10-28 | B45: 2011-10-28 | C45: BONIFICO A GALANTE MANUEL CAMPAGNA MONICA PER CONTRIBUTO MUTUO CRO OPERAZIONE 38455379906 | D45: -200 | H45: 40 | I45: 20
A46: 2011-11-30 | B46: 2011-11-30 | C46: BONIFICO A GALANTE MANUEL CAMPAGNA MONICA PER CONTRIBUTO MUTUO CRO OPERAZIONE 38588582702 | D46: -200 | H46: 41 | I46: 19
A47: 2011-12-29 | B47: 2011-12-29 | C47: DISPOSIZIONE DI BONIFICO BONIFICO A GALANTE MANUEL CAMPAGNA MONICA PER CONTRIBUTO MUTUO CRO OPERAZIONE 38725115808 | D47: -200 | H47: 42 | I47: 18
A48: 2012-01-31 | B48: 2012-01-31 | C48: BONIFICO A GALANTE MANUEL CAMPAGNA MONICA PER CONTRIBUTO MUTUO CRO OPERAZIONE 38842689411 | D48: -200 | H48: 43 | I48: 17
A49: 2012-02-29 | B49: 2012-02-29 | C49: DISPOSIZIONE DI BONIFICO BONIFICO A GALANTE MANUEL CAMPAGNA MONICA PER CONTRIBUTO MUTUO CRO OPERAZIONE 38967017410 | D49: -200 | H49: 44 | I49: 16
A50: 2012-03-29 | B50: 2012-03-29 | C50: BONIFICO A GALANTE MANUEL CAMPAGNA MONICA PER CONTRIBUTO MUTUO CRO OPERAZIONE 39095503705 | D50: -200 | H50: 45 | I50: 15
A51: 2012-04-27 | B51: 2012-04-27 | C51: DISPOSIZIONE DI BONIFICO BONIFICO A GALANTE MANUEL CAMPAGNA MONICA PER CONTRIBUTO MUTUO CRO OPERAZIONE 39220995507 | D51: -200 | H51: 46 | I51: 14
A52: 2012-05-31 | B52: 2012-05-31 | C52: BONIFICO A GALANTE MANUEL CAMPAGNA MONICA PER CONTRIBUTO MUTUO CRO OPERAZIONE 39358108211 | D52: -200 | H52: 47 | I52: 13
A53: 2012-06-28 | B53: 2012-06-28 | C53: BONIFICO A GALANTE MANUEL CAMPAGNA MONICA PER CONTRIBUTO MUTUO CRO OPERAZIONE 39483162102 | D53: -200 | H53: 48 | I53: 12
A54: 2012-07-31 | B54: 2012-07-31 | C54: BONIFICO A GALANTE MANUEL CAMPAGNA MONICA PER CONTRIBUTO MUTUO CRO OPERAZIONE 39623849402 | D54: -200 | H54: 49 | I54: 11
A55: 2012-08-30 | B55: 2012-08-30 | C55: DISPOSIZIONE DI BONIFICO BONIFICO A GALANTE MANUEL CAMPAGNA MONICA PER CONTRIBUTO MUTUO CRO OPERAZIONE 39742009608 | D55: -200 | H55: 50 | I55: 10
A56: 2012-09-28 | B56: 2012-09-28 | C56: DISPOSIZIONE DI BONIFICO BONIFICO A GALANTE MANUEL CAMPAGNA MONICA PER CONTRIBUTO MUTUO CRO OPERAZIONE 39864600403 | D56: -200 | H56: 51 | I56: 9
A57: 2012-10-30 | B57: 2012-10-30 | C57: BONIFICO A GALANTE MANUEL CAMPAGNA MONICA PER CONTRIBUTO MUTUO CRO OPERAZIONE 39997106601 | D57: -200 | H57: 52 | I57: 8
A58: 2012-11-29 | B58: 2012-11-29 | C58: DISPOSIZIONE DI BONIFICO BONIFICO A GALANTE MANUEL CAMPAGNA MONICA PER CONTRIBUTO MUTUO CRO OPERAZIONE 35129717508 | D58: -200 | H58: 53 | I58: 7
A59: 2012-12-28 | B59: 2012-12-28 | C59: DISPOSIZIONE DI BONIFICO BONIFICO A GALANTE MANUEL CAMPAGNA MONICA PER CONTRIBUTO MUTUO CRO OPERAZIONE 35281291311 | D59: -200 | H59: 54 | I59: 6
A60: 2013-01-31 | B60: 2013-01-31 | C60: BONIFICO A GALANTE MANUEL CAMPAGNA MONICA PER CONTRIBUTO MUTUO CRO OPERAZIONE 35404516708 | D60: -200 | H60: 55 | I60: 5
A61: 2013-02-28 | B61: 2013-02-28 | C61: DISPOSIZIONE DI BONIFICO BONIFICO A GALANTE MANUEL CAMPAGNA MONICA PER CONTRIBUTO MUTUO CRO OPERAZIONE 35529042812 | D61: -200 | H61: =IF(AND(D61=0),"",H60+1) -> 56 | I61: =IF(AND(D61=0),"",I60-1) -> 4
A62: 2013-03-28 | B62: 2013-03-28 | C62: BONIFICO A GALANTE MANUEL CAMPAGNA MONICA PER CONTRIBUTO MUTUO CRO OPERAZIONE 35655212608 | D62: -200 | H62: 57 | I62: 3
A63: 2013-04-29 | B63: 2013-04-29 | C63: BONIFICO A GALANTE MANUEL CAMPAGNA MONICA PER CONTRIBUTO MUTUO CRO OPERAZIONE 35781785909 | D63: -200 | H63: =IF(AND(D63=0),"",H62+1) -> 58 | I63: =IF(AND(D63=0),"",I62-1) -> 2
A64: 2013-05-30 | B64: 2013-05-30 | C64: BONIFICO A GALANTE MANUEL CAMPAGNA MONICA PER CONTRIBUTO MUTUO CRO OPERAZIONE 35781785909 | D64: -200 | H64: 59 | I64: 1
A65: 2013-06-28 | B65: 2013-06-28 | C65: BONIFICO A GALANTE MANUEL CAMPAGNA MONICA PER CONTRIBUTO MUTUO CRO OPERAZIONE 35781785909 | D65: -200 | H65: 60 | I65: 0
D67: =SUM(D6:D65) -> -12001
H68: =IF(AND(D68=0),"",H65+1) ->  | I68: =IF(AND(D68=0),"",I65-1) ->  | K68: =IF(AND(A68=0),"",TODAY()+$I68*30) -> 
A70: Data | B70: Euro | C70: Totale
A72: 2014-06-17 | B72: 100 | C72: =B71+B72 -> 100 | D72: =SUM(B72:B124) -> 14100.49
A73: 2014-07-17 | B73: 100 | C73: =IF(B73,C72+B73,"") -> 200 | G73: Dentista Matilde
A74: 2014-08-17 | B74: 100 | C74: =IF(B74,C73+B74,"") -> 300
A75: 2014-09-17 | B75: 100 | C75: 400 | G75: Monica | H75: Papà
A76: 2014-10-17 | B76: 100 | C76: 500
A77: 2014-11-14 | B77: 100 | C77: 600 | G77: 75 | H77: 75 | I77: =$G77+$H77 -> 150
A78: 2014-12-19 | B78: 3000 | C78: 3600
A79: 2015-01-16 | B79: 100 | C79: 3700
A80: 2015-02-16 | B80: 100 | C80: 3800
A81: 2015-03-16 | B81: 100 | C81: 3900
A82: 2015-04-16 | B82: 100 | C82: 4000
A83: 2015-05-20 | B83: 140 | C83: 4140
A84: 2015-06-20 | B84: 140 | C84: 4280
A85: 2015-07-20 | B85: 140 | C85: 4420
A86: 2015-08-20 | B86: 140 | C86: 4560
A87: 2015-09-20 | B87: 140 | C87: 4700
A88: 2015-10-20 | B88: 140 | C88: 4840
A89: 2015-11-20 | B89: 140 | C89: 4980
A90: 2015-12-20 | B90: 140 | C90: 5120
A91: 2016-01-20 | B91: 140 | C91: 5260
A92: 2016-02-20 | B92: 140 | C92: 5400
A93: 2016-03-20 | B93: 140 | C93: =IF(B93,C92+B93,"") -> 5540
A94: 2016-04-20 | B94: 140 | C94: 5680
A95: 2016-05-20 | B95: 140 | C95: 5820
A96: 2016-06-20 | B96: 140 | C96: 5960
A97: 2016-07-20 | B97: 140 | C97: 6100
A98: 2016-08-20 | B98: 140 | C98: 6240
A99: 2016-09-20 | B99: 140 | C99: 6380
A100: 2016-10-20 | B100: 140 | C100: 6520
A101: 2016-11-20 | B101: 140 | C101: 6660
A102: 2016-12-20 | B102: 140 | C102: 6800
A103: 2017-01-20 | B103: 140 | C103: 6940
A104: 2017-02-20 | B104: 140 | C104: 7080
A105: 2017-03-20 | B105: 140 | C105: 7220
A106: 2017-04-20 | B106: 140 | C106: 7360
A107: 2017-05-20 | B107: 140 | C107: 7500
A108: 2017-06-20 | B108: 140 | C108: 7640
A109: 2017-07-20 | B109: 140 | C109: 7780
A110: 2017-08-20 | B110: 140 | C110: 7920
A111: 2017-09-20 | B111: 140 | C111: 8060
A112: 2017-10-20 | B112: 140 | C112: 8200
A113: 2017-11-20 | B113: 140 | C113: 8340
A114: 2017-12-20 | B114: 140 | C114: 8480
A115: 2018-01-20 | B115: 140 | C115: 8620
A116: 2018-02-20 | B116: 140 | C116: 8760
A117: 2018-03-20 | B117: 140 | C117: 8900
A118: 2018-04-20 | B118: 140 | C118: 9040
A119: 2018-05-20 | B119: 140 | C119: 9180
A120: 2018-06-20 | B120: 140 | C120: 9320
A121: 2018-07-20 | B121: 140 | C121: 9460
A122: 2018-08-20 | B122: 140 | C122: 9600
A123: 2018-09-20 | B123: 140 | C123: 9740
A124: 2018-10-03 | B124: 4360.49 | C124: 14100.49
A132: In occasione dell'inizio del pagamento del mutuo della nuova casa di Andrea vengono accreditate mensilmente e per 36 mesi 150 euro, sia a Monica che ad Andrea
A136: 2022-01-08 | B136: 150 | C136: 150 | D136: =SUM($B$136:$B$160)+$J$146 -> 43000 | F136: 2021-12-24 | H136: Regalo di Natale | J136: 1000
A137: 2022-02-08 | B137: 150 | C137: =IF(AND($B137=0),"",($C136+$B137)) -> 300 | F137: 2022-05-30 | H137: Regalo | J137: 2000
A138: 2022-03-08 | B138: 150 | C138: =IF(AND($B138=0),"",($C137+$B138)) -> 450 | F138: 2022-08-03 | H138: Regalo | J138: 1000
A139: 2022-04-08 | B139: 150 | C139: 600 | F139: 2022-09-21 | H139: Estinzione cucina | J139: 2300
A140: 2022-05-08 | B140: 150 | C140: 750 | F140: 2022-12-22 | H140: Regalo di Natale | J140: 250
A141: 2022-06-08 | B141: 150 | C141: 900 | F141: 2023-02-01 | H141: Estinzione Affitto casa | J141: 2000
A142: 2022-07-08 | B142: 150 | C142: 1050 | F142: 2023-03-15 | H142: Anticipo acquisto casa | J142: 15000
A143: 2022-08-08 | B143: 150 | C143: 1200 | F143: 2023-04-15 | H143: Anticipo acquisto casa | J143: 15000
A144: 2022-09-08 | B144: 150 | C144: 1350 | F144: 2023-12-27 | H144: Regalo di Natale | J144: 700
A145: 2022-10-08 | B145: 150 | C145: 1500
A146: 2022-11-08 | B146: 150 | C146: 1650 | J146: =SUM(J136:J145) -> 39250
A147: 2022-12-08 | B147: 150 | C147: 1800
A148: 2023-01-08 | B148: 150 | C148: 1950
A149: 2023-02-08 | B149: 150 | C149: 2100
A150: 2023-03-08 | B150: 150 | C150: 2250
A151: 2023-04-08 | B151: 150 | C151: 2400
A152: 2023-05-08 | B152: 150 | C152: 2550
A153: 2023-06-08 | B153: 150 | C153: 2700
A154: 2023-07-08 | B154: 150 | C154: 2850
A155: 2023-08-08 | B155: 150 | C155: 3000
A156: 2023-09-08 | B156: 150 | C156: 3150
A157: 2023-10-08 | B157: 150 | C157: 3300
A158: 2023-11-08 | B158: 150 | C158: 3450
A159: 2023-12-08 | B159: 150 | C159: 3600
A160: 2024-01-08 | B160: 150 | C160: 3750

Sheet Andrea
A1: Rapporto IT 81 R 02008 31035 000001138967 - CAMPAGNA CLAUDIO, TERMINI ROSALBA
A3: Data | C3: Descrizione | D3: EUR | H3: già dati | I3: da dare
A4: Operazione | B4: Valuta | H4: NUMERO | I4: RATE
A5: 2008-06-04 | B5: 2008-06-04 | C5: DISPOSIZIONE DI BONIFICO BONIFICO A CAMPAGNA ANDREA PER VERSAMENTO DA PAPA COMM. 3,00 | D5: -20003
A6: 2009-06-10 | B6: 2009-06-04 | C6: DISPOSIZIONE DI BONIFICO BONIFICO A CAMPAGNA ANDREA PER CONTRIBUTO MUTUO MAMMA PAP | D6: -200 | F6: =D5 -> -20003 | H6: 1 | I6: 59
A7: 2009-07-10 | B7: 2009-07-06 | C7: DISPOSIZIONE DI BONIFICO BONIFICO A CAMPAGNA ANDREA PER CONTRIBUTO MUTUO MAMMA PAP | D7: -200 | F7: =SUM(D6:D65) -> -12000 | H7: =IF(AND(D7=0),"",H6+1) -> 2 | I7: =IF(AND(D7=0),"",I6-1) -> 58 | L7: =SUM(F10+D73+D136) -> 68223
A8: 2009-08-10 | B8: 2009-08-04 | C8: DISPOSIZIONE DI BONIFICO BONIFICO A CAMPAGNA ANDREA PER CONTRIBUTO MUTUO MAMMA PAP | D8: -200 | H8: 3 | I8: 57
A9: 2009-09-10 | B9: 2009-09-06 | C9: DISPOSIZIONE DI BONIFICO BONIFICO A CAMPAGNA ANDREA PER CONTRIBUTO MUTUO MAMMA PAP | D9: -200 | H9: 4 | I9: 56
A10: 2009-10-09 | B10: 2009-10-06 | C10: DISPOSIZIONE DI BONIFICO BONIFICO A CAMPAGNA ANDREA PER CONTRIBUTO MUTUO MAMMA PAP | D10: -200 | F10: =-(F6+F7) -> 32003 | H10: 5 | I10: 55
A11: 2009-11-10 | B11: 2009-11-09 | C11: DISPOSIZIONE DI BONIFICO BONIFICO A CAMPAGNA ANDREA PER CONTRIBUTO MUTUO MAMMA PAP | D11: -200 | H11: 6 | I11: 54
A12: 2009-12-10 | B12: 2009-12-09 | C12: DISPOSIZIONE DI BONIFICO BONIFICO A CAMPAGNA ANDREA PER CONTRIBUTO MUTUO MAMMA PAP | D12: -200 | H12: 7 | I12: 53
A13: 2010-01-08 | B13: 2010-01-08 | C13: DISPOSIZIONE DI BONIFICO BONIFICO A CAMPAGNA ANDREA PER CONTRIBUTO MUTUO MAMMA PAP | D13: -200 | H13: 8 | I13: 52
A14: 2010-02-10 | B14: 2010-02-09 | C14: DISPOSIZIONE DI BONIFICO BONIFICO A CAMPAGNA ANDREA PER CONTRIBUTO MUTUO MAMMA PAP | D14: -200 | H14: 9 | I14: 51
A15: 2010-03-09 | B15: 2010-03-09 | C15: DISPOSIZIONE DI BONIFICO BONIFICO A CAMPAGNA ANDREA PER CONTRIBUTO MUTUO MAMMA PAP | D15: -200 | H15: 10 | I15: 50
A16: 2010-04-08 | B16: 2010-04-08 | C16: DISPOSIZIONE DI BONIFICO BONIFICO A CAMPAGNA ANDREA PER CONTRIBUTO MUTUO MAMMA PAP | D16: -200 | H16: 11 | I16: 49
A17: 2010-05-07 | B17: 2010-05-07 | C17: DISPOSIZIONE DI BONIFICO BONIFICO A CAMPAGNA ANDREA PER CONTRIBUTO MUTUO MAMMA PAP | D17: -200 | H17: 12 | I17: 48
A18: 2010-06-09 | B18: 2010-06-09 | C18: DISPOSIZIONE DI BONIFICO BONIFICO A CAMPAGNA ANDREA PER CONTRIBUTO MUTUO MAMMA PAP | D18: -200 | H18: 13 | I18: 47
A19: 2010-07-08 | B19: 2010-07-08 | C19: DISPOSIZIONE DI BONIFICO CRO OPERAZIONE 36677805911 BONIFICO A CAMPAGNA ANDREA PER CONTRIBUTO MUTUO MAMMA PAP | D19: -200 | H19: 14 | I19: 46
A20: 2010-08-09 | B20: 2010-08-09 | C20: BONIFICO A CAMPAGNA ANDREA PER CONTRIBUTO MUTUO MAMMA PAP CRO OPERAZIONE 36760793607 | D20: -200 | H20: 15 | I20: 45
A21: 2010-09-09 | B21: 2010-09-09 | C21: BONIFICO A CAMPAGNA ANDREA PER CONTRIBUTO MUTUO MAMMA PAP CRO OPERAZIONE 36834263006 | D21: -200 | H21: 16 | I21: 44
A22: 2010-10-07 | B22: 2010-10-07 | C22: BONIFICO A CAMPAGNA ANDREA PER CONTRIBUTO MUTUO MAMMA PAP CRO OPERAZIONE 36909348507 | D22: -200 | H22: =IF(AND(D22=0),"",H21+1) -> 17 | I22: =IF(AND(D22=0),"",I21-1) -> 43
A23: 2010-11-09 | B23: 2010-11-09 | C23: BONIFICO A CAMPAGNA ANDREA PER CONTRIBUTO MUTUO MAMMA PAP CRO OPERAZIONE 37004285500 | D23: -200 | H23: =IF(AND(D23=0),"",H22+1) -> 18 | I23: =IF(AND(D23=0),"",I22-1) -> 42
A24: 2010-12-09 | B24: 2010-12-09 | C24: BONIFICO A CAMPAGNA ANDREA PER CONTRIBUTO MUTUO MAMMA PAP CRO OPERAZIONE 37134937709 | D24: -200 | H24: 19 | I24: 41
A25: 2011-01-07 | B25: 2011-01-07 | C25: DISPOSIZIONE DI BONIFICO BONIFICO A CAMPAGNA ANDREA PER CONTRIBUTO MUTUO MAMMA PAP CRO OPERAZIONE 37264718400 | D25: -200 | H25: 20 | I25: 40
A26: 2011-02-09 | B26: 2011-02-09 | C26: DISPOSIZIONE DI BONIFICO BONIFICO A CAMPAGNA ANDREA PER CONTRIBUTO MUTUO MAMMA PAP CRO OPERAZIONE 37384673805 | D26: -200 | H26: 21 | I26: 39
A27: 2011-03-09 | B27: 2011-03-09 | C27: DISPOSIZIONE DI BONIFICO BONIFICO A CAMPAGNA ANDREA PER CONTRIBUTO MUTUO MAMMA PAP CRO OPERAZIONE 37504699612 | D27: -200 | H27: 22 | I27: 38
A28: 2011-04-07 | B28: 2011-04-07 | C28: DISPOSIZIONE DI BONIFICO BONIFICO A CAMPAGNA ANDREA PER CONTRIBUTO MUTUO MAMMA PAP CRO OPERAZIONE 37627183403 | D28: -200 | H28: 23 | I28: 37
A29: 2011-05-09 | B29: 2011-05-09 | C29: DISPOSIZIONE DI BONIFICO BONIFICO A CAMPAGNA ANDREA PER CONTRIBUTO MUTUO MAMMA PAP CRO OPERAZIONE 37750667904 | D29: -200 | H29: 24 | I29: 36
A30: 2011-06-09 | B30: 2011-06-09 | C30: DISPOSIZIONE DI BONIFICO BONIFICO A CAMPAGNA ANDREA PER CONTRIBUTO MUTUO MAMMA PAP CRO OPERAZIONE 37879088303 | D30: -200 | H30: 25 | I30: 35
A31: 2011-07-07 | B31: 2011-06-09 | C31: DISPOSIZIONE DI BONIFICO BONIFICO A CAMPAGNA ANDREA PER CONTRIBUTO MUTUO MAMMA PAP CRO OPERAZIONE 37879088303 | D31: -200 | H31: 26 | I31: 34
A32: 2011-08-09 | B32: 2011-08-09 | C32: DISPOSIZIONE DI BONIFICO BONIFICO A CAMPAGNA ANDREA PER CONTRIBUTO MUTUO MAMMA PAP CRO OPERAZIONE 38138275210 | D32: -200 | H32: 27 | I32: 33
A33: 2011-09-08 | B33: 2011-09-08 | C33: BONIFICO A CAMPAGNA ANDREA PER CONTRIBUTO MUTUO MAMMA PAP CRO OPERAZIONE 38247792700 | D33: -200 | H33: 28 | I33: 32
A34: 2011-10-07 | B34: 2011-10-07 | C34: DISPOSIZIONE DI BONIFICO BONIFICO A CAMPAGNA ANDREA PER CONTRIBUTO MUTUO MAMMA PAP CRO OPERAZIONE 38367327801 | D34: -200 | H34: 29 | I34: 31
A35: 2011-11-09 | B35: 2011-11-09 | C35: DISPOSIZIONE DI BONIFICO BONIFICO A CAMPAGNA ANDREA PER CONTRIBUTO MUTUO MAMMA PAP CRO OPERAZIONE 38495352407 | D35: -200 | H35: 30 | I35: 30
A36: 2011-12-09 | B36: 2011-12-09 | C36: DISPOSIZIONE DI BONIFICO BONIFICO A CAMPAGNA ANDREA PER CONTRIBUTO MUTUO MAMMA PAP CRO OPERAZIONE 38495352407 | D36: -200 | H36: 31 | I36: 29
A37: 2012-01-09 | B37: 2012-01-09 | C37: BONIFICO A CAMPAGNA ANDREA PER CONTRIBUTO MUTUO MAMMA PAP CRO OPERAZIONE 38755579200 | D37: -200 | H37: 32 | I37: 28
A38: 2012-02-09 | B38: 2012-02-09 | C38: DISPOSIZIONE DI BONIFICO BONIFICO A CAMPAGNA ANDREA PER CONTRIBUTO MUTUO MAMMA PAP CRO OPERAZIONE 38879734009 | D38: -200 | H38: 33 | I38: 27
A39: 2012-03-08 | B39: 2012-03-08 | C39: BONIFICO A CAMPAGNA ANDREA PER CONTRIBUTO MUTUO MAMMA PAP CRO OPERAZIONE 39002917200 | D39: -200 | H39: 34 | I39: 26
A40: 2012-04-06 | B40: 2012-04-06 | C40: DISPOSIZIONE DI BONIFICO BONIFICO A CAMPAGNA ANDREA PER CONTRIBUTO MUTUO MAMMA PAP CRO OPERAZIONE 39134929108 | D40: -200 | H40: 35 | I40: 25
A41: 2012-05-09 | B41: 2012-05-09 | C41: BONIFICO A CAMPAGNA ANDREA PER CONTRIBUTO MUTUO MAMMA PAP CRO OPERAZIONE 39262508205 | D41: -200 | H41: 36 | I41: 24
A42: 2012-06-07 | B42: 2012-06-07 | C42: DISPOSIZIONE DI BONIFICO BONIFICO A CAMPAGNA ANDREA PER CONTRIBUTO MUTUO MAMMA PAP CRO OPERAZIONE 39392574505 | D42: -200 | H42: 37 | I42: 23
A43: 2012-07-09 | B43: 2012-07-09 | C43: DISPOSIZIONE DI BONIFICO BONIFICO A CAMPAGNA ANDREA PER CONTRIBUTO MUTUO MAMMA PAP CRO OPERAZIONE 39525759909 | D43: -200 | H43: 38 | I43: 22
A44: 2012-08-09 | B44: 2012-08-09 | C44: DISPOSIZIONE DI BONIFICO BONIFICO A CAMPAGNA ANDREA PER CONTRIBUTO MUTUO MAMMA PAP CRO OPERAZIONE 39665425901 | D44: -200 | H44: 39 | I44: 21
A45: 2012-09-07 | B45: 2012-09-07 | C45: BONIFICO A CAMPAGNA ANDREA PER CONTRIBUTO MUTUO MAMMA PAP CRO OPERAZIONE 39773512306 | D45: -200 | H45: 40 | I45: 20
A46: 2012-10-09 | B46: 2012-10-09 | C46: DISPOSIZIONE DI BONIFICO BONIFICO A CAMPAGNA ANDREA PER CONTRIBUTO MUTUO MAMMA PAP CRO OPERAZIONE 39907424107 | D46: -200 | H46: 41 | I46: 19
A47: 2012-11-08 | B47: 2012-11-08 | C47: BONIFICO A CAMPAGNA ANDREA PER CONTRIBUTO MUTUO MAMMA PAP CRO OPERAZIONE 35036266301 | D47: -200 | H47: 42 | I47: 18
A48: 2012-12-07 | B48: 2012-12-07 | C48: DISPOSIZIONE DI BONIFICO BONIFICO A CAMPAGNA ANDREA PER CONTRIBUTO MUTUO MAMMA PAP CRO OPERAZIONE 35169979202 | D48: -200 | H48: 43 | I48: 17
A49: 2013-01-09 | B49: 2013-01-09 | C49: BONIFICO A CAMPAGNA ANDREA PER CONTRIBUTO MUTUO MAMMA PAP CRO OPERAZIONE 35313843500 | D49: -200 | H49: 44 | I49: 16
A50: 2013-02-07 | B50: 2013-02-07 | C50: BONIFICO A CAMPAGNA ANDREA PER CONTRIBUTO MUTUO MAMMA PAP CRO OPERAZIONE 35436367011 | D50: -200 | H50: 45 | I50: 15
A51: 2013-03-07 | B51: 2013-03-07 | C51: BONIFICO A CAMPAGNA ANDREA PER CONTRIBUTO MUTUO MAMMA PAP CRO OPERAZIONE 35562683202 | D51: -200 | H51: 46 | I51: 14
A52: 2013-04-09 | B52: 2013-04-09 | C52: BONIFICO A CAMPAGNA ANDREA PER CONTRIBUTO MUTUO MAMMA PAP CRO OPERAZIONE 35698646403 | D52: -200 | H52: 47 | I52: 13
A53: 2013-05-09 | B53: 2013-05-09 | C53: BONIFICO A CAMPAGNA ANDREA PER CONTRIBUTO MUTUO MAMMA PAP CRO OPERAZIONE 35698646403 | D53: -200 | H53: 48 | I53: 12
A54: 2013-06-07 | B54: 2013-06-07 | C54: BONIFICO A CAMPAGNA ANDREA PER CONTRIBUTO MUTUO MAMMA PAP CRO OPERAZIONE 35698646403 | D54: -200 | H54: 49 | I54: 11
A55: 2013-07-09 | B55: 2013-07-09 | C55: BONIFICO A CAMPAGNA ANDREA PER CONTRIBUTO MUTUO MAMMA PAP CRO OPERAZIONE 35698646403 | D55: -200 | H55: 50 | I55: 10
A56: 2013-08-08 | B56: 2013-08-08 | C56: DISPOSIZIONE DI BONIFICO BONIFICO A CAMPAGNA ANDREA PER CONTRIBUTO MUTUO MAMMA PAP CRO OPERAZIONE 36221038100 | D56: -200 | H56: 51 | I56: 9
A57: 2013-09-09 | B57: 2013-09-09 | C57: BONIFICO A CAMPAGNA ANDREA PER CONTRIBUTO MUTUO MAMMA PAP CRO OPERAZIONE 36334911108 | D57: -200 | H57: 52 | I57: 8
A58: 2013-10-09 | B58: 2013-10-09 | C58: BONIFICO A CAMPAGNA ANDREA PER CONTRIBUTO MUTUO MAMMA PAP CRO OPERAZIONE 36464228406 | D58: -200 | H58: 53 | I58: 7
A59: 2013-11-07 | B59: 2013-11-07 | C59: DISPOSIZIONE DI BONIFICO BONIFICO A CAMPAGNA ANDREA PER CONTRIBUTO MUTUO MAMMA PAP CRO OPERAZIONE 36587819810 | D59: -200 | H59: 54 | I59: 6
A60: 2013-12-09 | B60: 2013-12-09 | C60: DISPOSIZIONE DI BONIFICO BONIFICO SEPA A CAMPAGNA ANDREA PER CONTRIBUTO MUTUO MAMMA PAP COMM 0,00 SPESE 0,00 | D60: -200 | H60: 55 | I60: 5
A61: 2014-01-09 | B61: 2014-01-09 | C61: BONIFICO SEPA A CAMPAGNA ANDREA PER CONTRIBUTO MUTUO MAMMA PAP COMM 0,00 SPESE 0,00 COMM SERV 0,00 | D61: -200 | H61: =IF(AND(D61=0),"",H60+1) -> 56 | I61: =IF(AND(D61=0),"",I60-1) -> 4
A62: 2014-02-07 | B62: 2014-02-07 | C62: DISPOSIZIONE DI BONIFICO BONIFICO SEPA A CAMPAGNA ANDREA PER CONTRIBUTO MUTUO MAMMA PAP COMM 0,00 SPESE 0,00 TRN 1101140380015981 | D62: -200 | H62: 57 | I62: 3
A63: 2014-03-07 | B63: 2014-03-07 | C63: BONIFICO SEPA A CAMPAGNA ANDREA PER CONTRIBUTO MUTUO MAMMA PAP COMM 0,00 SPESE 0,00 COMM SERV 0,00 | D63: -200 | H63: 58 | I63: 2
A64: 2014-04-09 | B64: 2014-04-09 | C64: BONIFICO SEPA A CAMPAGNA ANDREA PER CONTRIBUTO MUTUO MAMMA PAP COMM 0,00 SPESE 0,00 COMM SERV 0,00 | D64: -200 | H64: 59 | I64: 1
A65: 2014-05-08 | B65: 2014-05-08 | C65: BONIFICO SEPA A CAMPAGNA ANDREA PER CONTRIBUTO MUTUO MAMMA PAP COMM 0,00 SPESE 0,00 COMM SERV 0,00 | D65: -200 | H65: =IF(AND(D65=0),"",H64+1) -> 60 | I65: =IF(AND(D65=0),"",I64-1) -> 0
D67: =SUM(D6:D65) -> -12000
H69: =IF(AND(D69=0),"",H65+1) ->  | I69: =IF(AND(D69=0),"",I65-1) ->  | K69: =IF(AND(A69=0),"",TODAY()+$I69*30) -> 
A71: Data | B71: Euro | C71: Totale
A73: 2014-06-17 | B73: 100 | C73: =B72+B73 -> 100 | D73: =SUM(B73:B125) -> 13740
A74: 2014-07-17 | B74: 100 | C74: =IF(B74,C73+B74,"") -> 200
A75: 2014-08-17 | B75: 100 | C75: 300
A76: 2014-09-17 | B76: 100 | C76: 400
A77: 2014-10-17 | B77: 100 | C77: 500
A78: 2014-11-14 | B78: 100 | C78: 600
A79: 2014-12-18 | B79: 3000 | C79: 3600
A80: 2015-01-16 | B80: 100 | C80: 3700
A81: 2015-02-16 | B81: 100 | C81: 3800
A82: 2015-03-16 | B82: 100 | C82: 3900
A83: 2015-04-16 | B83: 100 | C83: 4000
A84: 2015-05-20 | B84: 140 | C84: 4140
A85: 2015-06-20 | B85: 140 | C85: 4280
A86: 2015-07-20 | B86: 140 | C86: 4420
A87: 2015-08-20 | B87: 140 | C87: 4560
A88: 2015-09-20 | B88: 140 | C88: 4700
A89: 2015-10-20 | B89: 140 | C89: 4840
A90: 2015-11-20 | B90: 140 | C90: 4980
A91: 2015-12-20 | B91: 140 | C91: 5120
A92: 2016-01-20 | B92: 140 | C92: 5260
A93: 2016-02-20 | B93: 140 | C93: 5400
A94: 2016-03-20 | B94: 140 | C94: =IF(B94,C93+B94,"") -> 5540
A95: 2016-04-20 | B95: 140 | C95: 5680
A96: 2016-05-20 | B96: 140 | C96: 5820
A97: 2016-06-20 | B97: 140 | C97: 5960
A98: 2016-07-20 | B98: 140 | C98: 6100
A99: 2016-08-20 | B99: 140 | C99: 6240
A100: 2016-09-20 | B100: 140 | C100: 6380
A101: 2016-10-20 | B101: 140 | C101: 6520
A102: 2016-11-20 | B102: 140 | C102: 6660
A103: 2016-12-20 | B103: 140 | C103: 6800
A104: 2017-01-20 | B104: 140 | C104: 6940
A105: 2017-02-20 | B105: 140 | C105: 7080
A106: 2017-03-20 | B106: 140 | C106: 7220
A107: 2017-04-20 | B107: 140 | C107: 7360
A108: 2017-05-20 | B108: 140 | C108: =IF(B108,C107+B108,"") -> 7500
A109: 2017-06-20 | B109: 140 | C109: 7640
A110: 2017-07-20 | B110: 140 | C110: 7780
A111: 2017-08-20 | B111: 140 | C111: 7920
A112: 2017-09-20 | B112: 140 | C112: 8060
A113: 2017-10-20 | B113: 140 | C113: 8200
A114: 2017-11-20 | B114: 140 | C114: 8340
A115: 2017-12-20 | B115: 140 | C115: 8480
A116: 2018-01-20 | B116: 140 | C116: 8620
A117: 2018-02-20 | B117: 140 | C117: 8760
A118: 2018-03-20 | B118: 140 | C118: 8900
A119: 2018-04-20 | B119: 140 | C119: 9040
A120: 2018-05-20 | B120: 140 | C120: 9180
A121: 2018-06-20 | B121: 140 | C121: 9320
A122: 2018-07-20 | B122: 140 | C122: 9460
A123: 2018-08-20 | B123: 140 | C123: 9600
A124: 2018-09-20 | B124: 140 | C124: 9740
A125: 2018-10-04 | B125: 4000 | C125: 13740
A132: In occasione dell'inizio del pagamento del mutuo della nuova casa di Andrea vengono accreditate mensilmente e per 36 mesi 150 euro, sia ad Andrea che a Monica
A136: 2022-01-08 | B136: 150 | C136: =B135+B136 -> 150 | D136: =SUM($B$136:$B$160)+$J$146 -> 22480 | F136: 2021-12-24 | H136: Regalo di Natale | J136: 1000
A137: 2022-02-08 | B137: 150 | C137: =IF(AND($B137=0),"",($C136+$B137)) -> 300 | F137: 2022-04-11 | H137: Regalo tv compleanno | J137: 230
A138: 2022-03-08 | B138: 150 | C138: =IF(AND($B138=0),"",($C137+$B138)) -> 450 | F138: 2022-06-20 | H138: Regalo | J138: 2000
A139: 2022-04-08 | B139: 150 | C139: 600 | F139: 2022-09-22 | H139: Regalo | J139: 2300
A140: 2022-05-08 | B140: 150 | C140: 750 | F140: 2022-12-22 | H140: Regalo di Natale | J140: 500
A141: 2022-06-08 | B141: 150 | C141: 900 | F141: 2023-02-01 | H141: Regalo | J141: 2000
A142: 2022-07-08 | B142: 150 | C142: 1050 | F142: 2023-05-23 | H142: Deposito FCABANK Andrea | J142: 10000
A143: 2022-08-08 | B143: 150 | C143: 1200 | F143: 2023-12-27 | H143: Regalo di Natale | J143: 700
A144: 2022-09-08 | B144: 150 | C144: 1350
A145: 2022-10-08 | B145: 150 | C145: 1500
A146: 2022-11-08 | B146: 150 | C146: 1650 | J146: =SUM(J136:J145) -> 18730
A147: 2022-12-08 | B147: 150 | C147: 1800
A148: 2023-01-08 | B148: 150 | C148: 1950
A149: 2023-02-08 | B149: 150 | C149: 2100
A150: 2023-03-08 | B150: 150 | C150: 2250
A151: 2023-04-08 | B151: 150 | C151: 2400
A152: 2023-05-08 | B152: 150 | C152: 2550
A153: 2023-06-08 | B153: 150 | C153: 2700
A154: 2023-07-08 | B154: 150 | C154: 2850
A155: 2023-08-08 | B155: 150 | C155: 3000
A156: 2023-09-08 | B156: 150 | C156: 3150
A157: 2023-10-08 | B157: 150 | C157: 3300
A158: 2023-11-08 | B158: 150 | C158: 3450
A159: 2023-12-08 | B159: 150 | C159: 3600
A160: 2024-01-08 | B160: 150 | C160: 3750

Sheet Ristrutturazione Piazza
A1: Oggi è | C1: Totale uscite | F1: =MONTH(Tabelle!G2) -> 3 | H1: =Tabelle!G2 -> 2024-03-31
A2: =TODAY() -> 2024-03-31 | C2: =SUM(C6:C64930) -> 3637.64 | F2: =VLOOKUP(A2,A6:C39,5) -> 
F3: LUN | G3: MAR | H3: MER | I3: GIO | J3: VEN | K3: SAB | L3: DOM
A4: DATA | B4: OPERAZIONE | C4: DARE | F4: =DATE(YEAR(H1),MONTH(H1),1)-WEEKDAY(DATE(YEAR(H1),MONTH(H1),1),2)+1 -> 2024-02-26 | G4: =F4+1 -> 2024-02-27 | H4: 2024-02-28 | I4: 2024-02-29 | J4: 2024-03-01 | K4: 2024-03-02 | L4: 2024-03-03
F5: =L4+1 -> 2024-03-04 | G5: 2024-03-05 | H5: 2024-03-06 | I5: 2024-03-07 | J5: 2024-03-08 | K5: 2024-03-09 | L5: 2024-03-10 | X5: Giorni | Y5: Numeri | Z5: Numeri Per Calcolo Interessi | AA5: Interessi Lordi | AB5: Interessi Netti | AC5: Tasso Interessi | AD5: Ritenuta
A6: 2017-09-14 | B6: Varie | C6: 90.85 | F6: =L5+1 -> 2024-03-11 | G6: 2024-03-12 | H6: 2024-03-13 | I6: 2024-03-14 | J6: 2024-03-15 | K6: 2024-03-16 | L6: 2024-03-17 | X6: =IF(#REF!-A6<0,0,SUM(#REF!-A6)) ->  | Y6: =SUM(C6:C6) -> 90.85 | Z6: =#REF!*X6 ->  | AA6: =(Z6*AC6/100)/365 ->  | AB6: =AA6-AD6 ->  | AC6: 1 | AD6: =(AA6*27/100) -> 
A7: 2017-09-14 | B7: Varie | C7: 116.9 | F7: =L6+1 -> 2024-03-18 | G7: 2024-03-19 | H7: 2024-03-20 | I7: 2024-03-21 | J7: 2024-03-22 | K7: 2024-03-23 | L7: 2024-03-24
A8: 2017-09-22 | B8: Bancomat | C8: 500 | F8: 2024-03-25 | G8: 2024-03-26 | H8: 2024-03-27 | I8: 2024-03-28 | J8: 2024-03-29 | K8: 2024-03-30 | L8: 2024-03-31
A9: 2017-10-01 | B9: Bancomat | C9: 139.4
A10: 2017-10-05 | B10: Bancomat | C10: 700 | D10: 687
A11: 2017-10-06 | B11: Bancomat | C11: 500
A12: 2017-10-06 | B12: Bancomat | C12: 215
A13: 2017-10-10 | B13: Bancomat | C13: 500
A14: 2017-10-10 | B14: Bancomat | C14: 88.29
A15: 2017-10-11 | B15: Bancomat | C15: 20.2
A16: 2017-10-11 | B16: Varie | C16: 40
A17: 2017-10-11 | B17: Varie | C17: 27
A18: 2017-10-13 | B18: Varie | C18: 700

Sheet Piano ammortamento
B1: Piano di ammortamento di un prestito a rate costanti
B3: Importo prestito | C3: 30000 | D3: Durata in anni | E3: 5 | F3: Data Prestito | G3: 2021-12-01
B4: Tasso annuo | C4: 0.045 | D4: N. rate in un anno | E4: 12
B6: N. rata | C6: Scandenza | D6: Importo rata | E6: Quota capitale | F6: Quota interessi | G6: Debito residuo
A7: 1 | B7: =IF(AND($C$3<>"",$C$4<>"",$E$3<>"",$E$4<>"",$G$3<>"",$E$3*$E$4>=A7),A7,"") -> 1 | C7: =IF(AND($C$3<>"",$C$4<>"",$E$3<>"",$E$4<>"",$G$3<>"",B7<>""),DATE(YEAR($G$3),MONTH($G$3)+B7*12/$E$4,DAY($G$3)),"") -> 2022-01-01 | D7: =IF(AND($C$3<>"",$C$4<>"",$E$3<>"",$E$4<>"",$G$3<>"",B7<>""),-PMT($C$4/$E$4,$E$3*$E$4,$C$3),"") -> 559.2905772 | E7: =IF(AND($C$3<>"",$C$4<>"",$E$3<>"",$E$4<>"",$G$3<>"",B7<>""),-PPMT($C$4/$E$4,B7,$E$3*$E$4,$C$3),"") -> 446.7905772 | F7: =IF(AND($C$3<>"",$C$4<>"",$E$3<>"",$E$4<>"",$G$3<>"",B7<>""),-IPMT($C$4/$E$4,B7,$E$3*$E$4,$C$3),"") -> 112.5 | G7: =IF(AND($C$3<>"",$C$4<>"",$E$3<>"",$E$4<>"",$G$3<>"",B7<>""),C3-E7,"") -> 29553.20942
A8: 2 | B8: 2 | C8: 2022-02-01 | D8: 559.2905772 | E8: 448.4660419 | F8: 110.8245353 | G8: =IF(AND($C$3<>"",$C$4<>"",$E$3<>"",$E$4<>"",$G$3<>"",B8<>""),G7-E8,"") -> 29104.74338
A9: 3 | B9: 3 | C9: 2022-03-01 | D9: 559.2905772 | E9: 450.1477896 | F9: 109.1427877 | G9: 28654.59559
A10: 4 | B10: 4 | C10: 2022-04-01 | D10: 559.2905772 | E10: 451.8358438 | F10: 107.4547335 | G10: 28202.75975
A11: 5 | B11: 5 | C11: 2022-05-01 | D11: 559.2905772 | E11: 453.5302282 | F11: 105.7603491 | G11: 27749.22952
A12: 6 | B12: 6 | C12: 2022-06-01 | D12: 559.2905772 | E12: 455.2309665 | F12: 104.0596107 | G12: 27293.99855
A13: 7 | B13: 7 | C13: 2022-07-01 | D13: 559.2905772 | E13: 456.9380827 | F13: 102.3524946 | G13: 26837.06047
A14: 8 | B14: 8 | C14: 2022-08-01 | D14: 559.2905772 | E14: 458.6516005 | F14: 100.6389768 | G14: 26378.40887
A15: 9 | B15: 9 | C15: 2022-09-01 | D15: 559.2905772 | E15: 460.371544 | F15: 98.91903326 | G15: 25918.03733
A16: 10 | B16: 10 | C16: 2022-10-01 | D16: 559.2905772 | E16: 462.0979373 | F16: 97.19263997 | G16: 25455.93939
A17: 11 | B17: 11 | C17: 2022-11-01 | D17: 559.2905772 | E17: 463.8308045 | F17: 95.45977271 | G17: 24992.10858
A18: 12 | B18: 12 | C18: 2022-12-01 | D18: 559.2905772 | E18: 465.5701701 | F18: 93.72040719 | G18: 24526.53841
A19: 13 | B19: =IF(AND($C$3<>"",$C$4<>"",$E$3<>"",$E$4<>"",$G$3<>"",$E$3*$E$4>=A19),A19,"") -> 13 | C19: =IF(AND($C$3<>"",$C$4<>"",$E$3<>"",$E$4<>"",$G$3<>"",B19<>""),DATE(YEAR($G$3),MONTH($G$3)+B19*12/$E$4,DAY($G$3)),"") -> 2023-01-01 | D19: =IF(AND($C$3<>"",$C$4<>"",$E$3<>"",$E$4<>"",$G$3<>"",B19<>""),-PMT($C$4/$E$4,$E$3*$E$4,$C$3),"") -> 559.2905772 | E19: =IF(AND($C$3<>"",$C$4<>"",$E$3<>"",$E$4<>"",$G$3<>"",B19<>""),-PPMT($C$4/$E$4,B19,$E$3*$E$4,$C$3),"") -> 467.3160582 | F19: =IF(AND($C$3<>"",$C$4<>"",$E$3<>"",$E$4<>"",$G$3<>"",B19<>""),-IPMT($C$4/$E$4,B19,$E$3*$E$4,$C$3),"") -> 91.97451905 | G19: =IF(AND($C$3<>"",$C$4<>"",$E$3<>"",$E$4<>"",$G$3<>"",B19<>""),G18-E19,"") -> 24059.22236
A20: 14 | B20: 14 | C20: 2023-02-01 | D20: 559.2905772 | E20: 469.0684934 | F20: 90.22208383 | G20: 23590.15386
A21: 15 | B21: 15 | C21: 2023-03-01 | D21: 559.2905772 | E21: 470.8275003 | F21: 88.46307698 | G21: 23119.32636
A22: 16 | B22: 16 | C22: 2023-04-01 | D22: 559.2905772 | E22: 472.5931034 | F22: 86.69747386 | G22: 22646.73326
A23: 17 | B23: 17 | C23: 2023-05-01 | D23: 559.2905772 | E23: 474.3653275 | F23: 84.92524972 | G23: 22172.36793
A24: 18 | B24: 18 | C24: 2023-06-01 | D24: 559.2905772 | E24: 476.1441975 | F24: 83.14637974 | G24: 21696.22373
A25: 19 | B25: 19 | C25: 2023-07-01 | D25: 559.2905772 | E25: 477.9297382 | F25: 81.360839 | G25: 21218.294
A26: 20 | B26: 20 | C26: 2023-08-01 | D26: 559.2905772 | E26: 479.7219748 | F26: 79.56860248 | G26: 20738.57202
A27: 21 | B27: 21 | C27: 2023-09-01 | D27: 559.2905772 | E27: 481.5209322 | F27: 77.76964508 | G27: 20257.05109
A28: 22 | B28: 22 | C28: 2023-10-01 | D28: 559.2905772 | E28: 483.3266357 | F28: 75.96394158 | G28: 19773.72445
A29: 23 | B29: 23 | C29: 2023-11-01 | D29: 559.2905772 | E29: 485.1391105 | F29: 74.1514667 | G29: 19288.58534
A30: 24 | B30: 24 | C30: 2023-12-01 | D30: 559.2905772 | E30: 486.9583822 | F30: 72.33219503 | G30: 18801.62696
A31: 25 | B31: 25 | C31: 2024-01-01 | D31: 559.2905772 | E31: 488.7844761 | F31: 70.5061011 | G31: 18312.84248
A32: 26 | B32: 26 | C32: 2024-02-01 | D32: 559.2905772 | E32: 490.6174179 | F32: 68.67315931 | G32: 17822.22507
A33: 27 | B33: 27 | C33: 2024-03-01 | D33: 559.2905772 | E33: 492.4572332 | F33: 66.833344 | G33: 17329.76783
A34: 28 | B34: 28 | C34: 2024-04-01 | D34: 559.2905772 | E34: 494.3039479 | F34: 64.98662937 | G34: 16835.46388
A35: 29 | B35: 29 | C35: 2024-05-01 | D35: 559.2905772 | E35: 496.1575877 | F35: 63.13298957 | G35: 16339.3063
A36: 30 | B36: 30 | C36: 2024-06-01 | D36: 559.2905772 | E36: 498.0181786 | F36: 61.27239861 | G36: 15841.28812
A37: 31 | B37: 31 | C37: 2024-07-01 | D37: 559.2905772 | E37: 499.8857468 | F37: 59.40483044 | G37: 15341.40237
A38: 32 | B38: 32 | C38: 2024-08-01 | D38: 559.2905772 | E38: 501.7603184 | F38: 57.53025889 | G38: 14839.64205
A39: 33 | B39: 33 | C39: 2024-09-01 | D39: 559.2905772 | E39: 503.6419195 | F39: 55.6486577 | G39: 14336.00013
A40: 34 | B40: 34 | C40: 2024-10-01 | D40: 559.2905772 | E40: 505.5305767 | F40: 53.7600005 | G40: 13830.46956
A41: 35 | B41: 35 | C41: 2024-11-01 | D41: 559.2905772 | E41: 507.4263164 | F41: 51.86426084 | G41: 13323.04324
A42: 36 | B42: 36 | C42: 2024-12-01 | D42: 559.2905772 | E42: 509.3291651 | F42: 49.96141215 | G42: 12813.71408
A43: 37 | B43: 37 | C43: 2025-01-01 | D43: 559.2905772 | E43: 511.2391495 | F43: 48.05142778 | G43: 12302.47493
A44: 38 | B44: 38 | C44: 2025-02-01 | D44: 559.2905772 | E44: 513.1562963 | F44: 46.13428097 | G44: 11789.31863
A45: 39 | B45: 39 | C45: 2025-03-01 | D45: 559.2905772 | E45: 515.0806324 | F45: 44.20994486 | G45: 11274.238
A46: 40 | B46: 40 | C46: 2025-04-01 | D46: 559.2905772 | E46: 517.0121848 | F46: 42.27839249 | G46: 10757.22581
A47: 41 | B47: 41 | C47: 2025-05-01 | D47: 559.2905772 | E47: 518.9509804 | F47: 40.3395968 | G47: 10238.27483
A48: 42 | B48: 42 | C48: 2025-06-01 | D48: 559.2905772 | E48: 520.8970466 | F48: 38.39353062 | G48: 9717.377785
A49: 43 | B49: 43 | C49: 2025-07-01 | D49: 559.2905772 | E49: 522.8504106 | F49: 36.4401667 | G49: 9194.527375
A50: 44 | B50: 44 | C50: 2025-08-01 | D50: 559.2905772 | E50: 524.8110996 | F50: 34.47947766 | G50: 8669.716275
A51: 45 | B51: 45 | C51: 2025-09-01 | D51: 559.2905772 | E51: 526.7791412 | F51: 32.51143603 | G51: 8142.937134
A52: 46 | B52: 46 | C52: 2025-10-01 | D52: 559.2905772 | E52: 528.754563 | F52: 30.53601425 | G52: 7614.182571
A53: 47 | B53: 47 | C53: 2025-11-01 | D53: 559.2905772 | E53: 530.7373926 | F53: 28.55318464 | G53: 7083.445179
A54: 48 | B54: 48 | C54: 2025-12-01 | D54: 559.2905772 | E54: 532.7276578 | F54: 26.56291942 | G54: 6550.717521
A55: 49 | B55: 49 | C55: 2026-01-01 | D55: 559.2905772 | E55: 534.7253865 | F55: 24.5651907 | G55: 6015.992134
A56: 50 | B56: 50 | C56: 2026-02-01 | D56: 559.2905772 | E56: 536.7306067 | F56: 22.5599705 | G56: 5479.261527

Sheet Foglio1
A1: Loan Amortization Schedule
A2: https://www.vertex42.com/ExcelTemplates/loan-amortization-schedule.html | H2: ="© 2008-" & YEAR(TODAY()) & " Vertex42 LLC" -> © 2008-2024 Vertex42 LLC
A7: Loan Information | F7: Summary | J7: About This Worksheet | L7: Frequency
C8: Loan Amount | D8: 200000 | G8: Rate (per period) | H8: =((1+D9/D17)^(D17/D16))-1 -> 0.005833333333 | J8: This spreadsheet creates an amortization schedule for a fixed-rate loan, with optional extra payments. See the Help worksheet for more details. Edit cells within gray borders. | L8: Annual
C9: Annual Interest Rate | D9: 0.07 | G9: Total Payments | H9: =SUM(F63:F842)+SUM(G63:G842) -> 323577.84 | L9: Semi-Annual
C10: Term of Loan in Years | D10: 15 | G10: Total Interest | H10: =SUM(F62:F842) -> 123577.84 | L10: Quarterly
C11: First Payment Date | D11: 2016-01-01 | G11: Est. Interest Savings | H11: =IF(AND(SUM(D63:D842)=0,roundOpt)," - ",(nper*(-PMT(rate,nper,loan_amount,,pmtType))-loan_amount)-H10) -> - | L11: Bi-Monthly
C12: Payment Frequency | D12: Monthly | H12: =IF(AND(NOT(H842=""),H842>0.004),"ERROR: Limit is "&OFFSET(A843,-1,0,1,1)&" payments",".") -> . | L12: Monthly
C13: Compound Period | D13: =D12 -> Monthly | H13: =IF(D17>D16,"Warning: negative amortization",".") -> . | J13: An unlocked commercial version of this template is available: | L13: Semi-Monthly
C14: Payment Type | D14: End of Period | L14: Bi-Weekly
C15: Rounding | D15: On | J15: Purchase the Unlocked Version | L15: Weekly
C16: Periods Per Year | D16: 12
C17: Compound Period | D17: 12
C18: Payment Type | D18: 0
C19: Months Per Period | D19: =12/$D$16 -> 1
C20: Number of Periods | D20: =$D$10*$D$16 -> 180
C21: Rounding Option | D21: =(D15="On") -> TRUE
H22: [42]
C23: =D12&" Payment" -> Monthly Payment | D23: =IF(roundOpt,ROUND(-PMT(rate,nper,$D$8,,pmtType),2),-PMT(rate,nper,$D$8,,pmtType)) -> 1797.66
A25: Yearly Summary
B26: Year | C26: Payments | D26: Additional Payments | F26: Interest Paid | G26: Principal Paid | H26: Year-End Balance | J26: Hide rows in the summary table that you do not want to display.
H27: =loan_amount -> 200000
B28: =YEAR(fpdate) -> 2016 | C28: =SUMIF($B$62:$B$843,"<="&DATE($B28,12,31),$C$62:$C$843)-SUM(C$27:C27) -> 0 | D28: =SUMIF($B$62:$B$843,"<="&DATE($B28,12,31),$D$62:$D$843)-SUM(D$27:D27) -> 0 | F28: =SUMIF($B$62:$B$843,"<="&DATE($B28,12,31),$F$62:$F$843)-SUM(F$27:F27) -> 0 | G28: =SUMIF($B$62:$B$843,"<="&DATE($B28,12,31),$G$62:$G$843)-SUM(G$27:G27) -> 0 | H28: =H27-G28 -> 200000
B29: =B28+1 -> 2017 | C29: =SUMIF($B$62:$B$843,"<="&DATE($B29,12,31),$C$62:$C$843)-SUM(C$27:C28) -> 0 | D29: =SUMIF($B$62:$B$843,"<="&DATE($B29,12,31),$D$62:$D$843)-SUM(D$27:D28) -> 0 | F29: =SUMIF($B$62:$B$843,"<="&DATE($B29,12,31),$F$62:$F$843)-SUM(F$27:F28) -> 0 | G29: =SUMIF($B$62:$B$843,"<="&DATE($B29,12,31),$G$62:$G$843)-SUM(G$27:G28) -> 0 | H29: =H28-G29 -> 200000
B30: =B29+1 -> 2018 | C30: =SUMIF($B$62:$B$843,"<="&DATE($B30,12,31),$C$62:$C$843)-SUM(C$27:C29) -> 0 | D30: =SUMIF($B$62:$B$843,"<="&DATE($B30,12,31),$D$62:$D$843)-SUM(D$27:D29) -> 0 | F30: =SUMIF($B$62:$B$843,"<="&DATE($B30,12,31),$F$62:$F$843)-SUM(F$27:F29) -> 0 | G30: =SUMIF($B$62:$B$843,"<="&DATE($B30,12,31),$G$62:$G$843)-SUM(G$27:G29) -> 0 | H30: =H29-G30 -> 200000
B31: =B30+1 -> 2019 | C31: =SUMIF($B$62:$B$843,"<="&DATE($B31,12,31),$C$62:$C$843)-SUM(C$27:C30) -> 0 | D31: =SUMIF($B$62:$B$843,"<="&DATE($B31,12,31),$D$62:$D$843)-SUM(D$27:D30) -> 0 | F31: =SUMIF($B$62:$B$843,"<="&DATE($B31,12,31),$F$62:$F$843)-SUM(F$27:F30) -> 0 | G31: =SUMIF($B$62:$B$843,"<="&DATE($B31,12,31),$G$62:$G$843)-SUM(G$27:G30) -> 0 | H31: =H30-G31 -> 200000
B32: =B31+1 -> 2020 | C32: =SUMIF($B$62:$B$843,"<="&DATE($B32,12,31),$C$62:$C$843)-SUM(C$27:C31) -> 0 | D32: =SUMIF($B$62:$B$843,"<="&DATE($B32,12,31),$D$62:$D$843)-SUM(D$27:D31) -> 0 | F32: =SUMIF($B$62:$B$843,"<="&DATE($B32,12,31),$F$62:$F$843)-SUM(F$27:F31) -> 0 | G32: =SUMIF($B$62:$B$843,"<="&DATE($B32,12,31),$G$62:$G$843)-SUM(G$27:G31) -> 0 | H32: =H31-G32 -> 200000
B33: 2021 | C33: =SUMIF($B$62:$B$843,"<="&DATE($B33,12,31),$C$62:$C$843)-SUM(C$27:C32) -> 0 | D33: =SUMIF($B$62:$B$843,"<="&DATE($B33,12,31),$D$62:$D$843)-SUM(D$27:D32) -> 0 | F33: =SUMIF($B$62:$B$843,"<="&DATE($B33,12,31),$F$62:$F$843)-SUM(F$27:F32) -> 0 | G33: =SUMIF($B$62:$B$843,"<="&DATE($B33,12,31),$G$62:$G$843)-SUM(G$27:G32) -> 0 | H33: 200000
B34: 2022 | C34: =SUMIF($B$62:$B$843,"<="&DATE($B34,12,31),$C$62:$C$843)-SUM(C$27:C33) -> 0 | D34: =SUMIF($B$62:$B$843,"<="&DATE($B34,12,31),$D$62:$D$843)-SUM(D$27:D33) -> 0 | F34: =SUMIF($B$62:$B$843,"<="&DATE($B34,12,31),$F$62:$F$843)-SUM(F$27:F33) -> 0 | G34: =SUMIF($B$62:$B$843,"<="&DATE($B34,12,31),$G$62:$G$843)-SUM(G$27:G33) -> 0 | H34: 200000
B35: 2023 | C35: =SUMIF($B$62:$B$843,"<="&DATE($B35,12,31),$C$62:$C$843)-SUM(C$27:C34) -> 0 | D35: =SUMIF($B$62:$B$843,"<="&DATE($B35,12,31),$D$62:$D$843)-SUM(D$27:D34) -> 0 | F35: =SUMIF($B$62:$B$843,"<="&DATE($B35,12,31),$F$62:$F$843)-SUM(F$27:F34) -> 0 | G35: =SUMIF($B$62:$B$843,"<="&DATE($B35,12,31),$G$62:$G$843)-SUM(G$27:G34) -> 0 | H35: 200000
B36: 2024 | C36: =SUMIF($B$62:$B$843,"<="&DATE($B36,12,31),$C$62:$C$843)-SUM(C$27:C35) -> 0 | D36: =SUMIF($B$62:$B$843,"<="&DATE($B36,12,31),$D$62:$D$843)-SUM(D$27:D35) -> 0 | F36: =SUMIF($B$62:$B$843,"<="&DATE($B36,12,31),$F$62:$F$843)-SUM(F$27:F35) -> 0 | G36: =SUMIF($B$62:$B$843,"<="&DATE($B36,12,31),$G$62:$G$843)-SUM(G$27:G35) -> 0 | H36: 200000
B37: 2025 | C37: =SUMIF($B$62:$B$843,"<="&DATE($B37,12,31),$C$62:$C$843)-SUM(C$27:C36) -> 0 | D37: =SUMIF($B$62:$B$843,"<="&DATE($B37,12,31),$D$62:$D$843)-SUM(D$27:D36) -> 0 | F37: =SUMIF($B$62:$B$843,"<="&DATE($B37,12,31),$F$62:$F$843)-SUM(F$27:F36) -> 0 | G37: =SUMIF($B$62:$B$843,"<="&DATE($B37,12,31),$G$62:$G$843)-SUM(G$27:G36) -> 0 | H37: 200000
B38: 2026 | C38: =SUMIF($B$62:$B$843,"<="&DATE($B38,12,31),$C$62:$C$843)-SUM(C$27:C37) -> 0 | D38: =SUMIF($B$62:$B$843,"<="&DATE($B38,12,31),$D$62:$D$843)-SUM(D$27:D37) -> 0 | F38: =SUMIF($B$62:$B$843,"<="&DATE($B38,12,31),$F$62:$F$843)-SUM(F$27:F37) -> 0 | G38: =SUMIF($B$62:$B$843,"<="&DATE($B38,12,31),$G$62:$G$843)-SUM(G$27:G37) -> 0 | H38: 200000
B39: 2027 | C39: =SUMIF($B$62:$B$843,"<="&DATE($B39,12,31),$C$62:$C$843)-SUM(C$27:C38) -> 0 | D39: =SUMIF($B$62:$B$843,"<="&DATE($B39,12,31),$D$62:$D$843)-SUM(D$27:D38) -> 0 | F39: =SUMIF($B$62:$B$843,"<="&DATE($B39,12,31),$F$62:$F$843)-SUM(F$27:F38) -> 0 | G39: =SUMIF($B$62:$B$843,"<="&DATE($B39,12,31),$G$62:$G$843)-SUM(G$27:G38) -> 0 | H39: 200000
B40: 2028 | C40: =SUMIF($B$62:$B$843,"<="&DATE($B40,12,31),$C$62:$C$843)-SUM(C$27:C39) -> 0 | D40: =SUMIF($B$62:$B$843,"<="&DATE($B40,12,31),$D$62:$D$843)-SUM(D$27:D39) -> 0 | F40: =SUMIF($B$62:$B$843,"<="&DATE($B40,12,31),$F$62:$F$843)-SUM(F$27:F39) -> 0 | G40: =SUMIF($B$62:$B$843,"<="&DATE($B40,12,31),$G$62:$G$843)-SUM(G$27:G39) -> 0 | H40: 200000
B41: 2029 | C41: =SUMIF($B$62:$B$843,"<="&DATE($B41,12,31),$C$62:$C$843)-SUM(C$27:C40) -> 0 | D41: =SUMIF($B$62:$B$843,"<="&DATE($B41,12,31),$D$62:$D$843)-SUM(D$27:D40) -> 0 | F41: =SUMIF($B$62:$B$843,"<="&DATE($B41,12,31),$F$62:$F$843)-SUM(F$27:F40) -> 0 | G41: =SUMIF($B$62:$B$843,"<="&DATE($B41,12,31),$G$62:$G$843)-SUM(G$27:G40) -> 0 | H41: 200000
B42: 2030 | C42: =SUMIF($B$62:$B$843,"<="&DATE($B42,12,31),$C$62:$C$843)-SUM(C$27:C41) -> 0 | D42: =SUMIF($B$62:$B$843,"<="&DATE($B42,12,31),$D$62:$D$843)-SUM(D$27:D41) -> 0 | F42: =SUMIF($B$62:$B$843,"<="&DATE($B42,12,31),$F$62:$F$843)-SUM(F$27:F41) -> 0 | G42: =SUMIF($B$62:$B$843,"<="&DATE($B42,12,31),$G$62:$G$843)-SUM(G$27:G41) -> 0 | H42: 200000
B43: 2031 | C43: =SUMIF($B$62:$B$843,"<="&DATE($B43,12,31),$C$62:$C$843)-SUM(C$27:C42) -> 0 | D43: =SUMIF($B$62:$B$843,"<="&DATE($B43,12,31),$D$62:$D$843)-SUM(D$27:D42) -> 0 | F43: =SUMIF($B$62:$B$843,"<="&DATE($B43,12,31),$F$62:$F$843)-SUM(F$27:F42) -> 0 | G43: =SUMIF($B$62:$B$843,"<="&DATE($B43,12,31),$G$62:$G$843)-SUM(G$27:G42) -> 0 | H43: 200000
B44: 2032 | C44: =SUMIF($B$62:$B$843,"<="&DATE($B44,12,31),$C$62:$C$843)-SUM(C$27:C43) -> 0 | D44: =SUMIF($B$62:$B$843,"<="&DATE($B44,12,31),$D$62:$D$843)-SUM(D$27:D43) -> 0 | F44: =SUMIF($B$62:$B$843,"<="&DATE($B44,12,31),$F$62:$F$843)-SUM(F$27:F43) -> 0 | G44: =SUMIF($B$62:$B$843,"<="&DATE($B44,12,31),$G$62:$G$843)-SUM(G$27:G43) -> 0 | H44: 200000
B45: 2033 | C45: =SUMIF($B$62:$B$843,"<="&DATE($B45,12,31),$C$62:$C$843)-SUM(C$27:C44) -> 0 | D45: =SUMIF($B$62:$B$843,"<="&DATE($B45,12,31),$D$62:$D$843)-SUM(D$27:D44) -> 0 | F45: =SUMIF($B$62:$B$843,"<="&DATE($B45,12,31),$F$62:$F$843)-SUM(F$27:F44) -> 0 | G45: =SUMIF($B$62:$B$843,"<="&DATE($B45,12,31),$G$62:$G$843)-SUM(G$27:G44) -> 0 | H45: 200000
B46: 2034 | C46: =SUMIF($B$62:$B$843,"<="&DATE($B46,12,31),$C$62:$C$843)-SUM(C$27:C45) -> 0 | D46: =SUMIF($B$62:$B$843,"<="&DATE($B46,12,31),$D$62:$D$843)-SUM(D$27:D45) -> 0 | F46: =SUMIF($B$62:$B$843,"<="&DATE($B46,12,31),$F$62:$F$843)-SUM(F$27:F45) -> 0 | G46: =SUMIF($B$62:$B$843,"<="&DATE($B46,12,31),$G$62:$G$843)-SUM(G$27:G45) -> 0 | H46: 200000
B47: 2035 | C47: =SUMIF($B$62:$B$843,"<="&DATE($B47,12,31),$C$62:$C$843)-SUM(C$27:C46) -> 0 | D47: =SUMIF($B$62:$B$843,"<="&DATE($B47,12,31),$D$62:$D$843)-SUM(D$27:D46) -> 0 | F47: =SUMIF($B$62:$B$843,"<="&DATE($B47,12,31),$F$62:$F$843)-SUM(F$27:F46) -> 0 | G47: =SUMIF($B$62:$B$843,"<="&DATE($B47,12,31),$G$62:$G$843)-SUM(G$27:G46) -> 0 | H47: 200000
B48: 2036 | C48: =SUMIF($B$62:$B$843,"<="&DATE($B48,12,31),$C$62:$C$843)-SUM(C$27:C47) -> 0 | D48: =SUMIF($B$62:$B$843,"<="&DATE($B48,12,31),$D$62:$D$843)-SUM(D$27:D47) -> 0 | F48: =SUMIF($B$62:$B$843,"<="&DATE($B48,12,31),$F$62:$F$843)-SUM(F$27:F47) -> 0 | G48: =SUMIF($B$62:$B$843,"<="&DATE($B48,12,31),$G$62:$G$843)-SUM(G$27:G47) -> 0 | H48: 200000
B49: 2037 | C49: =SUMIF($B$62:$B$843,"<="&DATE($B49,12,31),$C$62:$C$843)-SUM(C$27:C48) -> 0 | D49: =SUMIF($B$62:$B$843,"<="&DATE($B49,12,31),$D$62:$D$843)-SUM(D$27:D48) -> 0 | F49: =SUMIF($B$62:$B$843,"<="&DATE($B49,12,31),$F$62:$F$843)-SUM(F$27:F48) -> 0 | G49: =SUMIF($B$62:$B$843,"<="&DATE($B49,12,31),$G$62:$G$843)-SUM(G$27:G48) -> 0 | H49: 200000
B50: 2038 | C50: =SUMIF($B$62:$B$843,"<="&DATE($B50,12,31),$C$62:$C$843)-SUM(C$27:C49) -> 0 | D50: =SUMIF($B$62:$B$843,"<="&DATE($B50,12,31),$D$62:$D$843)-SUM(D$27:D49) -> 0 | F50: =SUMIF($B$62:$B$843,"<="&DATE($B50,12,31),$F$62:$F$843)-SUM(F$27:F49) -> 0 | G50: =SUMIF($B$62:$B$843,"<="&DATE($B50,12,31),$G$62:$G$843)-SUM(G$27:G49) -> 0 | H50: 200000
B51: 2039 | C51: =SUMIF($B$62:$B$843,"<="&DATE($B51,12,31),$C$62:$C$843)-SUM(C$27:C50) -> 0 | D51: =SUMIF($B$62:$B$843,"<="&DATE($B51,12,31),$D$62:$D$843)-SUM(D$27:D50) -> 0 | F51: =SUMIF($B$62:$B$843,"<="&DATE($B51,12,31),$F$62:$F$843)-SUM(F$27:F50) -> 0 | G51: =SUMIF($B$62:$B$843,"<="&DATE($B51,12,31),$G$62:$G$843)-SUM(G$27:G50) -> 0 | H51: 200000
B52: 2040 | C52: =SUMIF($B$62:$B$843,"<="&DATE($B52,12,31),$C$62:$C$843)-SUM(C$27:C51) -> 0 | D52: =SUMIF($B$62:$B$843,"<="&DATE($B52,12,31),$D$62:$D$843)-SUM(D$27:D51) -> 0 | F52: =SUMIF($B$62:$B$843,"<="&DATE($B52,12,31),$F$62:$F$843)-SUM(F$27:F51) -> 0 | G52: =SUMIF($B$62:$B$843,"<="&DATE($B52,12,31),$G$62:$G$843)-SUM(G$27:G51) -> 0 | H52: 200000
B53: 2041 | C53: =SUMIF($B$62:$B$843,"<="&DATE($B53,12,31),$C$62:$C$843)-SUM(C$27:C52) -> 0 | D53: =SUMIF($B$62:$B$843,"<="&DATE($B53,12,31),$D$62:$D$843)-SUM(D$27:D52) -> 0 | F53: =SUMIF($B$62:$B$843,"<="&DATE($B53,12,31),$F$62:$F$843)-SUM(F$27:F52) -> 0 | G53: =SUMIF($B$62:$B$843,"<="&DATE($B53,12,31),$G$62:$G$843)-SUM(G$27:G52) -> 0 | H53: 200000
B54: 2042 | C54: =SUMIF($B$62:$B$843,"<="&DATE($B54,12,31),$C$62:$C$843)-SUM(C$27:C53) -> 0 | D54: =SUMIF($B$62:$B$843,"<="&DATE($B54,12,31),$D$62:$D$843)-SUM(D$27:D53) -> 0 | F54: =SUMIF($B$62:$B$843,"<="&DATE($B54,12,31),$F$62:$F$843)-SUM(F$27:F53) -> 0 | G54: =SUMIF($B$62:$B$843,"<="&DATE($B54,12,31),$G$62:$G$843)-SUM(G$27:G53) -> 0 | H54: 200000
B55: 2043 | C55: =SUMIF($B$62:$B$843,"<="&DATE($B55,12,31),$C$62:$C$843)-SUM(C$27:C54) -> 0 | D55: =SUMIF($B$62:$B$843,"<="&DATE($B55,12,31),$D$62:$D$843)-SUM(D$27:D54) -> 0 | F55: =SUMIF($B$62:$B$843,"<="&DATE($B55,12,31),$F$62:$F$843)-SUM(F$27:F54) -> 0 | G55: =SUMIF($B$62:$B$843,"<="&DATE($B55,12,31),$G$62:$G$843)-SUM(G$27:G54) -> 0 | H55: 200000
B56: 2044 | C56: =SUMIF($B$62:$B$843,"<="&DATE($B56,12,31),$C$62:$C$843)-SUM(C$27:C55) -> 0 | D56: =SUMIF($B$62:$B$843,"<="&DATE($B56,12,31),$D$62:$D$843)-SUM(D$27:D55) -> 0 | F56: =SUMIF($B$62:$B$843,"<="&DATE($B56,12,31),$F$62:$F$843)-SUM(F$27:F55) -> 0 | G56: =SUMIF($B$62:$B$843,"<="&DATE($B56,12,31),$G$62:$G$843)-SUM(G$27:G55) -> 0 | H56: 200000
B57: 2045 | C57: =SUMIF($B$62:$B$843,"<="&DATE($B57,12,31),$C$62:$C$843)-SUM(C$27:C56) -> 0 | D57: =SUMIF($B$62:$B$843,"<="&DATE($B57,12,31),$D$62:$D$843)-SUM(D$27:D56) -> 0 | F57: =SUMIF($B$62:$B$843,"<="&DATE($B57,12,31),$F$62:$F$843)-SUM(F$27:F56) -> 0 | G57: =SUMIF($B$62:$B$843,"<="&DATE($B57,12,31),$G$62:$G$843)-SUM(G$27:G56) -> 0 | H57: 200000
B58: 2046 | C58: =SUMIF($B$62:$B$843,"<="&DATE($B58,12,31),$C$62:$C$843)-SUM(C$27:C57) -> 0 | D58: =SUMIF($B$62:$B$843,"<="&DATE($B58,12,31),$D$62:$D$843)-SUM(D$27:D57) -> 0 | F58: =SUMIF($B$62:$B$843,"<="&DATE($B58,12,31),$F$62:$F$843)-SUM(F$27:F57) -> 0 | G58: =SUMIF($B$62:$B$843,"<="&DATE($B58,12,31),$G$62:$G$843)-SUM(G$27:G57) -> 0 | H58: 200000
A60: Amortization Schedule
A61: No. | B61: Due Date | C61: Payment Due | D61: Additional Payment | F61: Interest | G61: Principal | H61: Balance
H62: =$D$8 -> 200000
A63: =IF(H62="","",IF(roundOpt,IF(OR(A62>=nper,ROUND(H62,2)<=0),"",A62+1),IF(OR(A62>=nper,H62<=0),"",A62+1))) -> 1 | B63: =IF(A63="","",IF(periods_per_year=26,IF(A63=1,fpdate,B62+14),IF(periods_per_year=52,IF(A63=1,fpdate,B62+7),IF(periods_per_year=24,IF(A63=1,fpdate,IF(fpdate=EOMONTH(fpdate,0),IF(ISODD(A63),EOMONTH(EDATE(fpdate,(A63-1)/2),0),EDATE(DATE(YEAR(fpdate),MONTH(fpdate)+1,15),(A63-1)/2)),IF(DAY(fpdate)=15,IF(ISODD(A63),EDATE(fpdate,(A63-1)/2),EOMONTH(EDATE(fpdate,(A63-1)/2),0)),IF(DAY(fpdate)<=14,IF(ISODD(A63),EDATE(fpdate,(A63-1)/2),EDATE(MIN(fpdate+15,EOMONTH(fpdate,0)),(A63-1)/2)),EDATE(IF(ISODD(A63),fpdate,fpdate-15),A63/2))))),IF(A63=1,fpdate,EDATE(fpdate,months_per_period*(A63-1))))))) ->  | C63: =IF(A63="","",IF(roundOpt,IF(OR(A63=nper,payment>ROUND((1+rate)*H62,2)),ROUND((1+rate)*H62,2),payment),IF(OR(A63=nper,payment>(1+rate)*H62),(1+rate)*H62,payment))) -> 1797.66 | F63: =IF(A63="","",IF(AND(A63=1,pmtType=1),0,IF(roundOpt,ROUND(rate*H62,2),rate*H62))) -> 1166.67 | G63: =IF(A63="","",C63-F63+D63) -> 630.99 | H63: =IF(A63="","",H62-G63) -> 199369.01
A64: 2 | C64: 1797.66 | F64: 1162.99 | G64: 634.67 | H64: 198734.34
A65: 3 | C65: 1797.66 | F65: 1159.28 | G65: 638.38 | H65: 198095.96
A66: 4 | C66: 1797.66 | F66: 1155.56 | G66: 642.1 | H66: 197453.86
A67: 5 | C67: 1797.66 | F67: 1151.81 | G67: 645.85 | H67: 196808.01
A68: 6 | C68: 1797.66 | F68: 1148.05 | G68: 649.61 | H68: 196158.4
A69: 7 | C69: 1797.66 | F69: 1144.26 | G69: 653.4 | H69: 195505
A70: 8 | C70: 1797.66 | F70: 1140.45 | G70: 657.21 | H70: 194847.79
A71: 9 | C71: 1797.66 | F71: 1136.61 | G71: 661.05 | H71: 194186.74
A72: 10 | C72: 1797.66 | F72: 1132.76 | G72: 664.9 | H72: 193521.84
A73: 11 | C73: 1797.66 | F73: 1128.88 | G73: 668.78 | H73: 192853.06
A74: 12 | C74: 1797.66 | F74: 1124.98 | G74: 672.68 | H74: 192180.38
A75: 13 | C75: 1797.66 | F75: 1121.05 | G75: 676.61 | H75: 191503.77
A76: 14 | C76: 1797.66 | F76: 1117.11 | G76: 680.55 | H76: 190823.22
A77: 15 | C77: 1797.66 | F77: 1113.14 | G77: 684.52 | H77: 190138.7
A78: 16 | C78: 1797.66 | F78: 1109.14 | G78: 688.52 | H78: 189450.18
A79: 17 | C79: 1797.66 | F79: 1105.13 | G79: 692.53 | H79: 188757.65
A80: 18 | C80: 1797.66 | F80: 1101.09 | G80: 696.57 | H80: 188061.08
A81: 19 | C81: 1797.66 | F81: 1097.02 | G81: 700.64 | H81: 187360.44
A82: 20 | C82: 1797.66 | F82: 1092.94 | G82: 704.72 | H82: 186655.72
A83: 21 | C83: 1797.66 | F83: 1088.83 | G83: 708.83 | H83: 185946.89
A84: 22 | C84: 1797.66 | F84: 1084.69 | G84: 712.97 | H84: 185233.92
A85: 23 | C85: 1797.66 | F85: 1080.53 | G85: 717.13 | H85: 184516.79
A86: 24 | C86: 1797.66 | F86: 1076.35 | G86: 721.31 | H86: 183795.48
A87: 25 | C87: 1797.66 | F87: 1072.14 | G87: 725.52 | H87: 183069.96
A88: 26 | C88: 1797.66 | F88: 1067.91 | G88: 729.75 | H88: 182340.21
A89: 27 | C89: 1797.66 | F89: 1063.65 | G89: 734.01 | H89: 181606.2
A90: 28 | C90: 1797.66 | F90: 1059.37 | G90: 738.29 | H90: 180867.91
A91: 29 | C91: 1797.66 | F91: 1055.06 | G91: 742.6 | H91: 180125.31
A92: 30 | C92: 1797.66 | F92: 1050.73 | G92: 746.93 | H92: 179378.38
A93: 31 | C93: 1797.66 | F93: 1046.37 | G93: 751.29 | H93: 178627.09
A94: 32 | C94: 1797.66 | F94: 1041.99 | G94: 755.67 | H94: 177871.42
A95: 33 | C95: 1797.66 | F95: 1037.58 | G95: 760.08 | H95: 177111.34
A96: 34 | C96: 1797.66 | F96: 1033.15 | G96: 764.51 | H96: 176346.83
A97: 35 | C97: 1797.66 | F97: 1028.69 | G97: 768.97 | H97: 175577.86
A98: 36 | C98: 1797.66 | F98: 1024.2 | G98: 773.46 | H98: 174804.4
A99: 37 | C99: 1797.66 | F99: 1019.69 | G99: 777.97 | H99: 174026.43
A100: 38 | C100: 1797.66 | F100: 1015.15 | G100: 782.51 | H100: 173243.92
A101: 39 | C101: 1797.66 | F101: 1010.59 | G101: 787.07 | H101: 172456.85
A102: 40 | C102: 1797.66 | F102: 1006 | G102: 791.66 | H102: 171665.19
A103: 41 | C103: 1797.66 | F103: 1001.38 | G103: 796.28 | H103: 170868.91
A104: 42 | C104: 1797.66 | F104: 996.74 | G104: 800.92 | H104: 170067.99
A105: 43 | C105: 1797.66 | F105: 992.06 | G105: 805.6 | H105: 169262.39
A106: 44 | C106: 1797.66 | F106: 987.36 | G106: 810.3 | H106: 168452.09
A107: 45 | C107: 1797.66 | F107: 982.64 | G107: 815.02 | H107: 167637.07
A108: 46 | C108: 1797.66 | F108: 977.88 | G108: 819.78 | H108: 166817.29
A109: 47 | C109: 1797.66 | F109: 973.1 | G109: 824.56 | H109: 165992.73
A110: 48 | C110: 1797.66 | F110: 968.29 | G110: 829.37 | H110: 165163.36
A111: 49 | C111: 1797.66 | F111: 963.45 | G111: 834.21 | H111: 164329.15
A112: 50 | C112: 1797.66 | F112: 958.59 | G112: 839.07 | H112: 163490.08
A113: 51 | C113: 1797.66 | F113: 953.69 | G113: 843.97 | H113: 162646.11
A114: 52 | C114: 1797.66 | F114: 948.77 | G114: 848.89 | H114: 161797.22
A115: 53 | C115: 1797.66 | F115: 943.82 | G115: 853.84 | H115: 160943.38
A116: 54 | C116: 1797.66 | F116: 938.84 | G116: 858.82 | H116: 160084.56
A117: 55 | C117: 1797.66 | F117: 933.83 | G117: 863.83 | H117: 159220.73
A118: 56 | C118: 1797.66 | F118: 928.79 | G118: 868.87 | H118: 158351.86
A119: 57 | C119: 1797.66 | F119: 923.72 | G119: 873.94 | H119: 157477.92
A120: 58 | C120: 1797.66 | F120: 918.62 | G120: 879.04 | H120: 156598.88
A121: 59 | C121: 1797.66 | F121: 913.49 | G121: 884.17 | H121: 155714.71
A122: 60 | C122: 1797.66 | F122: 908.34 | G122: 889.32 | H122: 154825.39
A123: 61 | C123: 1797.66 | F123: 903.15 | G123: 894.51 | H123: 153930.88
A124: 62 | C124: 1797.66 | F124: 897.93 | G124: 899.73 | H124: 153031.15
A125: 63 | C125: 1797.66 | F125: 892.68 | G125: 904.98 | H125: 152126.17
A126: 64 | C126: 1797.66 | F126: 887.4 | G126: 910.26 | H126: 151215.91
A127: =IF(H126="","",IF(roundOpt,IF(OR(A126>=nper,ROUND(H126,2)<=0),"",A126+1),IF(OR(A126>=nper,H126<=0),"",A126+1))) -> 65 | B127: =IF(A127="","",IF(periods_per_year=26,IF(A127=1,fpdate,B126+14),IF(periods_per_year=52,IF(A127=1,fpdate,B126+7),IF(periods_per_year=24,IF(A127=1,fpdate,IF(fpdate=EOMONTH(fpdate,0),IF(ISODD(A127),EOMONTH(EDATE(fpdate,(A127-1)/2),0),EDATE(DATE(YEAR(fpdate),MONTH(fpdate)+1,15),(A127-1)/2)),IF(DAY(fpdate)=15,IF(ISODD(A127),EDATE(fpdate,(A127-1)/2),EOMONTH(EDATE(fpdate,(A127-1)/2),0)),IF(DAY(fpdate)<=14,IF(ISODD(A127),EDATE(fpdate,(A127-1)/2),EDATE(MIN(fpdate+15,EOMONTH(fpdate,0)),(A127-1)/2)),EDATE(IF(ISODD(A127),fpdate,fpdate-15),A127/2))))),IF(A127=1,fpdate,EDATE(fpdate,months_per_period*(A127-1))))))) ->  | C127: =IF(A127="","",IF(roundOpt,IF(OR(A127=nper,payment>ROUND((1+rate)*H126,2)),ROUND((1+rate)*H126,2),payment),IF(OR(A127=nper,payment>(1+rate)*H126),(1+rate)*H126,payment))) -> 1797.66 | F127: =IF(A127="","",IF(AND(A127=1,pmtType=1),0,IF(roundOpt,ROUND(rate*H126,2),rate*H126))) -> 882.09 | G127: =IF(A127="","",C127-F127+D127) -> 915.57 | H127: =IF(A127="","",H126-G127) -> 150300.34
A128: 66 | C128: 1797.66 | F128: 876.75 | G128: 920.91 | H128: 149379.43
A129: 67 | C129: 1797.66 | F129: 871.38 | G129: 926.28 | H129: 148453.15
A130: 68 | C130: 1797.66 | F130: 865.98 | G130: 931.68 | H130: 147521.47
A131: 69 | C131: 1797.66 | F131: 860.54 | G131: 937.12 | H131: 146584.35
A132: 70 | C132: 1797.66 | F132: 855.08 | G132: 942.58 | H132: 145641.77
A133: 71 | C133: 1797.66 | F133: 849.58 | G133: 948.08 | H133: 144693.69
A134: 72 | C134: 1797.66 | F134: 844.05 | G134: 953.61 | H134: 143740.08
A135: 73 | C135: 1797.66 | F135: 838.48 | G135: 959.18 | H135: 142780.9
A136: 74 | C136: 1797.66 | F136: 832.89 | G136: 964.77 | H136: 141816.13
A137: 75 | C137: 1797.66 | F137: 827.26 | G137: 970.4 | H137: 140845.73
A138: 76 | C138: 1797.66 | F138: 821.6 | G138: 976.06 | H138: 139869.67
A139: 77 | C139: 1797.66 | F139: 815.91 | G139: 981.75 | H139: 138887.92
A140: 78 | C140: 1797.66 | F140: 810.18 | G140: 987.48 | H140: 137900.44
A141: 79 | C141: 1797.66 | F141: 804.42 | G141: 993.24 | H141: 136907.2
A142: 80 | C142: 1797.66 | F142: 798.63 | G142: 999.03 | H142: 135908.17
A143: 81 | C143: 1797.66 | F143: 792.8 | G143: 1004.86 | H143: 134903.31
A144: 82 | C144: 1797.66 | F144: 786.94 | G144: 1010.72 | H144: 133892.59
A145: 83 | C145: 1797.66 | F145: 781.04 | G145: 1016.62 | H145: 132875.97
A146: 84 | C146: 1797.66 | F146: 775.11 | G146: 1022.55 | H146: 131853.42
A147: 85 | C147: 1797.66 | F147: 769.14 | G147: 1028.52 | H147: 130824.9
A148: 86 | C148: 1797.66 | F148: 763.15 | G148: 1034.51 | H148: 129790.39
A149: 87 | C149: 1797.66 | F149: 757.11 | G149: 1040.55 | H149: 128749.84
A150: 88 | C150: 1797.66 | F150: 751.04 | G150: 1046.62 | H150: 127703.22
A151: 89 | C151: 1797.66 | F151: 744.94 | G151: 1052.72 | H151: 126650.5
A152: 90 | C152: 1797.66 | F152: 738.79 | G152: 1058.87 | H152: 125591.63
A153: 91 | C153: 1797.66 | F153: 732.62 | G153: 1065.04 | H153: 124526.59
A154: 92 | C154: 1797.66 | F154: 726.41 | G154: 1071.25 | H154: 123455.34
A155: 93 | C155: 1797.66 | F155: 720.16 | G155: 1077.5 | H155: 122377.84
A156: 94 | C156: 1797.66 | F156: 713.87 | G156: 1083.79 | H156: 121294.05
A157: 95 | C157: 1797.66 | F157: 707.55 | G157: 1090.11 | H157: 120203.94
A158: 96 | C158: 1797.66 | F158: 701.19 | G158: 1096.47 | H158: 119107.47
A159: 97 | C159: 1797.66 | F159: 694.79 | G159: 1102.87 | H159: 118004.6
A160: 98 | C160: 1797.66 | F160: 688.36 | G160: 1109.3 | H160: 116895.3
A161: 99 | C161: 1797.66 | F161: 681.89 | G161: 1115.77 | H161: 115779.53
A162: 100 | C162: 1797.66 | F162: 675.38 | G162: 1122.28 | H162: 114657.25
A163: 101 | C163: 1797.66 | F163: 668.83 | G163: 1128.83 | H163: 113528.42
A164: 102 | C164: 1797.66 | F164: 662.25 | G164: 1135.41 | H164: 112393.01
A165: 103 | C165: 1797.66 | F165: 655.63 | G165: 1142.03 | H165: 111250.98
A166: 104 | C166: 1797.66 | F166: 648.96 | G166: 1148.7 | H166: 110102.28
A167: 105 | C167: 1797.66 | F167: 642.26 | G167: 1155.4 | H167: 108946.88
A168: 106 | C168: 1797.66 | F168: 635.52 | G168: 1162.14 | H168: 107784.74
A169: 107 | C169: 1797.66 | F169: 628.74 | G169: 1168.92 | H169: 106615.82
A170: 108 | C170: 1797.66 | F170: 621.93 | G170: 1175.73 | H170: 105440.09
A171: 109 | C171: 1797.66 | F171: 615.07 | G171: 1182.59 | H171: 104257.5
A172: 110 | C172: 1797.66 | F172: 608.17 | G172: 1189.49 | H172: 103068.01
A173: 111 | C173: 1797.66 | F173: 601.23 | G173: 1196.43 | H173: 101871.58
A174: 112 | C174: 1797.66 | F174: 594.25 | G174: 1203.41 | H174: 100668.17
A175: 113 | C175: 1797.66 | F175: 587.23 | G175: 1210.43 | H175: 99457.74
A176: 114 | C176: 1797.66 | F176: 580.17 | G176: 1217.49 | H176: 98240.25
A177: 115 | C177: 1797.66 | F177: 573.07 | G177: 1224.59 | H177: 97015.66
A178: 116 | C178: 1797.66 | F178: 565.92 | G178: 1231.74 | H178: 95783.92
A179: 117 | C179: 1797.66 | F179: 558.74 | G179: 1238.92 | H179: 94545
A180: 118 | C180: 1797.66 | F180: 551.51 | G180: 1246.15 | H180: 93298.85
A181: 119 | C181: 1797.66 | F181: 544.24 | G181: 1253.42 | H181: 92045.43
A182: 120 | C182: 1797.66 | F182: 536.93 | G182: 1260.73 | H182: 90784.7
A183: 121 | C183: 1797.66 | F183: 529.58 | G183: 1268.08 | H183: 89516.62
A184: 122 | C184: 1797.66 | F184: 522.18 | G184: 1275.48 | H184: 88241.14
A185: 123 | C185: 1797.66 | F185: 514.74 | G185: 1282.92 | H185: 86958.22
A186: 124 | C186: 1797.66 | F186: 507.26 | G186: 1290.4 | H186: 85667.82
A187: 125 | C187: 1797.66 | F187: 499.73 | G187: 1297.93 | H187: 84369.89
A188: 126 | C188: 1797.66 | F188: 492.16 | G188: 1305.5 | H188: 83064.39
A189: 127 | C189: 1797.66 | F189: 484.54 | G189: 1313.12 | H189: 81751.27
A190: 128 | C190: 1797.66 | F190: 476.88 | G190: 1320.78 | H190: 80430.49
A191: =IF(H190="","",IF(roundOpt,IF(OR(A190>=nper,ROUND(H190,2)<=0),"",A190+1),IF(OR(A190>=nper,H190<=0),"",A190+1))) -> 129 | B191: =IF(A191="","",IF(periods_per_year=26,IF(A191=1,fpdate,B190+14),IF(periods_per_year=52,IF(A191=1,fpdate,B190+7),IF(periods_per_year=24,IF(A191=1,fpdate,IF(fpdate=EOMONTH(fpdate,0),IF(ISODD(A191),EOMONTH(EDATE(fpdate,(A191-1)/2),0),EDATE(DATE(YEAR(fpdate),MONTH(fpdate)+1,15),(A191-1)/2)),IF(DAY(fpdate)=15,IF(ISODD(A191),EDATE(fpdate,(A191-1)/2),EOMONTH(EDATE(fpdate,(A191-1)/2),0)),IF(DAY(fpdate)<=14,IF(ISODD(A191),EDATE(fpdate,(A191-1)/2),EDATE(MIN(fpdate+15,EOMONTH(fpdate,0)),(A191-1)/2)),EDATE(IF(ISODD(A191),fpdate,fpdate-15),A191/2))))),IF(A191=1,fpdate,EDATE(fpdate,months_per_period*(A191-1))))))) ->  | C191: =IF(A191="","",IF(roundOpt,IF(OR(A191=nper,payment>ROUND((1+rate)*H190,2)),ROUND((1+rate)*H190,2),payment),IF(OR(A191=nper,payment>(1+rate)*H190),(1+rate)*H190,payment))) -> 1797.66 | F191: =IF(A191="","",IF(AND(A191=1,pmtType=1),0,IF(roundOpt,ROUND(rate*H190,2),rate*H190))) -> 469.18 | G191: =IF(A191="","",C191-F191+D191) -> 1328.48 | H191: =IF(A191="","",H190-G191) -> 79102.01
A192: 130 | C192: 1797.66 | F192: 461.43 | G192: 1336.23 | H192: 77765.78
A193: 131 | C193: 1797.66 | F193: 453.63 | G193: 1344.03 | H193: 76421.75
A194: 132 | C194: 1797.66 | F194: 445.79 | G194: 1351.87 | H194: 75069.88
A195: 133 | C195: 1797.66 | F195: 437.91 | G195: 1359.75 | H195: 73710.13
A196: 134 | C196: 1797.66 | F196: 429.98 | G196: 1367.68 | H196: 72342.45
A197: 135 | C197: 1797.66 | F197: 422 | G197: 1375.66 | H197: 70966.79
A198: 136 | C198: 1797.66 | F198: 413.97 | G198: 1383.69 | H198: 69583.1
A199: 137 | C199: 1797.66 | F199: 405.9 | G199: 1391.76 | H199: 68191.34
A200: 138 | C200: 1797.66 | F200: 397.78 | G200: 1399.88 | H200: 66791.46
A201: 139 | C201: 1797.66 | F201: 389.62 | G201: 1408.04 | H201: 65383.42
A202: 140 | C202: 1797.66 | F202: 381.4 | G202: 1416.26 | H202: 63967.16
A203: 141 | C203: 1797.66 | F203: 373.14 | G203: 1424.52 | H203: 62542.64
A204: 142 | C204: 1797.66 | F204: 364.83 | G204: 1432.83 | H204: 61109.81
A205: 143 | C205: 1797.66 | F205: 356.47 | G205: 1441.19 | H205: 59668.62
A206: 144 | C206: 1797.66 | F206: 348.07 | G206: 1449.59 | H206: 58219.03
... 47 more rows
